Workbook

Sheet distsum
A1: FY24 Charter School Tuition Payments and Reimbursements for Sending Districts (Q3) | CE1: 23 - Q4 chasum | CG1: 24 - Q4 chasum | CH1: 22 - Q4 chasum | CK1: =CK451/CJ451 -> 1 | DC1: 23 - PJ | DD1: 23 - PJ | DE1: 23 - PJ | DF1: 23 - PJ | DH1: 23 - PJ | DI1: 23 - PJ | DJ1: 23 - PJ | DK1: derived | DL1: derived | DN1: derived | DP1: COL CF | DQ1: derived | DR1: derived | DS1: 23 - PJ | DT1: If a tuition adjustment is captured by the 100% aid tier, then it does not need to be captured elsewhere. If it is not captured then an adjustment to the aid must be done. This adjustment is in column AT. It should be added before proration, if applicable, is done.
CE4: Aid avail in tier | CF4: =$CK$5-SUM(AK451+AP451+DF451+DK451) -> 175595030.4 | CG4: =IF(CF5=1,(CF4-CF451),0) -> 98245955.34 | CH4: =IF(CG5=1,(CG4-CG451),0) -> 54825651.94
CE5: % of tier reimb | CF5: =IF(CF4>(CF451+CI451),1,CF4/(CF451+CI451)) -> 1 | CG5: =IF(CG4>CG451,1,CG4/CG451) -> 1 | CH5: =IF(CH4>CH451,1,CH4/CH451) -> 1 | CK5: 232682538
H7: D I S T R I C T P A Y M E N T | L7: S T A T E R E I M B T O D I S T R I C T | U7: S T A T E R E I M B U R S E M E N T S U M M A R Y | AA7: R A W D I S T R I C T D A T A | AS7: S I B L I N G S | BA7: P R I V A T E / H O M E S C H O O L E D | BG7: N S S | CA7: 1 0 0 / 6 0 / 4 0 T R A N S I T I O N R E I M B U R S E M E N T | DA7: P R I O R Y E A R A D J U S T M E N T S | DV7: sibling only adjustments
A8: LEA | B8: DOR | C8: DISTRICT | D8: FTE | E8: LOCAL FOUNDATION TUITION | F8: LOCAL TRANSPOR- TATION TUITION | G8: LOCAL FACILITIES TUITION | H8: LOCAL PAYMENT | J8: FACILITIES REIMB | K8: 100/60/40 TRANS- ITION REIMB | L8: TOTAL CHARTER REIMB | N8: N E T D I S T R I C T C O S T | P8: FACILITIES REIMB | Q8: FTE FOR PRIVATE/ SIBLING/ HOME- SCHOOLED | R8: STATE REIMB FOR PRIVATE/ SIBLING/ HOME- SCHOOLED | S8: FACILITIES FOR PRIVATE/ HOME- SCHOOL/ SIBLING | T8: 100/60/40 TRANS- ITION REIMB | U8: TOTAL STATE REIMB | W8: S T A T E R E I M B A T F U L L F U N D I N G | AA8: Lea | AB8: FTE | AC8: FTE CAP | AD8: Transp FTE | AE8: State Tuit Sib FTE | AF8: Unadj Local Tuition | AG8: Sib Reduc- tion | AH8: NSS Reduction | AI8: Adjusted Local Payment | AJ8: Local Transporation | AK8: Local Facilities Tuition | AL8: Total Local Payment | AM8: State Tuition | AN8: State Transportation | AO8: State Facilities Tuition | AP8: Total State Payment | AQ8: Total Payment to Charter | AS8: LEA | AT8: Total Sibling FTE | AU8: Tuition Only FTE | AV8: Sibling Tuition | AW8: Trans- portation | AX8: Facilities Tuition | AY8: Total Sibling Tuition | BA8: FTE | BB8: Priv/ Home Tuition | BC8: Trans- portation | BD8: Facilities Tuition | BE8: Total Priv / HS Tuition | BG8: Max Cap Percent | BH8: Actual NSS Percent | BI8: Districts at Max Cap | CA8: LEA | CB8: DOR | CC8: District | CD8: FY24 Total Local Foundation Tuition | CE8: FY23 Local Foundation Tuition | CF8: 100% of FY24 Tuition Change | CG8: 60% of FY23 Tuition Change | CH8: 40% of FY22 Tuition Change | CI8: NET PFY Ch46 Reimb Adjustm't | CJ8: Total Transition Reimb | CK8: Pro Rated Transition Reimb | DA8: LEA | DB8: District | DC8: FTE Change | DD8: Local Found- ation Tuition | DE8: Local Trans- porta- tion | DF8: Local Facil- ities | DG8: Total Local Adj | DH8: State Found- ation Tuition | DI8: State Trans- portation | DJ8: State Facilities | DK8: Total State Adj | DL8: TOTAL Tuition Adj | DN8: Facilities Aid Adj | DP8: 100 Percent Increase in Adj Tuition | DQ8: What the 100% is w/o Prior Yr Adjustment | DR8: Diff in 100 Percent Reimb | DS8: Raw PJ Adj in Ch46 Reimb | DT8: NET Prior YR Ch46 Reimb Adjustm't | DV8: FTE | DW8: Found- ation | DX8: Transpor- tation | DY8: Facilities | DZ8: Total Sibling Adjmts | EB8: new | EC8: diff | EE8: add here
A10: 1 | B10: 1 | C10: ABINGTON | D10: =AB10 -> 56 | E10: =AI10+DD10 -> 839631 | F10: 0 | G10: =AK10+DF10 -> 66528 | H10: =SUM(E10:G10) -> 906159 | J10: =G10 -> 66528 | K10: =IF(CK10="",CJ10,CK10) -> 271873.6 | L10: =SUM(J10:K10) -> 338401.6 | N10: =H10-L10 -> 567757.4 | P10: =AK10+AO10+DF10+DJ10 -> 66528 | Q10: =AE10 -> 0 | R10: =AP10+DK10 -> 0 | S10: =AO10+DJ10 -> 0 | T10: =K10 -> 271873.6 | U10: =P10+R10-S10+T10 -> 338401.6 | W10: =AK10+AP10+CJ10+DF10+DK10 -> 338401.6 | AA10: 1 | AB10: 56 | AC10: 0 | AD10: 0 | AE10: 0 | AF10: 839631 | AG10: 0 | AH10: 0 | AI10: 839631 | AJ10: 0 | AK10: 66528 | AL10: 906159 | AM10: 0 | AN10: 0 | AO10: 0 | AP10: 0 | AQ10: 906159 | AS10: 1 | AT10: 19 | AU10: 0 | AV10: 0 | AW10: 0 | AX10: 0 | AY10: 0 | BA10: 0 | BB10: 0 | BC10: 0 | BD10: 0 | BE10: 0 | BG10: 9 | BH10: 2.364333533 | BI10: 0 | CA10: 1 | CB10: 1 | CC10: ABINGTON | CD10: =AI10+DD10 -> 839631 | CE10: 733169 | CF10: =IF(CE10<0,CD10,IF(CD10-CE10>0,CD10-CE10,0)) -> 106462 | CG10: 107250 | CH10: 58161.6 | CI10: =DT10 -> 0 | CJ10: =SUM(CF10:CI10) -> 271873.6 | CK10: =(CF10+CI10)*CF$5+CG10*CG$5+CH10*CH$5 -> 271873.6 | DA10: 1 | DB10: ABINGTON | DC10: 0 | DD10: 0 | DE10: 0 | DF10: 0 | DG10: =SUM(DD10:DF10) -> 0 | DH10: 0 | DI10: 0 | DJ10: 0 | DK10: =SUM(DH10:DJ10) -> 0 | DL10: =DK10+DG10 -> 0 | DN10: =DJ10+DF10 -> 0 | DP10: =CF10 -> 106462 | DQ10: =IF(CE10<0,0,IF((AH10-CE10)>0,AH10-CE10,0)) -> 0 | DR10: =DP10-DQ10 -> 106462 | DS10: 0 | DT10: =IF(AND(DR10<0,DS10<0), IF(DR10<DS10, 0, DS10-DR10), IF(AND(DR10>0,DS10>0), IF(OR(DS10>DR10,DS10=DR10 ), DS10-DR10, 0), DS10)) -> 0 | DV10: 0 | EC10: =DS10-DT10 -> 0 | EE10: 1
A11: 2 | B11: 2 | C11: ACTON | D11: =AB11 -> 0 | E11: =AI11+DD11 -> 0 | F11: 0 | G11: 0 | H11: =SUM(E11:G11) -> 0 | J11: =G11 -> 0 | K11: =IF(CK11="",CJ11,CK11) -> 0 | L11: =SUM(J11:K11) -> 0 | N11: 0 | P11: 0 | Q11: =AE11 -> 0 | R11: 0 | S11: 0 | T11: 0 | U11: =P11+R11-S11+T11 -> 0 | W11: =AK11+AP11+CJ11+DF11+DK11 -> 0 | AA11: 2 | AB11: 0 | AC11: 0 | AD11: 0 | AE11: 0 | AF11: 0 | AG11: 0 | AH11: 0 | AI11: 0 | AJ11: 0 | AK11: 0 | AL11: 0 | AM11: 0 | AN11: 0 | AO11: 0 | AP11: 0 | AQ11: 0 | AS11: 2 | AT11: 0 | AU11: 0 | AV11: 0 | AW11: 0 | AX11: 0 | AY11: 0 | BA11: 0 | BB11: 0 | BC11: 0 | BD11: 0 | BE11: 0 | BG11: 0 | BH11: 0 | BI11: 0 | CA11: 2 | CB11: 2 | CC11: ACTON | CD11: 0 | CE11: 0 | CF11: =IF(CE11<0,CD11,IF(CD11-CE11>0,CD11-CE11,0)) -> 0 | CG11: 0 | CH11: 0 | CI11: =DT11 -> 0 | CJ11: =SUM(CF11:CI11) -> 0 | CK11: 0 | DA11: 2 | DB11: ACTON | DC11: 0 | DD11: 0 | DE11: 0 | DF11: 0 | DG11: =SUM(DD11:DF11) -> 0 | DH11: 0 | DI11: 0 | DJ11: 0 | DK11: =SUM(DH11:DJ11) -> 0 | DL11: 0 | DN11: 0 | DP11: =CF11 -> 0 | DQ11: 0 | DR11: =DP11-DQ11 -> 0 | DS11: 0 | DT11: =IF(AND(DR11<0,DS11<0), IF(DR11<DS11, 0, DS11-DR11), IF(AND(DR11>0,DS11>0), IF(OR(DS11>DR11,DS11=DR11 ), DS11-DR11, 0), DS11)) -> 0 | DV11: 0 | EB11: fy15 | EC11: =DS11-DT11 -> 0 | EE11: 2
A12: 3 | B12: 3 | C12: ACUSHNET | D12: 3 | E12: 38765 | F12: 0 | G12: 3550 | H12: 42315 | J12: 3550 | K12: 12723 | L12: 16273 | N12: 26042 | P12: 3550 | Q12: 0 | R12: 0 | S12: 0 | T12: 12723 | U12: 16273 | W12: 16273 | AA12: 3 | AB12: 3 | AC12: 0.01120428035 | AD12: 0 | AE12: 0 | AF12: 38765 | AG12: 0 | AH12: 0 | AI12: 38765 | AJ12: 0 | AK12: 3550 | AL12: 42315 | AM12: 0 | AN12: 0 | AO12: 0 | AP12: 0 | AQ12: 42315 | AS12: 3 | AT12: 0 | AU12: 0 | AV12: 0 | AW12: 0 | AX12: 0 | AY12: 0 | BA12: 0 | BB12: 0 | BC12: 0 | BD12: 0 | BE12: 0 | BG12: 9 | BH12: 0.2291482212 | BI12: 0 | CA12: 3 | CB12: 3 | CC12: ACUSHNET | CD12: 38765 | CE12: 26074 | CF12: 12691 | CG12: 0 | CH12: 32 | CI12: 0 | CJ12: 12723 | CK12: 12723 | DA12: 3 | DB12: ACUSHNET | DC12: 0 | DD12: 0 | DE12: 0 | DF12: 0 | DG12: 0 | DH12: 0 | DI12: 0 | DJ12: 0 | DK12: 0 | DL12: 0 | DN12: 0 | DP12: 12691 | DQ12: 0 | DR12: 12691 | DS12: 0 | DT12: 0 | DV12: 0 | EC12: 0 | EE12: 3
A13: 4 | B13: 4 | C13: ADAMS | D13: 0 | E13: 0 | F13: 0 | G13: 0 | H13: 0 | J13: 0 | K13: 0 | L13: 0 | N13: 0 | P13: 0 | Q13: 0 | R13: 0 | S13: 0 | T13: 0 | U13: 0 | W13: 0 | AA13: 4 | AB13: 0 | AC13: 0 | AD13: 0 | AE13: 0 | AF13: 0 | AG13: 0 | AH13: 0 | AI13: 0 | AJ13: 0 | AK13: 0 | AL13: 0 | AM13: 0 | AN13: 0 | AO13: 0 | AP13: 0 | AQ13: 0 | AS13: 4 | AT13: 0 | AU13: 0 | AV13: 0 | AW13: 0 | AX13: 0 | AY13: 0 | BA13: 0 | BB13: 0 | BC13: 0 | BD13: 0 | BE13: 0 | BG13: 0 | BH13: 0 | BI13: 0 | CA13: 4 | CB13: 4 | CC13: ADAMS | CD13: 0 | CE13: 0 | CF13: 0 | CG13: 0 | CH13: 0 | CI13: 0 | CJ13: 0 | CK13: 0 | DA13: 4 | DB13: ADAMS | DC13: 0 | DD13: 0 | DE13: 0 | DF13: 0 | DG13: 0 | DH13: 0 | DI13: 0 | DJ13: 0 | DK13: 0 | DL13: 0 | DN13: 0 | DP13: 0 | DQ13: 0 | DR13: 0 | DS13: 0 | DT13: 0 | DV13: 0 | EC13: 0 | EE13: 4
A14: 5 | B14: 5 | C14: AGAWAM | D14: 66 | E14: 1361240 | F14: 0 | G14: 78406 | H14: 1439646 | J14: 78406 | K14: 252350 | L14: 330756 | N14: 1108890 | P14: 78406 | Q14: 0 | R14: 0 | S14: 0 | T14: 252350 | U14: 330756 | W14: 330756 | AA14: 5 | AB14: 66 | AC14: 0.00205338809 | AD14: 0 | AE14: 0 | AF14: 1361240 | AG14: 0 | AH14: 0 | AI14: 1361240 | AJ14: 0 | AK14: 78406 | AL14: 1439646 | AM14: 0 | AN14: 0 | AO14: 0 | AP14: 0 | AQ14: 1439646 | AS14: 5 | AT14: 12 | AU14: 0 | AV14: 0 | AW14: 0 | AX14: 0 | AY14: 0 | BA14: 0 | BB14: 0 | BC14: 0 | BD14: 0 | BE14: 0 | BG14: 9 | BH14: 1.887345206 | BI14: 0 | CA14: 5 | CB14: 5 | CC14: AGAWAM | CD14: 1361240 | CE14: 1247129 | CF14: 114111 | CG14: 49962.6 | CH14: 88276.4 | CI14: 0 | CJ14: 252350 | CK14: 252350 | DA14: 5 | DB14: AGAWAM | DC14: 0 | DD14: 0 | DE14: 0 | DF14: 0 | DG14: 0 | DH14: 0 | DI14: 0 | DJ14: 0 | DK14: 0 | DL14: 0 | DN14: 0 | DP14: 114111 | DQ14: 0 | DR14: 114111 | DS14: 0 | DT14: 0 | DV14: 0 | EC14: 0 | EE14: 5
A15: 6 | B15: 6 | C15: ALFORD | D15: 0 | E15: 0 | F15: 0 | G15: 0 | H15: 0 | J15: 0 | K15: 0 | L15: 0 | N15: 0 | P15: 0 | Q15: 0 | R15: 0 | S15: 0 | T15: 0 | U15: 0 | W15: 0 | AA15: 6 | AB15: 0 | AC15: 0 | AD15: 0 | AE15: 0 | AF15: 0 | AG15: 0 | AH15: 0 | AI15: 0 | AJ15: 0 | AK15: 0 | AL15: 0 | AM15: 0 | AN15: 0 | AO15: 0 | AP15: 0 | AQ15: 0 | AS15: 6 | AT15: 0 | AU15: 0 | AV15: 0 | AW15: 0 | AX15: 0 | AY15: 0 | BA15: 0 | BB15: 0 | BC15: 0 | BD15: 0 | BE15: 0 | BG15: 0 | BH15: 0 | BI15: 0 | CA15: 6 | CB15: 6 | CC15: ALFORD | CD15: 0 | CE15: 0 | CF15: 0 | CG15: 0 | CH15: 0 | CI15: 0 | CJ15: 0 | CK15: 0 | DA15: 6 | DB15: ALFORD | DC15: 0 | DD15: 0 | DE15: 0 | DF15: 0 | DG15: 0 | DH15: 0 | DI15: 0 | DJ15: 0 | DK15: 0 | DL15: 0 | DN15: 0 | DP15: 0 | DQ15: 0 | DR15: 0 | DS15: 0 | DT15: 0 | DV15: 0 | EC15: 0 | EE15: 6
A16: 7 | B16: 7 | C16: AMESBURY | D16: 99 | E16: 1718089 | F16: 0 | G16: 116828 | H16: 1834917 | J16: 116828 | K16: 531192.6 | L16: 648020.6 | N16: 1186896.4 | P16: 116828 | Q16: 0 | R16: 0 | S16: 0 | T16: 531192.6 | U16: 648020.6 | W16: 648020.6 | AA16: 7 | AB16: 99 | AC16: 0.6805555556 | AD16: 0 | AE16: 0 | AF16: 1718089 | AG16: 0 | AH16: 0 | AI16: 1718089 | AJ16: 0 | AK16: 116828 | AL16: 1834917 | AM16: 0 | AN16: 0 | AO16: 0 | AP16: 0 | AQ16: 1834917 | AS16: 7 | AT16: 31 | AU16: 0 | AV16: 0 | AW16: 0 | AX16: 0 | AY16: 0 | BA16: 0 | BB16: 0 | BC16: 0 | BD16: 0 | BE16: 0 | BG16: 9 | BH16: 4.414550557 | BI16: 0 | CA16: 7 | CB16: 7 | CC16: AMESBURY | CD16: 1718089 | CE16: 1451916 | CF16: 266173 | CG16: 127009.2 | CH16: 138010.4 | CI16: 0 | CJ16: 531192.6 | CK16: 531192.6 | DA16: 7 | DB16: AMESBURY | DC16: 0 | DD16: 0 | DE16: 0 | DF16: 0 | DG16: 0 | DH16: 0 | DI16: 0 | DJ16: 0 | DK16: 0 | DL16: 0 | DN16: 0 | DP16: 266173 | DQ16: 0 | DR16: 266173 | DS16: 0 | DT16: 0 | DV16: 0 | EC16: 0 | EE16: 7
A17: 8 | B17: 8 | C17: AMHERST | D17: 72 | E17: 1635198 | F17: 0 | G17: 85536 | H17: 1720734 | J17: 85536 | K17: 67653.8 | L17: 153189.8 | N17: 1567544.2 | P17: 85536 | Q17: 0 | R17: 0 | S17: 0 | T17: 67653.8 | U17: 153189.8 | W17: 153189.8 | AA17: 8 | AB17: 72 | AC17: 0 | AD17: 0 | AE17: 0 | AF17: 1635198 | AG17: 0 | AH17: 0 | AI17: 1635198 | AJ17: 0 | AK17: 85536 | AL17: 1720734 | AM17: 0 | AN17: 0 | AO17: 0 | AP17: 0 | AQ17: 1720734 | AS17: 8 | AT17: 17 | AU17: 0 | AV17: 0 | AW17: 0 | AX17: 0 | AY17: 0 | BA17: 0 | BB17: 0 | BC17: 0 | BD17: 0 | BE17: 0 | BG17: 9 | BH17: 5.701674072 | BI17: 0 | CA17: 8 | CB17: 8 | CC17: AMHERST | CD17: 1635198 | CE17: 1598663 | CF17: 36535 | CG17: 0 | CH17: 31118.8 | CI17: 0 | CJ17: 67653.8 | CK17: 67653.8 | DA17: 8 | DB17: AMHERST | DC17: 0 | DD17: 0 | DE17: 0 | DF17: 0 | DG17: 0 | DH17: 0 | DI17: 0 | DJ17: 0 | DK17: 0 | DL17: 0 | DN17: 0 | DP17: 36535 | DQ17: 0 | DR17: 36535 | DS17: 0 | DT17: 0 | DV17: 0 | EC17: 0 | EE17: 8
A18: 9 | B18: 9 | C18: ANDOVER | D18: 8 | E18: 195861 | F18: 0 | G18: 9501 | H18: 205362 | J18: 9501 | K18: 29279.2 | L18: 38780.2 | N18: 166581.8 | P18: 9501 | Q18: 0 | R18: 0 | S18: 0 | T18: 29279.2 | U18: 38780.2 | W18: 38780.2 | AA18: 9 | AB18: 8 | AC18: 0.002447980416 | AD18: 0 | AE18: 0 | AF18: 195861 | AG18: 0 | AH18: 0 | AI18: 195861 | AJ18: 0 | AK18: 9501 | AL18: 205362 | AM18: 0 | AN18: 0 | AO18: 0 | AP18: 0 | AQ18: 205362 | AS18: 9 | AT18: 1 | AU18: 0 | AV18: 0 | AW18: 0 | AX18: 0 | AY18: 0 | BA18: 0 | BB18: 0 | BC18: 0 | BD18: 0 | BE18: 0 | BG18: 9 | BH18: 0.1619980555 | BI18: 0 | CA18: 9 | CB18: 9 | CC18: ANDOVER | CD18: 195861 | CE18: 270806 | CF18: 0 | CG18: 0 | CH18: 29279.2 | CI18: 0 | CJ18: 29279.2 | CK18: 29279.2 | DA18: 9 | DB18: ANDOVER | DC18: 0 | DD18: 0 | DE18: 0 | DF18: 0 | DG18: 0 | DH18: 0 | DI18: 0 | DJ18: 0 | DK18: 0 | DL18: 0 | DN18: 0 | DP18: 0 | DQ18: 0 | DR18: 0 | DS18: 0 | DT18: 0 | DV18: 0 | EC18: 0 | EE18: 9
A19: 10 | B19: 10 | C19: ARLINGTON | D19: 18 | E19: 356788 | F19: 0 | G19: 21384 | H19: 378172 | J19: 21384 | K19: 85677.2 | L19: 107061.2 | N19: 271110.8 | P19: 21384 | Q19: 0 | R19: 0 | S19: 0 | T19: 85677.2 | U19: 107061.2 | W19: 107061.2 | AA19: 10 | AB19: 18 | AC19: 0 | AD19: 0 | AE19: 0 | AF19: 356788 | AG19: 0 | AH19: 0 | AI19: 356788 | AJ19: 0 | AK19: 21384 | AL19: 378172 | AM19: 0 | AN19: 0 | AO19: 0 | AP19: 0 | AQ19: 378172 | AS19: 10 | AT19: 4 | AU19: 0 | AV19: 0 | AW19: 0 | AX19: 0 | AY19: 0 | BA19: 0 | BB19: 0 | BC19: 0 | BD19: 0 | BE19: 0 | BG19: 9 | BH19: 0.3291661016 | BI19: 0 | CA19: 10 | CB19: 10 | CC19: ARLINGTON | CD19: 356788 | CE19: 380260 | CF19: 0 | CG19: 32899.2 | CH19: 52778 | CI19: 0 | CJ19: 85677.2 | CK19: 85677.2 | DA19: 10 | DB19: ARLINGTON | DC19: 0 | DD19: 0 | DE19: 0 | DF19: 0 | DG19: 0 | DH19: 0 | DI19: 0 | DJ19: 0 | DK19: 0 | DL19: 0 | DN19: 0 | DP19: 0 | DQ19: 0 | DR19: 0 | DS19: 0 | DT19: 0 | DV19: 0 | EC19: 0 | EE19: 10
A20: 11 | B20: 11 | C20: ASHBURNHAM | D20: 0 | E20: 0 | F20: 0 | G20: 0 | H20: 0 | J20: 0 | K20: 0 | L20: 0 | N20: 0 | P20: 0 | Q20: 0 | R20: 0 | S20: 0 | T20: 0 | U20: 0 | W20: 0 | AA20: 11 | AB20: 0 | AC20: 0 | AD20: 0 | AE20: 0 | AF20: 0 | AG20: 0 | AH20: 0 | AI20: 0 | AJ20: 0 | AK20: 0 | AL20: 0 | AM20: 0 | AN20: 0 | AO20: 0 | AP20: 0 | AQ20: 0 | AS20: 11 | AT20: 0 | AU20: 0 | AV20: 0 | AW20: 0 | AX20: 0 | AY20: 0 | BA20: 0 | BB20: 0 | BC20: 0 | BD20: 0 | BE20: 0 | BG20: 0 | BH20: 0 | BI20: 0 | CA20: 11 | CB20: 11 | CC20: ASHBURNHAM | CD20: 0 | CE20: 0 | CF20: 0 | CG20: 0 | CH20: 0 | CI20: 0 | CJ20: 0 | CK20: 0 | DA20: 11 | DB20: ASHBURNHAM | DC20: 0 | DD20: 0 | DE20: 0 | DF20: 0 | DG20: 0 | DH20: 0 | DI20: 0 | DJ20: 0 | DK20: 0 | DL20: 0 | DN20: 0 | DP20: 0 | DQ20: 0 | DR20: 0 | DS20: 0 | DT20: 0 | DV20: 0 | EC20: 0 | EE20: 11
A21: 12 | B21: 12 | C21: ASHBY | D21: 0 | E21: 0 | F21: 0 | G21: 0 | H21: 0 | J21: 0 | K21: 0 | L21: 0 | N21: 0 | P21: 0 | Q21: 0 | R21: 0 | S21: 0 | T21: 0 | U21: 0 | W21: 0 | AA21: 12 | AB21: 0 | AC21: 0 | AD21: 0 | AE21: 0 | AF21: 0 | AG21: 0 | AH21: 0 | AI21: 0 | AJ21: 0 | AK21: 0 | AL21: 0 | AM21: 0 | AN21: 0 | AO21: 0 | AP21: 0 | AQ21: 0 | AS21: 12 | AT21: 0 | AU21: 0 | AV21: 0 | AW21: 0 | AX21: 0 | AY21: 0 | BA21: 0 | BB21: 0 | BC21: 0 | BD21: 0 | BE21: 0 | BG21: 0 | BH21: 0 | BI21: 0 | CA21: 12 | CB21: 12 | CC21: ASHBY | CD21: 0 | CE21: 0 | CF21: 0 | CG21: 0 | CH21: 0 | CI21: 0 | CJ21: 0 | CK21: 0 | DA21: 12 | DB21: ASHBY | DC21: 0 | DD21: 0 | DE21: 0 | DF21: 0 | DG21: 0 | DH21: 0 | DI21: 0 | DJ21: 0 | DK21: 0 | DL21: 0 | DN21: 0 | DP21: 0 | DQ21: 0 | DR21: 0 | DS21: 0 | DT21: 0 | DV21: 0 | EC21: 0 | EE21: 12
A22: 13 | B22: 13 | C22: ASHFIELD | D22: 0 | E22: 0 | F22: 0 | G22: 0 | H22: 0 | J22: 0 | K22: 0 | L22: 0 | N22: 0 | P22: 0 | Q22: 0 | R22: 0 | S22: 0 | T22: 0 | U22: 0 | W22: 0 | AA22: 13 | AB22: 0 | AC22: 0 | AD22: 0 | AE22: 0 | AF22: 0 | AG22: 0 | AH22: 0 | AI22: 0 | AJ22: 0 | AK22: 0 | AL22: 0 | AM22: 0 | AN22: 0 | AO22: 0 | AP22: 0 | AQ22: 0 | AS22: 13 | AT22: 0 | AU22: 0 | AV22: 0 | AW22: 0 | AX22: 0 | AY22: 0 | BA22: 0 | BB22: 0 | BC22: 0 | BD22: 0 | BE22: 0 | BG22: 0 | BH22: 0 | BI22: 0 | CA22: 13 | CB22: 13 | CC22: ASHFIELD | CD22: 0 | CE22: 0 | CF22: 0 | CG22: 0 | CH22: 0 | CI22: 0 | CJ22: 0 | CK22: 0 | DA22: 13 | DB22: ASHFIELD | DC22: 0 | DD22: 0 | DE22: 0 | DF22: 0 | DG22: 0 | DH22: 0 | DI22: 0 | DJ22: 0 | DK22: 0 | DL22: 0 | DN22: 0 | DP22: 0 | DQ22: 0 | DR22: 0 | DS22: 0 | DT22: 0 | DV22: 0 | EC22: 0 | EE22: 13
A23: 14 | B23: 14 | C23: ASHLAND | D23: 1 | E23: 15726 | F23: 0 | G23: 1188 | H23: 16914 | J23: 1188 | K23: 0 | L23: 1188 | N23: 15726 | P23: 1188 | Q23: 0 | R23: 0 | S23: 0 | T23: 0 | U23: 1188 | W23: 1188 | AA23: 14 | AB23: 1 | AC23: 0 | AD23: 0 | AE23: 0 | AF23: 15726 | AG23: 0 | AH23: 0 | AI23: 15726 | AJ23: 0 | AK23: 1188 | AL23: 16914 | AM23: 0 | AN23: 0 | AO23: 0 | AP23: 0 | AQ23: 16914 | AS23: 14 | AT23: 0 | AU23: 0 | AV23: 0 | AW23: 0 | AX23: 0 | AY23: 0 | BA23: 0 | BB23: 0 | BC23: 0 | BD23: 0 | BE23: 0 | BG23: 9 | BH23: 0.03464880413 | BI23: 0 | CA23: 14 | CB23: 14 | CC23: ASHLAND | CD23: 15726 | CE23: 24192 | CF23: 0 | CG23: 0 | CH23: 0 | CI23: 0 | CJ23: 0 | CK23: 0 | DA23: 14 | DB23: ASHLAND | DC23: 0 | DD23: 0 | DE23: 0 | DF23: 0 | DG23: 0 | DH23: 0 | DI23: 0 | DJ23: 0 | DK23: 0 | DL23: 0 | DN23: 0 | DP23: 0 | DQ23: 0 | DR23: 0 | DS23: 0 | DT23: 0 | DV23: 0 | EC23: 0 | EE23: 14
A24: 15 | B24: 15 | C24: ATHOL | D24: 0 | E24: 0 | F24: 0 | G24: 0 | H24: 0 | J24: 0 | K24: 0 | L24: 0 | N24: 0 | P24: 0 | Q24: 0 | R24: 0 | S24: 0 | T24: 0 | U24: 0 | W24: 0 | AA24: 15 | AB24: 0 | AC24: 0 | AD24: 0 | AE24: 0 | AF24: 0 | AG24: 0 | AH24: 0 | AI24: 0 | AJ24: 0 | AK24: 0 | AL24: 0 | AM24: 0 | AN24: 0 | AO24: 0 | AP24: 0 | AQ24: 0 | AS24: 15 | AT24: 0 | AU24: 0 | AV24: 0 | AW24: 0 | AX24: 0 | AY24: 0 | BA24: 0 | BB24: 0 | BC24: 0 | BD24: 0 | BE24: 0 | BG24: 0 | BH24: 0 | BI24: 0 | CA24: 15 | CB24: 15 | CC24: ATHOL | CD24: 0 | CE24: 0 | CF24: 0 | CG24: 0 | CH24: 0 | CI24: 0 | CJ24: 0 | CK24: 0 | DA24: 15 | DB24: ATHOL | DC24: 0 | DD24: 0 | DE24: 0 | DF24: 0 | DG24: 0 | DH24: 0 | DI24: 0 | DJ24: 0 | DK24: 0 | DL24: 0 | DN24: 0 | DP24: 0 | DQ24: 0 | DR24: 0 | DS24: 0 | DT24: 0 | DV24: 0 | EC24: 0 | EE24: 15
A25: 16 | B25: 16 | C25: ATTLEBORO | D25: 209 | E25: 2968932 | F25: 0 | G25: 248250 | H25: 3217182 | J25: 248250 | K25: 0 | L25: 248250 | N25: 2968932 | P25: 248250 | Q25: 0 | R25: 0 | S25: 0 | T25: 0 | U25: 248250 | W25: 248250 | AA25: 16 | AB25: 209 | AC25: 0.03504672897 | AD25: 0 | AE25: 0 | AF25: 2968932 | AG25: 0 | AH25: 0 | AI25: 2968932 | AJ25: 0 | AK25: 248250 | AL25: 3217182 | AM25: 0 | AN25: 0 | AO25: 0 | AP25: 0 | AQ25: 3217182 | AS25: 16 | AT25: 28 | AU25: 0 | AV25: 0 | AW25: 0 | AX25: 0 | AY25: 0 | BA25: 0 | BB25: 0 | BC25: 0 | BD25: 0 | BE25: 0 | BG25: 9 | BH25: 3.022807317 | BI25: 0 | CA25: 16 | CB25: 16 | CC25: ATTLEBORO | CD25: 2968932 | CE25: 3380985 | CF25: 0 | CG25: 0 | CH25: 0 | CI25: 0 | CJ25: 0 | CK25: 0 | DA25: 16 | DB25: ATTLEBORO | DC25: 0 | DD25: 0 | DE25: 0 | DF25: 0 | DG25: 0 | DH25: 0 | DI25: 0 | DJ25: 0 | DK25: 0 | DL25: 0 | DN25: 0 | DP25: 0 | DQ25: 0 | DR25: 0 | DS25: 0 | DT25: 0 | DV25: 0 | EC25: 0 | EE25: 16
A26: 17 | B26: 17 | C26: AUBURN | D26: 6 | E26: 118325 | F26: 0 | G26: 7049 | H26: 125374 | J26: 7049 | K26: 37881 | L26: 44930 | N26: 80444 | P26: 7049 | Q26: 0 | R26: 0 | S26: 0 | T26: 37881 | U26: 44930 | W26: 44930 | AA26: 17 | AB26: 6 | AC26: 0.06617647059 | AD26: 0 | AE26: 0 | AF26: 118325 | AG26: 0 | AH26: 0 | AI26: 118325 | AJ26: 0 | AK26: 7049 | AL26: 125374 | AM26: 0 | AN26: 0 | AO26: 0 | AP26: 0 | AQ26: 125374 | AS26: 17 | AT26: 2 | AU26: 0 | AV26: 0 | AW26: 0 | AX26: 0 | AY26: 0 | BA26: 0 | BB26: 0 | BC26: 0 | BD26: 0 | BE26: 0 | BG26: 9 | BH26: 0.3068424875 | BI26: 0 | CA26: 17 | CB26: 17 | CC26: AUBURN | CD26: 118325 | CE26: 80444 | CF26: 37881 | CG26: 0 | CH26: 0 | CI26: 0 | CJ26: 37881 | CK26: 37881 | DA26: 17 | DB26: AUBURN | DC26: 0 | DD26: 0 | DE26: 0 | DF26: 0 | DG26: 0 | DH26: 0 | DI26: 0 | DJ26: 0 | DK26: 0 | DL26: 0 | DN26: 0 | DP26: 37881 | DQ26: 0 | DR26: 37881 | DS26: 0 | DT26: 0 | DV26: 0 | EC26: 0 | EE26: 17
A27: 18 | B27: 18 | C27: AVON | D27: 12 | E27: 271620 | F27: 0 | G27: 14256 | H27: 285876 | J27: 14256 | K27: 81096.6 | L27: 95352.6 | N27: 190523.4 | P27: 14256 | Q27: 0 | R27: 0 | S27: 0 | T27: 81096.6 | U27: 95352.6 | W27: 95352.6 | AA27: 18 | AB27: 12 | AC27: 0 | AD27: 0 | AE27: 0 | AF27: 271620 | AG27: 0 | AH27: 0 | AI27: 271620 | AJ27: 0 | AK27: 14256 | AL27: 285876 | AM27: 0 | AN27: 0 | AO27: 0 | AP27: 0 | AQ27: 285876 | AS27: 18 | AT27: 6 | AU27: 0 | AV27: 0 | AW27: 0 | AX27: 0 | AY27: 0 | BA27: 0 | BB27: 0 | BC27: 0 | BD27: 0 | BE27: 0 | BG27: 9 | BH27: 2.110828293 | BI27: 0 | CA27: 18 | CB27: 18 | CC27: AVON | CD27: 271620 | CE27: 493569 | CF27: 0 | CG27: 81096.6 | CH27: 0 | CI27: 0 | CJ27: 81096.6 | CK27: 81096.6 | DA27: 18 | DB27: AVON | DC27: 0 | DD27: 0 | DE27: 0 | DF27: 0 | DG27: 0 | DH27: 0 | DI27: 0 | DJ27: 0 | DK27: 0 | DL27: 0 | DN27: 0 | DP27: 0 | DQ27: 0 | DR27: 0 | DS27: 0 | DT27: 0 | DV27: 0 | EC27: 0 | EE27: 18
A28: 19 | B28: 19 | C28: AYER | D28: 0 | E28: 0 | F28: 0 | G28: 0 | H28: 0 | J28: 0 | K28: 0 | L28: 0 | N28: 0 | P28: 0 | Q28: 0 | R28: 0 | S28: 0 | T28: 0 | U28: 0 | W28: 0 | AA28: 19 | AB28: 0 | AC28: 0 | AD28: 0 | AE28: 0 | AF28: 0 | AG28: 0 | AH28: 0 | AI28: 0 | AJ28: 0 | AK28: 0 | AL28: 0 | AM28: 0 | AN28: 0 | AO28: 0 | AP28: 0 | AQ28: 0 | AS28: 19 | AT28: 0 | AU28: 0 | AV28: 0 | AW28: 0 | AX28: 0 | AY28: 0 | BA28: 0 | BB28: 0 | BC28: 0 | BD28: 0 | BE28: 0 | BG28: 0 | BH28: 0 | BI28: 0 | CA28: 19 | CB28: 19 | CC28: AYER | CD28: 0 | CE28: 0 | CF28: 0 | CG28: 0 | CH28: 0 | CI28: 0 | CJ28: 0 | CK28: 0 | DA28: 19 | DB28: AYER | DC28: 0 | DD28: 0 | DE28: 0 | DF28: 0 | DG28: 0 | DH28: 0 | DI28: 0 | DJ28: 0 | DK28: 0 | DL28: 0 | DN28: 0 | DP28: 0 | DQ28: 0 | DR28: 0 | DS28: 0 | DT28: 0 | DV28: 0 | EB28: fy12 | EC28: 0 | EE28: 19
A29: 20 | B29: 20 | C29: BARNSTABLE | D29: 371 | E29: 6079920 | F29: 0 | G29: 439446 | H29: 6519366 | J29: 439446 | K29: 1456440.8 | L29: 1895886.8 | N29: 4623479.2 | P29: 439446 | Q29: 0 | R29: 0 | S29: 0 | T29: 1456440.8 | U29: 1895886.8 | W29: 1895886.8 | AA29: 20 | AB29: 371 | AC29: 1.111553785 | AD29: 0 | AE29: 0 | AF29: 6079920 | AG29: 0 | AH29: 0 | AI29: 6079920 | AJ29: 0 | AK29: 439446 | AL29: 6519366 | AM29: 0 | AN29: 0 | AO29: 0 | AP29: 0 | AQ29: 6519366 | AS29: 20 | AT29: 76 | AU29: 0 | AV29: 0 | AW29: 0 | AX29: 0 | AY29: 0 | BA29: 0 | BB29: 0 | BC29: 0 | BD29: 0 | BE29: 0 | BG29: 9 | BH29: 6.139373675 | BI29: 0 | CA29: 20 | CB29: 20 | CC29: BARNSTABLE | CD29: 6079920 | CE29: 5045484 | CF29: 1034436 | CG29: 193467.6 | CH29: 228537.2 | CI29: 0 | CJ29: 1456440.8 | CK29: 1456440.8 | DA29: 20 | DB29: BARNSTABLE | DC29: 0 | DD29: 0 | DE29: 0 | DF29: 0 | DG29: 0 | DH29: 0 | DI29: 0 | DJ29: 0 | DK29: 0 | DL29: 0 | DN29: 0 | DP29: 1034436 | DQ29: 0 | DR29: 1034436 | DS29: 0 | DT29: 0 | DV29: 0 | EC29: 0 | EE29: 20
A30: 21 | B30: 21 | C30: BARRE | D30: 0 | E30: 0 | F30: 0 | G30: 0 | H30: 0 | J30: 0 | K30: 0 | L30: 0 | N30: 0 | P30: 0 | Q30: 0 | R30: 0 | S30: 0 | T30: 0 | U30: 0 | W30: 0 | AA30: 21 | AB30: 0 | AC30: 0 | AD30: 0 | AE30: 0 | AF30: 0 | AG30: 0 | AH30: 0 | AI30: 0 | AJ30: 0 | AK30: 0 | AL30: 0 | AM30: 0 | AN30: 0 | AO30: 0 | AP30: 0 | AQ30: 0 | AS30: 21 | AT30: 0 | AU30: 0 | AV30: 0 | AW30: 0 | AX30: 0 | AY30: 0 | BA30: 0 | BB30: 0 | BC30: 0 | BD30: 0 | BE30: 0 | BG30: 0 | BH30: 0 | BI30: 0 | CA30: 21 | CB30: 21 | CC30: BARRE | CD30: 0 | CE30: 0 | CF30: 0 | CG30: 0 | CH30: 0 | CI30: 0 | CJ30: 0 | CK30: 0 | DA30: 21 | DB30: BARRE | DC30: 0 | DD30: 0 | DE30: 0 | DF30: 0 | DG30: 0 | DH30: 0 | DI30: 0 | DJ30: 0 | DK30: 0 | DL30: 0 | DN30: 0 | DP30: 0 | DQ30: 0 | DR30: 0 | DS30: 0 | DT30: 0 | DV30: 0 | EC30: 0 | EE30: 21
A31: 22 | B31: 22 | C31: BECKET | D31: 0 | E31: 0 | F31: 0 | G31: 0 | H31: 0 | J31: 0 | K31: 0 | L31: 0 | N31: 0 | P31: 0 | Q31: 0 | R31: 0 | S31: 0 | T31: 0 | U31: 0 | W31: 0 | AA31: 22 | AB31: 0 | AC31: 0 | AD31: 0 | AE31: 0 | AF31: 0 | AG31: 0 | AH31: 0 | AI31: 0 | AJ31: 0 | AK31: 0 | AL31: 0 | AM31: 0 | AN31: 0 | AO31: 0 | AP31: 0 | AQ31: 0 | AS31: 22 | AT31: 0 | AU31: 0 | AV31: 0 | AW31: 0 | AX31: 0 | AY31: 0 | BA31: 0 | BB31: 0 | BC31: 0 | BD31: 0 | BE31: 0 | BG31: 0 | BH31: 0 | BI31: 0 | CA31: 22 | CB31: 22 | CC31: BECKET | CD31: 0 | CE31: 0 | CF31: 0 | CG31: 0 | CH31: 0 | CI31: 0 | CJ31: 0 | CK31: 0 | DA31: 22 | DB31: BECKET | DC31: 0 | DD31: 0 | DE31: 0 | DF31: 0 | DG31: 0 | DH31: 0 | DI31: 0 | DJ31: 0 | DK31: 0 | DL31: 0 | DN31: 0 | DP31: 0 | DQ31: 0 | DR31: 0 | DS31: 0 | DT31: 0 | DV31: 0 | EC31: 0 | EE31: 22
A32: 23 | B32: 23 | C32: BEDFORD | D32: 0 | E32: 0 | F32: 0 | G32: 0 | H32: 0 | J32: 0 | K32: 2488 | L32: 2488 | N32: -2488 | P32: 0 | Q32: 0 | R32: 0 | S32: 0 | T32: 2488 | U32: 2488 | W32: 2488 | AA32: 23 | AB32: 0 | AC32: 0 | AD32: 0 | AE32: 0 | AF32: 0 | AG32: 0 | AH32: 0 | AI32: 0 | AJ32: 0 | AK32: 0 | AL32: 0 | AM32: 0 | AN32: 0 | AO32: 0 | AP32: 0 | AQ32: 0 | AS32: 23 | AT32: 0 | AU32: 0 | AV32: 0 | AW32: 0 | AX32: 0 | AY32: 0 | BA32: 0 | BB32: 0 | BC32: 0 | BD32: 0 | BE32: 0 | BG32: 0 | BH32: 0 | BI32: 0 | CA32: 23 | CB32: 23 | CC32: BEDFORD | CD32: 0 | CE32: 19262 | CF32: 0 | CG32: 0 | CH32: 2488 | CI32: 0 | CJ32: 2488 | CK32: 2488 | DA32: 23 | DB32: BEDFORD | DC32: 0 | DD32: 0 | DE32: 0 | DF32: 0 | DG32: 0 | DH32: 0 | DI32: 0 | DJ32: 0 | DK32: 0 | DL32: 0 | DN32: 0 | DP32: 0 | DQ32: 0 | DR32: 0 | DS32: 0 | DT32: 0 | DV32: 0 | EC32: 0 | EE32: 23
A33: 24 | B33: 24 | C33: BELCHERTOWN | D33: 35 | E33: 520838 | F33: 0 | G33: 41580 | H33: 562418 | J33: 41580 | K33: 6573.2 | L33: 48153.2 | N33: 514264.8 | P33: 41580 | Q33: 0 | R33: 0 | S33: 0 | T33: 6573.2 | U33: 48153.2 | W33: 48153.2 | AA33: 24 | AB33: 35 | AC33: 0 | AD33: 0 | AE33: 0 | AF33: 520838 | AG33: 0 | AH33: 0 | AI33: 520838 | AJ33: 0 | AK33: 41580 | AL33: 562418 | AM33: 0 | AN33: 0 | AO33: 0 | AP33: 0 | AQ33: 562418 | AS33: 24 | AT33: 3 | AU33: 0 | AV33: 0 | AW33: 0 | AX33: 0 | AY33: 0 | BA33: 0 | BB33: 0 | BC33: 0 | BD33: 0 | BE33: 0 | BG33: 9 | BH33: 1.572626707 | BI33: 0 | CA33: 24 | CB33: 24 | CC33: BELCHERTOWN | CD33: 520838 | CE33: 558800 | CF33: 0 | CG33: 0 | CH33: 6573.2 | CI33: 0 | CJ33: 6573.2 | CK33: 6573.2 | DA33: 24 | DB33: BELCHERTOWN | DC33: 0 | DD33: 0 | DE33: 0 | DF33: 0 | DG33: 0 | DH33: 0 | DI33: 0 | DJ33: 0 | DK33: 0 | DL33: 0 | DN33: 0 | DP33: 0 | DQ33: 0 | DR33: 0 | DS33: 0 | DT33: 0 | DV33: 0 | EC33: 0 | EE33: 24
A34: 25 | B34: 25 | C34: BELLINGHAM | D34: 181 | E34: 3177637 | F34: 0 | G34: 215028 | H34: 3392665 | J34: 215028 | K34: 555828 | L34: 770856 | N34: 2621809 | P34: 215028 | Q34: 0 | R34: 0 | S34: 0 | T34: 555828 | U34: 770856 | W34: 770856 | AA34: 25 | AB34: 181 | AC34: 0 | AD34: 0 | AE34: 0 | AF34: 3177637 | AG34: 0 | AH34: 0 | AI34: 3177637 | AJ34: 0 | AK34: 215028 | AL34: 3392665 | AM34: 0 | AN34: 0 | AO34: 0 | AP34: 0 | AQ34: 3392665 | AS34: 25 | AT34: 47 | AU34: 0 | AV34: 0 | AW34: 0 | AX34: 0 | AY34: 0 | BA34: 0 | BB34: 0 | BC34: 0 | BD34: 0 | BE34: 0 | BG34: 9 | BH34: 7.590359417 | BI34: 0 | CA34: 25 | CB34: 25 | CC34: BELLINGHAM | CD34: 3177637 | CE34: 3013539 | CF34: 164098 | CG34: 232843.2 | CH34: 158886.8 | CI34: 0 | CJ34: 555828 | CK34: 555828 | DA34: 25 | DB34: BELLINGHAM | DC34: 0 | DD34: 0 | DE34: 0 | DF34: 0 | DG34: 0 | DH34: 0 | DI34: 0 | DJ34: 0 | DK34: 0 | DL34: 0 | DN34: 0 | DP34: 164098 | DQ34: 0 | DR34: 164098 | DS34: 0 | DT34: 0 | DV34: 0 | EC34: 0 | EE34: 25
A35: 26 | B35: 26 | C35: BELMONT | D35: 7 | E35: 131997 | F35: 0 | G35: 8316 | H35: 140313 | J35: 8316 | K35: 48705.8 | L35: 57021.8 | N35: 83291.2 | P35: 8316 | Q35: 0 | R35: 0 | S35: 0 | T35: 48705.8 | U35: 57021.8 | W35: 57021.8 | AA35: 26 | AB35: 7 | AC35: 0 | AD35: 0 | AE35: 0 | AF35: 131997 | AG35: 0 | AH35: 0 | AI35: 131997 | AJ35: 0 | AK35: 8316 | AL35: 140313 | AM35: 0 | AN35: 0 | AO35: 0 | AP35: 0 | AQ35: 140313 | AS35: 26 | AT35: 2 | AU35: 0 | AV35: 0 | AW35: 0 | AX35: 0 | AY35: 0 | BA35: 0 | BB35: 0 | BC35: 0 | BD35: 0 | BE35: 0 | BG35: 9 | BH35: 0.1683579775 | BI35: 0 | CA35: 26 | CB35: 26 | CC35: BELMONT | CD35: 131997 | CE35: 114126 | CF35: 17871 | CG35: 22698 | CH35: 8136.8 | CI35: 0 | CJ35: 48705.8 | CK35: 48705.8 | DA35: 26 | DB35: BELMONT | DC35: 0 | DD35: 0 | DE35: 0 | DF35: 0 | DG35: 0 | DH35: 0 | DI35: 0 | DJ35: 0 | DK35: 0 | DL35: 0 | DN35: 0 | DP35: 17871 | DQ35: 0 | DR35: 17871 | DS35: 0 | DT35: 0 | DV35: 0 | EC35: 0 | EE35: 26
A36: 27 | B36: 27 | C36: BERKLEY | D36: 0 | E36: 0 | F36: 0 | G36: 0 | H36: 0 | J36: 0 | K36: 0 | L36: 0 | N36: 0 | P36: 0 | Q36: 0 | R36: 0 | S36: 0 | T36: 0 | U36: 0 | W36: 0 | AA36: 27 | AB36: 0 | AC36: 0 | AD36: 0 | AE36: 0 | AF36: 0 | AG36: 0 | AH36: 0 | AI36: 0 | AJ36: 0 | AK36: 0 | AL36: 0 | AM36: 0 | AN36: 0 | AO36: 0 | AP36: 0 | AQ36: 0 | AS36: 27 | AT36: 0 | AU36: 0 | AV36: 0 | AW36: 0 | AX36: 0 | AY36: 0 | BA36: 0 | BB36: 0 | BC36: 0 | BD36: 0 | BE36: 0 | BG36: 0 | BH36: 0 | BI36: 0 | CA36: 27 | CB36: 27 | CC36: BERKLEY | CD36: 0 | CE36: 0 | CF36: 0 | CG36: 0 | CH36: 0 | CI36: 0 | CJ36: 0 | CK36: 0 | DA36: 27 | DB36: BERKLEY | DC36: 0 | DD36: 0 | DE36: 0 | DF36: 0 | DG36: 0 | DH36: 0 | DI36: 0 | DJ36: 0 | DK36: 0 | DL36: 0 | DN36: 0 | DP36: 0 | DQ36: 0 | DR36: 0 | DS36: 0 | DT36: 0 | DV36: 0 | EB36: fy12 | EC36: 0 | EE36: 27
A37: 28 | B37: 28 | C37: BERLIN | D37: 0 | E37: 0 | F37: 0 | G37: 0 | H37: 0 | J37: 0 | K37: 0 | L37: 0 | N37: 0 | P37: 0 | Q37: 0 | R37: 0 | S37: 0 | T37: 0 | U37: 0 | W37: 0 | AA37: 28 | AB37: 0 | AC37: 0 | AD37: 0 | AE37: 0 | AF37: 0 | AG37: 0 | AH37: 0 | AI37: 0 | AJ37: 0 | AK37: 0 | AL37: 0 | AM37: 0 | AN37: 0 | AO37: 0 | AP37: 0 | AQ37: 0 | AS37: 28 | AT37: 0 | AU37: 0 | AV37: 0 | AW37: 0 | AX37: 0 | AY37: 0 | BA37: 0 | BB37: 0 | BC37: 0 | BD37: 0 | BE37: 0 | BG37: 0 | BH37: 0 | BI37: 0 | CA37: 28 | CB37: 28 | CC37: BERLIN | CD37: 0 | CE37: 0 | CF37: 0 | CG37: 0 | CH37: 0 | CI37: 0 | CJ37: 0 | CK37: 0 | DA37: 28 | DB37: BERLIN | DC37: 0 | DD37: 0 | DE37: 0 | DF37: 0 | DG37: 0 | DH37: 0 | DI37: 0 | DJ37: 0 | DK37: 0 | DL37: 0 | DN37: 0 | DP37: 0 | DQ37: 0 | DR37: 0 | DS37: 0 | DT37: 0 | DV37: 0 | EB37: fy20 | EC37: 0 | EE37: 28
A38: 29 | B38: 29 | C38: BERNARDSTON | D38: 0 | E38: 0 | F38: 0 | G38: 0 | H38: 0 | J38: 0 | K38: 0 | L38: 0 | N38: 0 | P38: 0 | Q38: 0 | R38: 0 | S38: 0 | T38: 0 | U38: 0 | W38: 0 | AA38: 29 | AB38: 0 | AC38: 0 | AD38: 0 | AE38: 0 | AF38: 0 | AG38: 0 | AH38: 0 | AI38: 0 | AJ38: 0 | AK38: 0 | AL38: 0 | AM38: 0 | AN38: 0 | AO38: 0 | AP38: 0 | AQ38: 0 | AS38: 29 | AT38: 0 | AU38: 0 | AV38: 0 | AW38: 0 | AX38: 0 | AY38: 0 | BA38: 0 | BB38: 0 | BC38: 0 | BD38: 0 | BE38: 0 | BG38: 0 | BH38: 0 | BI38: 0 | CA38: 29 | CB38: 29 | CC38: BERNARDSTON | CD38: 0 | CE38: 0 | CF38: 0 | CG38: 0 | CH38: 0 | CI38: 0 | CJ38: 0 | CK38: 0 | DA38: 29 | DB38: BERNARDSTON | DC38: 0 | DD38: 0 | DE38: 0 | DF38: 0 | DG38: 0 | DH38: 0 | DI38: 0 | DJ38: 0 | DK38: 0 | DL38: 0 | DN38: 0 | DP38: 0 | DQ38: 0 | DR38: 0 | DS38: 0 | DT38: 0 | DV38: 0 | EC38: 0 | EE38: 29
A39: 30 | B39: 30 | C39: BEVERLY | D39: 17 | E39: 311792 | F39: 0 | G39: 20146 | H39: 331938 | J39: 20146 | K39: 97529.2 | L39: 117675.2 | N39: 214262.8 | P39: 20146 | Q39: 0 | R39: 0 | S39: 0 | T39: 97529.2 | U39: 117675.2 | W39: 117675.2 | AA39: 30 | AB39: 17 | AC39: 0.04285775714 | AD39: 0 | AE39: 0 | AF39: 311792 | AG39: 0 | AH39: 0 | AI39: 311792 | AJ39: 0 | AK39: 20146 | AL39: 331938 | AM39: 0 | AN39: 0 | AO39: 0 | AP39: 0 | AQ39: 331938 | AS39: 30 | AT39: 3 | AU39: 0 | AV39: 0 | AW39: 0 | AX39: 0 | AY39: 0 | BA39: 0 | BB39: 0 | BC39: 0 | BD39: 0 | BE39: 0 | BG39: 9 | BH39: 0.4128299245 | BI39: 0 | CA39: 30 | CB39: 30 | CC39: BEVERLY | CD39: 311792 | CE39: 309581 | CF39: 2211 | CG39: 76356.6 | CH39: 18961.6 | CI39: 0 | CJ39: 97529.2 | CK39: 97529.2 | DA39: 30 | DB39: BEVERLY | DC39: 0 | DD39: 0 | DE39: 0 | DF39: 0 | DG39: 0 | DH39: 0 | DI39: 0 | DJ39: 0 | DK39: 0 | DL39: 0 | DN39: 0 | DP39: 2211 | DQ39: 0 | DR39: 2211 | DS39: 0 | DT39: 0 | DV39: 0 | EC39: 0 | EE39: 30
A40: 31 | B40: 31 | C40: BILLERICA | D40: 90 | E40: 1685718 | F40: 0 | G40: 106825 | H40: 1792543 | J40: 106825 | K40: 139756.2 | L40: 246581.2 | N40: 1545961.8 | P40: 106825 | Q40: 0 | R40: 0 | S40: 0 | T40: 139756.2 | U40: 246581.2 | W40: 246581.2 | AA40: 31 | AB40: 90 | AC40: 0.07827169753 | AD40: 0 | AE40: 0 | AF40: 1685718 | AG40: 0 | AH40: 0 | AI40: 1685718 | AJ40: 0 | AK40: 106825 | AL40: 1792543 | AM40: 0 | AN40: 0 | AO40: 0 | AP40: 0 | AQ40: 1792543 | AS40: 31 | AT40: 20 | AU40: 0 | AV40: 0 | AW40: 0 | AX40: 0 | AY40: 0 | BA40: 0 | BB40: 0 | BC40: 0 | BD40: 0 | BE40: 0 | BG40: 9 | BH40: 1.913822244 | BI40: 0 | CA40: 31 | CB40: 31 | CC40: BILLERICA | CD40: 1685718 | CE40: 1659348 | CF40: 26370 | CG40: 113386.2 | CH40: 0 | CI40: 0 | CJ40: 139756.2 | CK40: 139756.2 | DA40: 31 | DB40: BILLERICA | DC40: 0 | DD40: 0 | DE40: 0 | DF40: 0 | DG40: 0 | DH40: 0 | DI40: 0 | DJ40: 0 | DK40: 0 | DL40: 0 | DN40: 0 | DP40: 26370 | DQ40: 0 | DR40: 26370 | DS40: 0 | DT40: 0 | DV40: 0 | EC40: 0 | EE40: 31
A41: 32 | B41: 32 | C41: BLACKSTONE | D41: 0 | E41: 0 | F41: 0 | G41: 0 | H41: 0 | J41: 0 | K41: 0 | L41: 0 | N41: 0 | P41: 0 | Q41: 0 | R41: 0 | S41: 0 | T41: 0 | U41: 0 | W41: 0 | AA41: 32 | AB41: 0 | AC41: 0 | AD41: 0 | AE41: 0 | AF41: 0 | AG41: 0 | AH41: 0 | AI41: 0 | AJ41: 0 | AK41: 0 | AL41: 0 | AM41: 0 | AN41: 0 | AO41: 0 | AP41: 0 | AQ41: 0 | AS41: 32 | AT41: 0 | AU41: 0 | AV41: 0 | AW41: 0 | AX41: 0 | AY41: 0 | BA41: 0 | BB41: 0 | BC41: 0 | BD41: 0 | BE41: 0 | BG41: 0 | BH41: 0 | BI41: 0 | CA41: 32 | CB41: 32 | CC41: BLACKSTONE | CD41: 0 | CE41: 0 | CF41: 0 | CG41: 0 | CH41: 0 | CI41: 0 | CJ41: 0 | CK41: 0 | DA41: 32 | DB41: BLACKSTONE | DC41: 0 | DD41: 0 | DE41: 0 | DF41: 0 | DG41: 0 | DH41: 0 | DI41: 0 | DJ41: 0 | DK41: 0 | DL41: 0 | DN41: 0 | DP41: 0 | DQ41: 0 | DR41: 0 | DS41: 0 | DT41: 0 | DV41: 0 | EC41: 0 | EE41: 32
A42: 33 | B42: 33 | C42: BLANDFORD | D42: 0 | E42: 0 | F42: 0 | G42: 0 | H42: 0 | J42: 0 | K42: 0 | L42: 0 | N42: 0 | P42: 0 | Q42: 0 | R42: 0 | S42: 0 | T42: 0 | U42: 0 | W42: 0 | AA42: 33 | AB42: 0 | AC42: 0 | AD42: 0 | AE42: 0 | AF42: 0 | AG42: 0 | AH42: 0 | AI42: 0 | AJ42: 0 | AK42: 0 | AL42: 0 | AM42: 0 | AN42: 0 | AO42: 0 | AP42: 0 | AQ42: 0 | AS42: 33 | AT42: 0 | AU42: 0 | AV42: 0 | AW42: 0 | AX42: 0 | AY42: 0 | BA42: 0 | BB42: 0 | BC42: 0 | BD42: 0 | BE42: 0 | BG42: 0 | BH42: 0 | BI42: 0 | CA42: 33 | CB42: 33 | CC42: BLANDFORD | CD42: 0 | CE42: 0 | CF42: 0 | CG42: 0 | CH42: 0 | CI42: 0 | CJ42: 0 | CK42: 0 | DA42: 33 | DB42: BLANDFORD | DC42: 0 | DD42: 0 | DE42: 0 | DF42: 0 | DG42: 0 | DH42: 0 | DI42: 0 | DJ42: 0 | DK42: 0 | DL42: 0 | DN42: 0 | DP42: 0 | DQ42: 0 | DR42: 0 | DS42: 0 | DT42: 0 | DV42: 0 | EC42: 0 | EE42: 33
A43: 34 | B43: 34 | C43: BOLTON | D43: 0 | E43: 0 | F43: 0 | G43: 0 | H43: 0 | J43: 0 | K43: 0 | L43: 0 | N43: 0 | P43: 0 | Q43: 0 | R43: 0 | S43: 0 | T43: 0 | U43: 0 | W43: 0 | AA43: 34 | AB43: 0 | AC43: 0 | AD43: 0 | AE43: 0 | AF43: 0 | AG43: 0 | AH43: 0 | AI43: 0 | AJ43: 0 | AK43: 0 | AL43: 0 | AM43: 0 | AN43: 0 | AO43: 0 | AP43: 0 | AQ43: 0 | AS43: 34 | AT43: 0 | AU43: 0 | AV43: 0 | AW43: 0 | AX43: 0 | AY43: 0 | BA43: 0 | BB43: 0 | BC43: 0 | BD43: 0 | BE43: 0 | BG43: 0 | BH43: 0 | BI43: 0 | CA43: 34 | CB43: 34 | CC43: BOLTON | CD43: 0 | CE43: 0 | CF43: 0 | CG43: 0 | CH43: 0 | CI43: 0 | CJ43: 0 | CK43: 0 | DA43: 34 | DB43: BOLTON | DC43: 0 | DD43: 0 | DE43: 0 | DF43: 0 | DG43: 0 | DH43: 0 | DI43: 0 | DJ43: 0 | DK43: 0 | DL43: 0 | DN43: 0 | DP43: 0 | DQ43: 0 | DR43: 0 | DS43: 0 | DT43: 0 | DV43: 0 | EC43: 0 | EE43: 34
A44: 35 | B44: 35 | C44: BOSTON | D44: 10270 | E44: 255593627 | F44: 283969 | G44: 12172833 | H44: 268050429 | J44: 12172833 | K44: 33178788 | L44: 45351621 | N44: 222698808 | P44: 12172833 | Q44: 0 | R44: 0 | S44: 0 | T44: 33178788 | U44: 45351621 | W44: 45351621 | AA44: 35 | AB44: 10270 | AC44: 31.49640416 | AD44: 0 | AE44: 0 | AF44: 255389304 | AG44: 0 | AH44: 0 | AI44: 255389304 | AJ44: 0 | AK44: 12163062 | AL44: 267552366 | AM44: 0 | AN44: 0 | AO44: 0 | AP44: 0 | AQ44: 267552366 | AS44: 35 | AT44: 2683 | AU44: 0 | AV44: 0 | AW44: 0 | AX44: 0 | AY44: 0 | BA44: 0 | BB44: 0 | BC44: 0 | BD44: 0 | BE44: 0 | BG44: 18 | BH44: 16.74255461 | BI44: 0 | CA44: 35 | CB44: 35 | CC44: BOSTON | CD44: 255593627 | CE44: 238644754 | CF44: 16948873 | CG44: 11400565.8 | CH44: 4829349.2 | CI44: 0 | CJ44: 33178788 | CK44: 33178788 | DA44: 35 | DB44: BOSTON | DC44: 8.98 | DD44: 204323 | DE44: 0 | DF44: 9771 | DG44: 214094 | DH44: 0 | DI44: 0 | DJ44: 0 | DK44: 0 | DL44: 214094 | DN44: 9771 | DP44: 16948873 | DQ44: 0 | DR44: 16948873 | DS44: 204323 | DT44: 0 | DV44: 0 | EC44: 204323 | EE44: 35
A45: 36 | B45: 36 | C45: BOURNE | D45: 110 | E45: 2225846 | F45: 0 | G45: 130644 | H45: 2356490 | J45: 130644 | K45: 170234 | L45: 300878 | N45: 2055612 | P45: 130644 | Q45: 0 | R45: 0 | S45: 0 | T45: 170234 | U45: 300878 | W45: 300878 | AA45: 36 | AB45: 110 | AC45: 0.02888086643 | AD45: 0 | AE45: 0 | AF45: 2225846 | AG45: 0 | AH45: 0 | AI45: 2225846 | AJ45: 0 | AK45: 130644 | AL45: 2356490 | AM45: 0 | AN45: 0 | AO45: 0 | AP45: 0 | AQ45: 2356490 | AS45: 36 | AT45: 30 | AU45: 0 | AV45: 0 | AW45: 0 | AX45: 0 | AY45: 0 | BA45: 0 | BB45: 0 | BC45: 0 | BD45: 0 | BE45: 0 | BG45: 9 | BH45: 6.509232761 | BI45: 0 | CA45: 36 | CB45: 36 | CC45: BOURNE | CD45: 2225846 | CE45: 2055612 | CF45: 170234 | CG45: 0 | CH45: 0 | CI45: 0 | CJ45: 170234 | CK45: 170234 | DA45: 36 | DB45: BOURNE | DC45: 0 | DD45: 0 | DE45: 0 | DF45: 0 | DG45: 0 | DH45: 0 | DI45: 0 | DJ45: 0 | DK45: 0 | DL45: 0 | DN45: 0 | DP45: 170234 | DQ45: 0 | DR45: 170234 | DS45: 0 | DT45: 0 | DV45: 0 | EC45: 0 | EE45: 36
A46: 37 | B46: 37 | C46: BOXBOROUGH | D46: 0 | E46: 0 | F46: 0 | G46: 0 | H46: 0 | J46: 0 | K46: 0 | L46: 0 | N46: 0 | P46: 0 | Q46: 0 | R46: 0 | S46: 0 | T46: 0 | U46: 0 | W46: 0 | AA46: 37 | AB46: 0 | AC46: 0 | AD46: 0 | AE46: 0 | AF46: 0 | AG46: 0 | AH46: 0 | AI46: 0 | AJ46: 0 | AK46: 0 | AL46: 0 | AM46: 0 | AN46: 0 | AO46: 0 | AP46: 0 | AQ46: 0 | AS46: 37 | AT46: 0 | AU46: 0 | AV46: 0 | AW46: 0 | AX46: 0 | AY46: 0 | BA46: 0 | BB46: 0 | BC46: 0 | BD46: 0 | BE46: 0 | BG46: 0 | BH46: 0 | BI46: 0 | CA46: 37 | CB46: 37 | CC46: BOXBOROUGH | CD46: 0 | CE46: 0 | CF46: 0 | CG46: 0 | CH46: 0 | CI46: 0 | CJ46: 0 | CK46: 0 | DA46: 37 | DB46: BOXBOROUGH | DC46: 0 | DD46: 0 | DE46: 0 | DF46: 0 | DG46: 0 | DH46: 0 | DI46: 0 | DJ46: 0 | DK46: 0 | DL46: 0 | DN46: 0 | DP46: 0 | DQ46: 0 | DR46: 0 | DS46: 0 | DT46: 0 | DV46: 0 | EB46: fy15 | EC46: 0 | EE46: 37
A47: 38 | B47: 38 | C47: BOXFORD | D47: 1 | E47: 17971 | F47: 0 | G47: 1180 | H47: 19151 | J47: 1180 | K47: 902 | L47: 2082 | N47: 17069 | P47: 1180 | Q47: 0 | R47: 0 | S47: 0 | T47: 902 | U47: 2082 | W47: 2082 | AA47: 38 | AB47: 1 | AC47: 0.006944444444 | AD47: 0 | AE47: 0 | AF47: 17971 | AG47: 0 | AH47: 0 | AI47: 17971 | AJ47: 0 | AK47: 1180 | AL47: 19151 | AM47: 0 | AN47: 0 | AO47: 0 | AP47: 0 | AQ47: 19151 | AS47: 38 | AT47: 1 | AU47: 0 | AV47: 0 | AW47: 0 | AX47: 0 | AY47: 0 | BA47: 0 | BB47: 0 | BC47: 0 | BD47: 0 | BE47: 0 | BG47: 9 | BH47: 0.1220438111 | BI47: 0 | CA47: 38 | CB47: 38 | CC47: BOXFORD | CD47: 17971 | CE47: 17069 | CF47: 902 | CG47: 0 | CH47: 0 | CI47: 0 | CJ47: 902 | CK47: 902 | DA47: 38 | DB47: BOXFORD | DC47: 0 | DD47: 0 | DE47: 0 | DF47: 0 | DG47: 0 | DH47: 0 | DI47: 0 | DJ47: 0 | DK47: 0 | DL47: 0 | DN47: 0 | DP47: 902 | DQ47: 0 | DR47: 902 | DS47: 0 | DT47: 0 | DV47: 0 | EC47: 0 | EE47: 38
A48: 39 | B48: 39 | C48: BOYLSTON | D48: 0 | E48: 0 | F48: 0 | G48: 0 | H48: 0 | J48: 0 | K48: 0 | L48: 0 | N48: 0 | P48: 0 | Q48: 0 | R48: 0 | S48: 0 | T48: 0 | U48: 0 | W48: 0 | AA48: 39 | AB48: 0 | AC48: 0 | AD48: 0 | AE48: 0 | AF48: 0 | AG48: 0 | AH48: 0 | AI48: 0 | AJ48: 0 | AK48: 0 | AL48: 0 | AM48: 0 | AN48: 0 | AO48: 0 | AP48: 0 | AQ48: 0 | AS48: 39 | AT48: 0 | AU48: 0 | AV48: 0 | AW48: 0 | AX48: 0 | AY48: 0 | BA48: 0 | BB48: 0 | BC48: 0 | BD48: 0 | BE48: 0 | BG48: 0 | BH48: 0 | BI48: 0 | CA48: 39 | CB48: 39 | CC48: BOYLSTON | CD48: 0 | CE48: 0 | CF48: 0 | CG48: 0 | CH48: 0 | CI48: 0 | CJ48: 0 | CK48: 0 | DA48: 39 | DB48: BOYLSTON | DC48: 0 | DD48: 0 | DE48: 0 | DF48: 0 | DG48: 0 | DH48: 0 | DI48: 0 | DJ48: 0 | DK48: 0 | DL48: 0 | DN48: 0 | DP48: 0 | DQ48: 0 | DR48: 0 | DS48: 0 | DT48: 0 | DV48: 0 | EB48: fy20 | EC48: 0 | EE48: 39
A49: 40 | B49: 40 | C49: BRAINTREE | D49: 26 | E49: 510387 | F49: 0 | G49: 30777 | H49: 541164 | J49: 30777 | K49: 229737.4 | L49: 260514.4 | N49: 280649.6 | P49: 30777 | Q49: 0 | R49: 0 | S49: 0 | T49: 229737.4 | U49: 260514.4 | W49: 260514.4 | AA49: 40 | AB49: 26 | AC49: 0.09175410776 | AD49: 0 | AE49: 0 | AF49: 510387 | AG49: 0 | AH49: 0 | AI49: 510387 | AJ49: 0 | AK49: 30777 | AL49: 541164 | AM49: 0 | AN49: 0 | AO49: 0 | AP49: 0 | AQ49: 541164 | AS49: 40 | AT49: 7 | AU49: 0 | AV49: 0 | AW49: 0 | AX49: 0 | AY49: 0 | BA49: 0 | BB49: 0 | BC49: 0 | BD49: 0 | BE49: 0 | BG49: 9 | BH49: 0.5490054732 | BI49: 0 | CA49: 40 | CB49: 40 | CC49: BRAINTREE | CD49: 510387 | CE49: 371559 | CF49: 138828 | CG49: 67207.8 | CH49: 23701.6 | CI49: 0 | CJ49: 229737.4 | CK49: 229737.4 | DA49: 40 | DB49: BRAINTREE | DC49: 0 | DD49: 0 | DE49: 0 | DF49: 0 | DG49: 0 | DH49: 0 | DI49: 0 | DJ49: 0 | DK49: 0 | DL49: 0 | DN49: 0 | DP49: 138828 | DQ49: 0 | DR49: 138828 | DS49: 0 | DT49: 0 | DV49: 0 | EC49: 0 | EE49: 40
A50: 41 | B50: 41 | C50: BREWSTER | D50: 0 | E50: 0 | F50: 0 | G50: 0 | H50: 0 | J50: 0 | K50: 0 | L50: 0 | N50: 0 | P50: 0 | Q50: 0 | R50: 0 | S50: 0 | T50: 0 | U50: 0 | W50: 0 | AA50: 41 | AB50: 0 | AC50: 0 | AD50: 0 | AE50: 0 | AF50: 0 | AG50: 0 | AH50: 0 | AI50: 0 | AJ50: 0 | AK50: 0 | AL50: 0 | AM50: 0 | AN50: 0 | AO50: 0 | AP50: 0 | AQ50: 0 | AS50: 41 | AT50: 0 | AU50: 0 | AV50: 0 | AW50: 0 | AX50: 0 | AY50: 0 | BA50: 0 | BB50: 0 | BC50: 0 | BD50: 0 | BE50: 0 | BG50: 0 | BH50: 0 | BI50: 0 | CA50: 41 | CB50: 41 | CC50: BREWSTER | CD50: 0 | CE50: 0 | CF50: 0 | CG50: 0 | CH50: 0 | CI50: 0 | CJ50: 0 | CK50: 0 | DA50: 41 | DB50: BREWSTER | DC50: 0 | DD50: 0 | DE50: 0 | DF50: 0 | DG50: 0 | DH50: 0 | DI50: 0 | DJ50: 0 | DK50: 0 | DL50: 0 | DN50: 0 | DP50: 0 | DQ50: 0 | DR50: 0 | DS50: 0 | DT50: 0 | DV50: 0 | EC50: 0 | EE50: 41
A51: 42 | B51: 42 | C51: BRIDGEWATER | D51: 0 | E51: 0 | F51: 0 | G51: 0 | H51: 0 | J51: 0 | K51: 0 | L51: 0 | N51: 0 | P51: 0 | Q51: 0 | R51: 0 | S51: 0 | T51: 0 | U51: 0 | W51: 0 | AA51: 42 | AB51: 0 | AC51: 0 | AD51: 0 | AE51: 0 | AF51: 0 | AG51: 0 | AH51: 0 | AI51: 0 | AJ51: 0 | AK51: 0 | AL51: 0 | AM51: 0 | AN51: 0 | AO51: 0 | AP51: 0 | AQ51: 0 | AS51: 42 | AT51: 0 | AU51: 0 | AV51: 0 | AW51: 0 | AX51: 0 | AY51: 0 | BA51: 0 | BB51: 0 | BC51: 0 | BD51: 0 | BE51: 0 | BG51: 0 | BH51: 0 | BI51: 0 | CA51: 42 | CB51: 42 | CC51: BRIDGEWATER | CD51: 0 | CE51: 0 | CF51: 0 | CG51: 0 | CH51: 0 | CI51: 0 | CJ51: 0 | CK51: 0 | DA51: 42 | DB51: BRIDGEWATER | DC51: 0 | DD51: 0 | DE51: 0 | DF51: 0 | DG51: 0 | DH51: 0 | DI51: 0 | DJ51: 0 | DK51: 0 | DL51: 0 | DN51: 0 | DP51: 0 | DQ51: 0 | DR51: 0 | DS51: 0 | DT51: 0 | DV51: 0 | EC51: 0 | EE51: 42
A52: 43 | B52: 43 | C52: BRIMFIELD | D52: 4 | E52: 55192 | F52: 0 | G52: 4752 | H52: 59944 | J52: 4752 | K52: 21720.6 | L52: 26472.6 | N52: 33471.4 | P52: 4752 | Q52: 0 | R52: 0 | S52: 0 | T52: 21720.6 | U52: 26472.6 | W52: 26472.6 | AA52: 43 | AB52: 4 | AC52: 0 | AD52: 0 | AE52: 0 | AF52: 55192 | AG52: 0 | AH52: 0 | AI52: 55192 | AJ52: 0 | AK52: 4752 | AL52: 59944 | AM52: 0 | AN52: 0 | AO52: 0 | AP52: 0 | AQ52: 59944 | AS52: 43 | AT52: 2 | AU52: 0 | AV52: 0 | AW52: 0 | AX52: 0 | AY52: 0 | BA52: 0 | BB52: 0 | BC52: 0 | BD52: 0 | BE52: 0 | BG52: 9 | BH52: 1.198158589 | BI52: 0 | CA52: 43 | CB52: 43 | CC52: BRIMFIELD | CD52: 55192 | CE52: 76618 | CF52: 0 | CG52: 21720.6 | CH52: 0 | CI52: 0 | CJ52: 21720.6 | CK52: 21720.6 | DA52: 43 | DB52: BRIMFIELD | DC52: 0 | DD52: 0 | DE52: 0 | DF52: 0 | DG52: 0 | DH52: 0 | DI52: 0 | DJ52: 0 | DK52: 0 | DL52: 0 | DN52: 0 | DP52: 0 | DQ52: 0 | DR52: 0 | DS52: 0 | DT52: 0 | DV52: 0 | EC52: 0 | EE52: 43
A53: 44 | B53: 44 | C53: BROCKTON | D53: 1634 | E53: 28474962 | F53: 0 | G53: 1940643 | H53: 30415605 | J53: 1940643 | K53: 7528811.2 | L53: 9469454.2 | N53: 20946150.8 | P53: 1940643 | Q53: 0 | R53: 0 | S53: 0 | T53: 7528811.2 | U53: 9469454.2 | W53: 9469454.2 | AA53: 44 | AB53: 1634 | AC53: 0.4579360898 | AD53: 0 | AE53: 0 | AF53: 28474962 | AG53: 0 | AH53: 0 | AI53: 28474962 | AJ53: 0 | AK53: 1940643 | AL53: 30415605 | AM53: 0 | AN53: 0 | AO53: 0 | AP53: 0 | AQ53: 30415605 | AS53: 44 | AT53: 314 | AU53: 0 | AV53: 0 | AW53: 0 | AX53: 0 | AY53: 0 | BA53: 0 | BB53: 0 | BC53: 0 | BD53: 0 | BE53: 0 | BG53: 18 | BH53: 9.201518002 | BI53: 0 | CA53: 44 | CB53: 44 | CC53: BROCKTON | CD53: 28474962 | CE53: 24087042 | CF53: 4387920 | CG53: 1476596.4 | CH53: 1664294.8 | CI53: 0 | CJ53: 7528811.2 | CK53: 7528811.2 | DA53: 44 | DB53: BROCKTON | DC53: 0 | DD53: 0 | DE53: 0 | DF53: 0 | DG53: 0 | DH53: 0 | DI53: 0 | DJ53: 0 | DK53: 0 | DL53: 0 | DN53: 0 | DP53: 4387920 | DQ53: 0 | DR53: 4387920 | DS53: 0 | DT53: 0 | DV53: 0 | EC53: 0 | EE53: 44
A54: 45 | B54: 45 | C54: BROOKFIELD | D54: 4 | E54: 66688 | F54: 0 | G54: 4752 | H54: 71440 | J54: 4752 | K54: 25732 | L54: 30484 | N54: 40956 | P54: 4752 | Q54: 0 | R54: 0 | S54: 0 | T54: 25732 | U54: 30484 | W54: 30484 | AA54: 45 | AB54: 4 | AC54: 0 | AD54: 0 | AE54: 0 | AF54: 66688 | AG54: 0 | AH54: 0 | AI54: 66688 | AJ54: 0 | AK54: 4752 | AL54: 71440 | AM54: 0 | AN54: 0 | AO54: 0 | AP54: 0 | AQ54: 71440 | AS54: 45 | AT54: 2 | AU54: 0 | AV54: 0 | AW54: 0 | AX54: 0 | AY54: 0 | BA54: 0 | BB54: 0 | BC54: 0 | BD54: 0 | BE54: 0 | BG54: 9 | BH54: 1.637196803 | BI54: 0 | CA54: 45 | CB54: 45 | CC54: BROOKFIELD | CD54: 66688 | CE54: 132912 | CF54: 0 | CG54: 13974 | CH54: 11758 | CI54: 0 | CJ54: 25732 | CK54: 25732 | DA54: 45 | DB54: BROOKFIELD | DC54: 0 | DD54: 0 | DE54: 0 | DF54: 0 | DG54: 0 | DH54: 0 | DI54: 0 | DJ54: 0 | DK54: 0 | DL54: 0 | DN54: 0 | DP54: 0 | DQ54: 0 | DR54: 0 | DS54: 0 | DT54: 0 | DV54: 0 | EC54: 0 | EE54: 45
A55: 46 | B55: 46 | C55: BROOKLINE | D55: 1 | E55: 25242 | F55: 0 | G55: 1188 | H55: 26430 | J55: 1188 | K55: 23638.2 | L55: 24826.2 | N55: 1603.8 | P55: 1188 | Q55: 0 | R55: 0 | S55: 0 | T55: 23638.2 | U55: 24826.2 | W55: 24826.2 | AA55: 46 | AB55: 1 | AC55: 0 | AD55: 0 | AE55: 0 | AF55: 25242 | AG55: 0 | AH55: 0 | AI55: 25242 | AJ55: 0 | AK55: 1188 | AL55: 26430 | AM55: 0 | AN55: 0 | AO55: 0 | AP55: 0 | AQ55: 26430 | AS55: 46 | AT55: 0 | AU55: 0 | AV55: 0 | AW55: 0 | AX55: 0 | AY55: 0 | BA55: 0 | BB55: 0 | BC55: 0 | BD55: 0 | BE55: 0 | BG55: 9 | BH55: 0.0144796562 | BI55: 0 | CA55: 46 | CB55: 46 | CC55: BROOKLINE | CD55: 25242 | CE55: 59497 | CF55: 0 | CG55: 23638.2 | CH55: 0 | CI55: 0 | CJ55: 23638.2 | CK55: 23638.2 | DA55: 46 | DB55: BROOKLINE | DC55: 0 | DD55: 0 | DE55: 0 | DF55: 0 | DG55: 0 | DH55: 0 | DI55: 0 | DJ55: 0 | DK55: 0 | DL55: 0 | DN55: 0 | DP55: 0 | DQ55: 0 | DR55: 0 | DS55: 0 | DT55: 0 | DV55: 0 | EC55: 0 | EE55: 46
A56: 47 | B56: 47 | C56: BUCKLAND | D56: 0 | E56: 0 | F56: 0 | G56: 0 | H56: 0 | J56: 0 | K56: 0 | L56: 0 | N56: 0 | P56: 0 | Q56: 0 | R56: 0 | S56: 0 | T56: 0 | U56: 0 | W56: 0 | AA56: 47 | AB56: 0 | AC56: 0 | AD56: 0 | AE56: 0 | AF56: 0 | AG56: 0 | AH56: 0 | AI56: 0 | AJ56: 0 | AK56: 0 | AL56: 0 | AM56: 0 | AN56: 0 | AO56: 0 | AP56: 0 | AQ56: 0 | AS56: 47 | AT56: 0 | AU56: 0 | AV56: 0 | AW56: 0 | AX56: 0 | AY56: 0 | BA56: 0 | BB56: 0 | BC56: 0 | BD56: 0 | BE56: 0 | BG56: 0 | BH56: 0 | BI56: 0 | CA56: 47 | CB56: 47 | CC56: BUCKLAND | CD56: 0 | CE56: 0 | CF56: 0 | CG56: 0 | CH56: 0 | CI56: 0 | CJ56: 0 | CK56: 0 | DA56: 47 | DB56: BUCKLAND | DC56: 0 | DD56: 0 | DE56: 0 | DF56: 0 | DG56: 0 | DH56: 0 | DI56: 0 | DJ56: 0 | DK56: 0 | DL56: 0 | DN56: 0 | DP56: 0 | DQ56: 0 | DR56: 0 | DS56: 0 | DT56: 0 | DV56: 0 | EC56: 0 | EE56: 47
A57: 48 | B57: 48 | C57: BURLINGTON | D57: 2 | E57: 40698 | F57: 0 | G57: 2376 | H57: 43074 | J57: 2376 | K57: 0 | L57: 2376 | N57: 40698 | P57: 2376 | Q57: 0 | R57: 0 | S57: 0 | T57: 0 | U57: 2376 | W57: 2376 | AA57: 48 | AB57: 2 | AC57: 0 | AD57: 0 | AE57: 0 | AF57: 40698 | AG57: 0 | AH57: 0 | AI57: 40698 | AJ57: 0 | AK57: 2376 | AL57: 43074 | AM57: 0 | AN57: 0 | AO57: 0 | AP57: 0 | AQ57: 43074 | AS57: 48 | AT57: 1 | AU57: 0 | AV57: 0 | AW57: 0 | AX57: 0 | AY57: 0 | BA57: 0 | BB57: 0 | BC57: 0 | BD57: 0 | BE57: 0 | BG57: 9 | BH57: 0.04613468628 | BI57: 0 | CA57: 48 | CB57: 48 | CC57: BURLINGTON | CD57: 40698 | CE57: 54235 | CF57: 0 | CG57: 0 | CH57: 0 | CI57: 0 | CJ57: 0 | CK57: 0 | DA57: 48 | DB57: BURLINGTON | DC57: 0 | DD57: 0 | DE57: 0 | DF57: 0 | DG57: 0 | DH57: 0 | DI57: 0 | DJ57: 0 | DK57: 0 | DL57: 0 | DN57: 0 | DP57: 0 | DQ57: 0 | DR57: 0 | DS57: 0 | DT57: 0 | DV57: 0 | EC57: 0 | EE57: 48
A58: 49 | B58: 49 | C58: CAMBRIDGE | D58: 483 | E58: 19237294 | F58: 0 | G58: 573804 | H58: 19811098 | J58: 573804 | K58: 2273500.6 | L58: 2847304.6 | N58: 16963793.4 | P58: 573804 | Q58: 0 | R58: 0 | S58: 0 | T58: 2273500.6 | U58: 2847304.6 | W58: 2847304.6 | AA58: 49 | AB58: 483 | AC58: 0 | AD58: 0 | AE58: 0 | AF58: 19237294 | AG58: 0 | AH58: 0 | AI58: 19237294 | AJ58: 0 | AK58: 573804 | AL58: 19811098 | AM58: 0 | AN58: 0 | AO58: 0 | AP58: 0 | AQ58: 19811098 | AS58: 49 | AT58: 64 | AU58: 0 | AV58: 0 | AW58: 0 | AX58: 0 | AY58: 0 | BA58: 0 | BB58: 0 | BC58: 0 | BD58: 0 | BE58: 0 | BG58: 9 | BH58: 7.342679415 | BI58: 0 | CA58: 49 | CB58: 49 | CC58: CAMBRIDGE | CD58: 19237294 | CE58: 18211072 | CF58: 1026222 | CG58: 708372.6 | CH58: 538906 | CI58: 0 | CJ58: 2273500.6 | CK58: 2273500.6 | DA58: 49 | DB58: CAMBRIDGE | DC58: 0 | DD58: 0 | DE58: 0 | DF58: 0 | DG58: 0 | DH58: 0 | DI58: 0 | DJ58: 0 | DK58: 0 | DL58: 0 | DN58: 0 | DP58: 1026222 | DQ58: 0 | DR58: 1026222 | DS58: 0 | DT58: 0 | DV58: 0 | EC58: 0 | EE58: 49
A59: 50 | B59: 50 | C59: CANTON | D59: 17 | E59: 385543 | F59: 0 | G59: 20196 | H59: 405739 | J59: 20196 | K59: 28121.2 | L59: 48317.2 | N59: 357421.8 | P59: 20196 | Q59: 0 | R59: 0 | S59: 0 | T59: 28121.2 | U59: 48317.2 | W59: 48317.2 | AA59: 50 | AB59: 17 | AC59: 0 | AD59: 0 | AE59: 0 | AF59: 385543 | AG59: 0 | AH59: 0 | AI59: 385543 | AJ59: 0 | AK59: 20196 | AL59: 405739 | AM59: 0 | AN59: 0 | AO59: 0 | AP59: 0 | AQ59: 405739 | AS59: 50 | AT59: 0 | AU59: 0 | AV59: 0 | AW59: 0 | AX59: 0 | AY59: 0 | BA59: 0 | BB59: 0 | BC59: 0 | BD59: 0 | BE59: 0 | BG59: 9 | BH59: 0.6086244146 | BI59: 0 | CA59: 50 | CB59: 50 | CC59: CANTON | CD59: 385543 | CE59: 388112 | CF59: 0 | CG59: 0 | CH59: 28121.2 | CI59: 0 | CJ59: 28121.2 | CK59: 28121.2 | DA59: 50 | DB59: CANTON | DC59: 0 | DD59: 0 | DE59: 0 | DF59: 0 | DG59: 0 | DH59: 0 | DI59: 0 | DJ59: 0 | DK59: 0 | DL59: 0 | DN59: 0 | DP59: 0 | DQ59: 0 | DR59: 0 | DS59: 0 | DT59: 0 | DV59: 0 | EC59: 0 | EE59: 50
A60: 51 | B60: 51 | C60: CARLISLE | D60: 0 | E60: 0 | F60: 0 | G60: 0 | H60: 0 | J60: 0 | K60: 0 | L60: 0 | N60: 0 | P60: 0 | Q60: 0 | R60: 0 | S60: 0 | T60: 0 | U60: 0 | W60: 0 | AA60: 51 | AB60: 0 | AC60: 0 | AD60: 0 | AE60: 0 | AF60: 0 | AG60: 0 | AH60: 0 | AI60: 0 | AJ60: 0 | AK60: 0 | AL60: 0 | AM60: 0 | AN60: 0 | AO60: 0 | AP60: 0 | AQ60: 0 | AS60: 51 | AT60: 0 | AU60: 0 | AV60: 0 | AW60: 0 | AX60: 0 | AY60: 0 | BA60: 0 | BB60: 0 | BC60: 0 | BD60: 0 | BE60: 0 | BG60: 0 | BH60: 0 | BI60: 0 | CA60: 51 | CB60: 51 | CC60: CARLISLE | CD60: 0 | CE60: 0 | CF60: 0 | CG60: 0 | CH60: 0 | CI60: 0 | CJ60: 0 | CK60: 0 | DA60: 51 | DB60: CARLISLE | DC60: 0 | DD60: 0 | DE60: 0 | DF60: 0 | DG60: 0 | DH60: 0 | DI60: 0 | DJ60: 0 | DK60: 0 | DL60: 0 | DN60: 0 | DP60: 0 | DQ60: 0 | DR60: 0 | DS60: 0 | DT60: 0 | DV60: 0 | EC60: 0 | EE60: 51
A61: 52 | B61: 52 | C61: CARVER | D61: 71 | E61: 1286185 | F61: 0 | G61: 84195 | H61: 1370380 | J61: 84195 | K61: 240319.8 | L61: 324514.8 | N61: 1045865.2 | P61: 84195 | Q61: 0 | R61: 0 | S61: 0 | T61: 240319.8 | U61: 324514.8 | W61: 324514.8 | AA61: 52 | AB61: 71 | AC61: 0.1227436823 | AD61: 0 | AE61: 0 | AF61: 1286185 | AG61: 0 | AH61: 0 | AI61: 1286185 | AJ61: 0 | AK61: 84195 | AL61: 1370380 | AM61: 0 | AN61: 0 | AO61: 0 | AP61: 0 | AQ61: 1370380 | AS61: 52 | AT61: 13 | AU61: 0 | AV61: 0 | AW61: 0 | AX61: 0 | AY61: 0 | BA61: 0 | BB61: 0 | BC61: 0 | BD61: 0 | BE61: 0 | BG61: 9 | BH61: 4.312633898 | BI61: 0 | CA61: 52 | CB61: 52 | CC61: CARVER | CD61: 1286185 | CE61: 1123036 | CF61: 163149 | CG61: 26197.2 | CH61: 50973.6 | CI61: 0 | CJ61: 240319.8 | CK61: 240319.8 | DA61: 52 | DB61: CARVER | DC61: 0 | DD61: 0 | DE61: 0 | DF61: 0 | DG61: 0 | DH61: 0 | DI61: 0 | DJ61: 0 | DK61: 0 | DL61: 0 | DN61: 0 | DP61: 163149 | DQ61: 0 | DR61: 163149 | DS61: 0 | DT61: 0 | DV61: 0 | EC61: 0 | EE61: 52
A62: 53 | B62: 53 | C62: CHARLEMONT | D62: 0 | E62: 0 | F62: 0 | G62: 0 | H62: 0 | J62: 0 | K62: 0 | L62: 0 | N62: 0 | P62: 0 | Q62: 0 | R62: 0 | S62: 0 | T62: 0 | U62: 0 | W62: 0 | AA62: 53 | AB62: 0 | AC62: 0 | AD62: 0 | AE62: 0 | AF62: 0 | AG62: 0 | AH62: 0 | AI62: 0 | AJ62: 0 | AK62: 0 | AL62: 0 | AM62: 0 | AN62: 0 | AO62: 0 | AP62: 0 | AQ62: 0 | AS62: 53 | AT62: 0 | AU62: 0 | AV62: 0 | AW62: 0 | AX62: 0 | AY62: 0 | BA62: 0 | BB62: 0 | BC62: 0 | BD62: 0 | BE62: 0 | BG62: 0 | BH62: 0 | BI62: 0 | CA62: 53 | CB62: 53 | CC62: CHARLEMONT | CD62: 0 | CE62: 0 | CF62: 0 | CG62: 0 | CH62: 0 | CI62: 0 | CJ62: 0 | CK62: 0 | DA62: 53 | DB62: CHARLEMONT | DC62: 0 | DD62: 0 | DE62: 0 | DF62: 0 | DG62: 0 | DH62: 0 | DI62: 0 | DJ62: 0 | DK62: 0 | DL62: 0 | DN62: 0 | DP62: 0 | DQ62: 0 | DR62: 0 | DS62: 0 | DT62: 0 | DV62: 0 | EC62: 0 | EE62: 53
A63: 54 | B63: 54 | C63: CHARLTON | D63: 0 | E63: 0 | F63: 0 | G63: 0 | H63: 0 | J63: 0 | K63: 0 | L63: 0 | N63: 0 | P63: 0 | Q63: 0 | R63: 0 | S63: 0 | T63: 0 | U63: 0 | W63: 0 | AA63: 54 | AB63: 0 | AC63: 0 | AD63: 0 | AE63: 0 | AF63: 0 | AG63: 0 | AH63: 0 | AI63: 0 | AJ63: 0 | AK63: 0 | AL63: 0 | AM63: 0 | AN63: 0 | AO63: 0 | AP63: 0 | AQ63: 0 | AS63: 54 | AT63: 0 | AU63: 0 | AV63: 0 | AW63: 0 | AX63: 0 | AY63: 0 | BA63: 0 | BB63: 0 | BC63: 0 | BD63: 0 | BE63: 0 | BG63: 0 | BH63: 0 | BI63: 0 | CA63: 54 | CB63: 54 | CC63: CHARLTON | CD63: 0 | CE63: 0 | CF63: 0 | CG63: 0 | CH63: 0 | CI63: 0 | CJ63: 0 | CK63: 0 | DA63: 54 | DB63: CHARLTON | DC63: 0 | DD63: 0 | DE63: 0 | DF63: 0 | DG63: 0 | DH63: 0 | DI63: 0 | DJ63: 0 | DK63: 0 | DL63: 0 | DN63: 0 | DP63: 0 | DQ63: 0 | DR63: 0 | DS63: 0 | DT63: 0 | DV63: 0 | EC63: 0 | EE63: 54
A64: 55 | B64: 55 | C64: CHATHAM | D64: 0 | E64: 0 | F64: 0 | G64: 0 | H64: 0 | J64: 0 | K64: 0 | L64: 0 | N64: 0 | P64: 0 | Q64: 0 | R64: 0 | S64: 0 | T64: 0 | U64: 0 | W64: 0 | AA64: 55 | AB64: 0 | AC64: 0 | AD64: 0 | AE64: 0 | AF64: 0 | AG64: 0 | AH64: 0 | AI64: 0 | AJ64: 0 | AK64: 0 | AL64: 0 | AM64: 0 | AN64: 0 | AO64: 0 | AP64: 0 | AQ64: 0 | AS64: 55 | AT64: 0 | AU64: 0 | AV64: 0 | AW64: 0 | AX64: 0 | AY64: 0 | BA64: 0 | BB64: 0 | BC64: 0 | BD64: 0 | BE64: 0 | BG64: 0 | BH64: 0 | BI64: 0 | CA64: 55 | CB64: 55 | CC64: CHATHAM | CD64: 0 | CE64: 0 | CF64: 0 | CG64: 0 | CH64: 0 | CI64: 0 | CJ64: 0 | CK64: 0 | DA64: 55 | DB64: CHATHAM | DC64: 0 | DD64: 0 | DE64: 0 | DF64: 0 | DG64: 0 | DH64: 0 | DI64: 0 | DJ64: 0 | DK64: 0 | DL64: 0 | DN64: 0 | DP64: 0 | DQ64: 0 | DR64: 0 | DS64: 0 | DT64: 0 | DV64: 0 | EB64: fy13 | EC64: 0 | EE64: 55
A65: 56 | B65: 56 | C65: CHELMSFORD | D65: 101 | E65: 1614721 | F65: 0 | G65: 119871 | H65: 1734592 | J65: 119871 | K65: 147847.8 | L65: 267718.8 | N65: 1466873.2 | P65: 119871 | Q65: 0 | R65: 0 | S65: 0 | T65: 147847.8 | U65: 267718.8 | W65: 267718.8 | AA65: 56 | AB65: 101 | AC65: 0.09643850182 | AD65: 0 | AE65: 0 | AF65: 1614721 | AG65: 0 | AH65: 0 | AI65: 1614721 | AJ65: 0 | AK65: 119871 | AL65: 1734592 | AM65: 0 | AN65: 0 | AO65: 0 | AP65: 0 | AQ65: 1734592 | AS65: 56 | AT65: 16 | AU65: 0 | AV65: 0 | AW65: 0 | AX65: 0 | AY65: 0 | BA65: 0 | BB65: 0 | BC65: 0 | BD65: 0 | BE65: 0 | BG65: 9 | BH65: 1.918587658 | BI65: 0 | CA65: 56 | CB65: 56 | CC65: CHELMSFORD | CD65: 1614721 | CE65: 1572572 | CF65: 42149 | CG65: 0 | CH65: 105698.8 | CI65: 0 | CJ65: 147847.8 | CK65: 147847.8 | DA65: 56 | DB65: CHELMSFORD | DC65: 0 | DD65: 0 | DE65: 0 | DF65: 0 | DG65: 0 | DH65: 0 | DI65: 0 | DJ65: 0 | DK65: 0 | DL65: 0 | DN65: 0 | DP65: 42149 | DQ65: 0 | DR65: 42149 | DS65: 0 | DT65: 0 | DV65: 0 | EC65: 0 | EE65: 56
A66: 57 | B66: 57 | C66: CHELSEA | D66: 901 | E66: 16994249 | F66: 0 | G66: 1070367 | H66: 18064616 | J66: 1070367 | K66: 2348923.8 | L66: 3419290.8 | N66: 14645325.2 | P66: 1070367 | Q66: 0 | R66: 0 | S66: 0 | T66: 2348923.8 | U66: 3419290.8 | W66: 3419290.8 | AA66: 57 | AB66: 901 | AC66: 0.01795665635 | AD66: 0 | AE66: 0 | AF66: 16994249 | AG66: 0 | AH66: 0 | AI66: 16994249 | AJ66: 0 | AK66: 1070367 | AL66: 18064616 | AM66: 0 | AN66: 0 | AO66: 0 | AP66: 0 | AQ66: 18064616 | AS66: 57 | AT66: 285 | AU66: 0 | AV66: 0 | AW66: 0 | AX66: 0 | AY66: 0 | BA66: 0 | BB66: 0 | BC66: 0 | BD66: 0 | BE66: 0 | BG66: 18 | BH66: 12.00361853 | BI66: 0 | CA66: 57 | CB66: 57 | CC66: CHELSEA | CD66: 16994249 | CE66: 15456464 | CF66: 1537785 | CG66: 220333.2 | CH66: 590805.6 | CI66: 0 | CJ66: 2348923.8 | CK66: 2348923.8 | DA66: 57 | DB66: CHELSEA | DC66: 0 | DD66: 0 | DE66: 0 | DF66: 0 | DG66: 0 | DH66: 0 | DI66: 0 | DJ66: 0 | DK66: 0 | DL66: 0 | DN66: 0 | DP66: 1537785 | DQ66: 0 | DR66: 1537785 | DS66: 0 | DT66: 0 | DV66: 0 | EC66: 0 | EE66: 57
A67: 58 | B67: 58 | C67: CHESHIRE | D67: 0 | E67: 0 | F67: 0 | G67: 0 | H67: 0 | J67: 0 | K67: 0 | L67: 0 | N67: 0 | P67: 0 | Q67: 0 | R67: 0 | S67: 0 | T67: 0 | U67: 0 | W67: 0 | AA67: 58 | AB67: 0 | AC67: 0 | AD67: 0 | AE67: 0 | AF67: 0 | AG67: 0 | AH67: 0 | AI67: 0 | AJ67: 0 | AK67: 0 | AL67: 0 | AM67: 0 | AN67: 0 | AO67: 0 | AP67: 0 | AQ67: 0 | AS67: 58 | AT67: 0 | AU67: 0 | AV67: 0 | AW67: 0 | AX67: 0 | AY67: 0 | BA67: 0 | BB67: 0 | BC67: 0 | BD67: 0 | BE67: 0 | BG67: 0 | BH67: 0 | BI67: 0 | CA67: 58 | CB67: 58 | CC67: CHESHIRE | CD67: 0 | CE67: 0 | CF67: 0 | CG67: 0 | CH67: 0 | CI67: 0 | CJ67: 0 | CK67: 0 | DA67: 58 | DB67: CHESHIRE | DC67: 0 | DD67: 0 | DE67: 0 | DF67: 0 | DG67: 0 | DH67: 0 | DI67: 0 | DJ67: 0 | DK67: 0 | DL67: 0 | DN67: 0 | DP67: 0 | DQ67: 0 | DR67: 0 | DS67: 0 | DT67: 0 | DV67: 0 | EC67: 0 | EE67: 58
A68: 59 | B68: 59 | C68: CHESTER | D68: 0 | E68: 0 | F68: 0 | G68: 0 | H68: 0 | J68: 0 | K68: 0 | L68: 0 | N68: 0 | P68: 0 | Q68: 0 | R68: 0 | S68: 0 | T68: 0 | U68: 0 | W68: 0 | AA68: 59 | AB68: 0 | AC68: 0 | AD68: 0 | AE68: 0 | AF68: 0 | AG68: 0 | AH68: 0 | AI68: 0 | AJ68: 0 | AK68: 0 | AL68: 0 | AM68: 0 | AN68: 0 | AO68: 0 | AP68: 0 | AQ68: 0 | AS68: 59 | AT68: 0 | AU68: 0 | AV68: 0 | AW68: 0 | AX68: 0 | AY68: 0 | BA68: 0 | BB68: 0 | BC68: 0 | BD68: 0 | BE68: 0 | BG68: 0 | BH68: 0 | BI68: 0 | CA68: 59 | CB68: 59 | CC68: CHESTER | CD68: 0 | CE68: 0 | CF68: 0 | CG68: 0 | CH68: 0 | CI68: 0 | CJ68: 0 | CK68: 0 | DA68: 59 | DB68: CHESTER | DC68: 0 | DD68: 0 | DE68: 0 | DF68: 0 | DG68: 0 | DH68: 0 | DI68: 0 | DJ68: 0 | DK68: 0 | DL68: 0 | DN68: 0 | DP68: 0 | DQ68: 0 | DR68: 0 | DS68: 0 | DT68: 0 | DV68: 0 | EC68: 0 | EE68: 59
A69: 60 | B69: 60 | C69: CHESTERFIELD | D69: 0 | E69: 0 | F69: 0 | G69: 0 | H69: 0 | J69: 0 | K69: 0 | L69: 0 | N69: 0 | P69: 0 | Q69: 0 | R69: 0 | S69: 0 | T69: 0 | U69: 0 | W69: 0 | AA69: 60 | AB69: 0 | AC69: 0 | AD69: 0 | AE69: 0 | AF69: 0 | AG69: 0 | AH69: 0 | AI69: 0 | AJ69: 0 | AK69: 0 | AL69: 0 | AM69: 0 | AN69: 0 | AO69: 0 | AP69: 0 | AQ69: 0 | AS69: 60 | AT69: 0 | AU69: 0 | AV69: 0 | AW69: 0 | AX69: 0 | AY69: 0 | BA69: 0 | BB69: 0 | BC69: 0 | BD69: 0 | BE69: 0 | BG69: 0 | BH69: 0 | BI69: 0 | CA69: 60 | CB69: 60 | CC69: CHESTERFIELD | CD69: 0 | CE69: 0 | CF69: 0 | CG69: 0 | CH69: 0 | CI69: 0 | CJ69: 0 | CK69: 0 | DA69: 60 | DB69: CHESTERFIELD | DC69: 0 | DD69: 0 | DE69: 0 | DF69: 0 | DG69: 0 | DH69: 0 | DI69: 0 | DJ69: 0 | DK69: 0 | DL69: 0 | DN69: 0 | DP69: 0 | DQ69: 0 | DR69: 0 | DS69: 0 | DT69: 0 | DV69: 0 | EC69: 0 | EE69: 60
A70: 61 | B70: 61 | C70: CHICOPEE | D70: 357 | E70: 5764462 | F70: 0 | G70: 423849 | H70: 6188311 | J70: 423849 | K70: 948410 | L70: 1372259 | N70: 4816052 | P70: 423849 | Q70: 0 | R70: 0 | S70: 0 | T70: 948410 | U70: 1372259 | W70: 1372259 | AA70: 61 | AB70: 357 | AC70: 0.2268474384 | AD70: 0 | AE70: 0 | AF70: 5764462 | AG70: 0 | AH70: 0 | AI70: 5764462 | AJ70: 0 | AK70: 423849 | AL70: 6188311 | AM70: 0 | AN70: 0 | AO70: 0 | AP70: 0 | AQ70: 6188311 | AS70: 61 | AT70: 62 | AU70: 0 | AV70: 0 | AW70: 0 | AX70: 0 | AY70: 0 | BA70: 0 | BB70: 0 | BC70: 0 | BD70: 0 | BE70: 0 | BG70: 9 | BH70: 4.561311393 | BI70: 0 | CA70: 61 | CB70: 61 | CC70: CHICOPEE | CD70: 5764462 | CE70: 5547245 | CF70: 217217 | CG70: 415555.8 | CH70: 315637.2 | CI70: 0 | CJ70: 948410 | CK70: 948410 | DA70: 61 | DB70: CHICOPEE | DC70: 0 | DD70: 0 | DE70: 0 | DF70: 0 | DG70: 0 | DH70: 0 | DI70: 0 | DJ70: 0 | DK70: 0 | DL70: 0 | DN70: 0 | DP70: 217217 | DQ70: 0 | DR70: 217217 | DS70: 0 | DT70: 0 | DV70: 0 | EC70: 0 | EE70: 61
A71: 62 | B71: 62 | C71: CHILMARK | D71: 0 | E71: 0 | F71: 0 | G71: 0 | H71: 0 | J71: 0 | K71: 0 | L71: 0 | N71: 0 | P71: 0 | Q71: 0 | R71: 0 | S71: 0 | T71: 0 | U71: 0 | W71: 0 | AA71: 62 | AB71: 0 | AC71: 0 | AD71: 0 | AE71: 0 | AF71: 0 | AG71: 0 | AH71: 0 | AI71: 0 | AJ71: 0 | AK71: 0 | AL71: 0 | AM71: 0 | AN71: 0 | AO71: 0 | AP71: 0 | AQ71: 0 | AS71: 62 | AT71: 0 | AU71: 0 | AV71: 0 | AW71: 0 | AX71: 0 | AY71: 0 | BA71: 0 | BB71: 0 | BC71: 0 | BD71: 0 | BE71: 0 | BG71: 0 | BH71: 0 | BI71: 0 | CA71: 62 | CB71: 62 | CC71: CHILMARK | CD71: 0 | CE71: 0 | CF71: 0 | CG71: 0 | CH71: 0 | CI71: 0 | CJ71: 0 | CK71: 0 | DA71: 62 | DB71: CHILMARK | DC71: 0 | DD71: 0 | DE71: 0 | DF71: 0 | DG71: 0 | DH71: 0 | DI71: 0 | DJ71: 0 | DK71: 0 | DL71: 0 | DN71: 0 | DP71: 0 | DQ71: 0 | DR71: 0 | DS71: 0 | DT71: 0 | DV71: 0 | EC71: 0 | EE71: 62
A72: 63 | B72: 63 | C72: CLARKSBURG | D72: 3 | E72: 45615 | F72: 0 | G72: 3543 | H72: 49158 | J72: 3543 | K72: 21193.4 | L72: 24736.4 | N72: 24421.6 | P72: 3543 | Q72: 0 | R72: 0 | S72: 0 | T72: 21193.4 | U72: 24736.4 | W72: 24736.4 | AA72: 63 | AB72: 3 | AC72: 0.01643835616 | AD72: 0 | AE72: 0 | AF72: 45615 | AG72: 0 | AH72: 0 | AI72: 45615 | AJ72: 0 | AK72: 3543 | AL72: 49158 | AM72: 0 | AN72: 0 | AO72: 0 | AP72: 0 | AQ72: 49158 | AS72: 63 | AT72: 1 | AU72: 0 | AV72: 0 | AW72: 0 | AX72: 0 | AY72: 0 | BA72: 0 | BB72: 0 | BC72: 0 | BD72: 0 | BE72: 0 | BG72: 9 | BH72: 1.364291351 | BI72: 0 | CA72: 63 | CB72: 63 | CC72: CLARKSBURG | CD72: 45615 | CE72: 32290 | CF72: 13325 | CG72: 0 | CH72: 7868.4 | CI72: 0 | CJ72: 21193.4 | CK72: 21193.4 | DA72: 63 | DB72: CLARKSBURG | DC72: 0 | DD72: 0 | DE72: 0 | DF72: 0 | DG72: 0 | DH72: 0 | DI72: 0 | DJ72: 0 | DK72: 0 | DL72: 0 | DN72: 0 | DP72: 13325 | DQ72: 0 | DR72: 13325 | DS72: 0 | DT72: 0 | DV72: 0 | EC72: 0 | EE72: 63
A73: 64 | B73: 64 | C73: CLINTON | D73: 78 | E73: 1135323 | F73: 0 | G73: 92664 | H73: 1227987 | J73: 92664 | K73: 83897.6 | L73: 176561.6 | N73: 1051425.4 | P73: 92664 | Q73: 0 | R73: 0 | S73: 0 | T73: 83897.6 | U73: 176561.6 | W73: 176561.6 | AA73: 64 | AB73: 78 | AC73: 0 | AD73: 0 | AE73: 0 | AF73: 1135323 | AG73: 0 | AH73: 0 | AI73: 1135323 | AJ73: 0 | AK73: 92664 | AL73: 1227987 | AM73: 0 | AN73: 0 | AO73: 0 | AP73: 0 | AQ73: 1227987 | AS73: 64 | AT73: 26 | AU73: 0 | AV73: 0 | AW73: 0 | AX73: 0 | AY73: 0 | BA73: 0 | BB73: 0 | BC73: 0 | BD73: 0 | BE73: 0 | BG73: 18 | BH73: 3.141851393 | BI73: 0 | CA73: 64 | CB73: 64 | CC73: CLINTON | CD73: 1135323 | CE73: 1098155 | CF73: 37168 | CG73: 2043.6 | CH73: 44686 | CI73: 0 | CJ73: 83897.6 | CK73: 83897.6 | DA73: 64 | DB73: CLINTON | DC73: 0 | DD73: 0 | DE73: 0 | DF73: 0 | DG73: 0 | DH73: 0 | DI73: 0 | DJ73: 0 | DK73: 0 | DL73: 0 | DN73: 0 | DP73: 37168 | DQ73: 0 | DR73: 37168 | DS73: 0 | DT73: 0 | DV73: 0 | EC73: 0 | EE73: 64
A74: 65 | B74: 65 | C74: COHASSET | D74: 9 | E74: =AI74+DD74 -> 194166 | F74: 0 | G74: =AK74+DF74 -> 10692 | H74: 204858 | J74: 10692 | K74: 27588.4 | L74: =SUM(J74:K74) -> 38280.4 | N74: =H74-L74 -> 166577.6 | P74: =AK74+AO74+DF74+DJ74 -> 10692 | Q74: 0 | R74: =AP74+DK74 -> 0 | S74: =AO74+DJ74 -> 0 | T74: =K74 -> 27588.4 | U74: 38280.4 | W74: 38280.4 | AA74: 65 | AB74: 9 | AC74: 0 | AD74: 0 | AE74: 0 | AF74: 194166 | AG74: 0 | AH74: 0 | AI74: 194166 | AJ74: 0 | AK74: 10692 | AL74: 204858 | AM74: 0 | AN74: 0 | AO74: 0 | AP74: 0 | AQ74: 204858 | AS74: 65 | AT74: 2 | AU74: 0 | AV74: 0 | AW74: 0 | AX74: 0 | AY74: 0 | BA74: 0 | BB74: 0 | BC74: 0 | BD74: 0 | BE74: 0 | BG74: 9 | BH74: 0.6635694429 | BI74: 0 | CA74: 65 | CB74: 65 | CC74: COHASSET | CD74: =AI74+DD74 -> 194166 | CE74: 219712 | CF74: 0 | CG74: 15142.8 | CH74: 12445.6 | CI74: 0 | CJ74: 27588.4 | CK74: =(CF74+CI74)*CF$5+CG74*CG$5+CH74*CH$5 -> 27588.4 | DA74: 65 | DB74: COHASSET | DC74: 0 | DD74: 0 | DE74: 0 | DF74: 0 | DG74: 0 | DH74: 0 | DI74: 0 | DJ74: 0 | DK74: 0 | DL74: =DK74+DG74 -> 0 | DN74: =DJ74+DF74 -> 0 | DP74: 0 | DQ74: =IF(CE74<0,0,IF((AH74-CE74)>0,AH74-CE74,0)) -> 0 | DR74: 0 | DS74: 0 | DT74: 0 | DV74: 0 | EC74: 0 | EE74: 65
A75: 66 | B75: 66 | C75: COLRAIN | D75: =AB75 -> 0 | E75: 0 | F75: 0 | G75: 0 | H75: =SUM(E75:G75) -> 0 | J75: =G75 -> 0 | K75: =IF(CK75="",CJ75,CK75) -> 0 | L75: 0 | N75: 0 | P75: 0 | Q75: =AE75 -> 0 | R75: 0 | S75: 0 | T75: 0 | U75: =P75+R75-S75+T75 -> 0 | W75: =AK75+AP75+CJ75+DF75+DK75 -> 0 | AA75: 66 | AB75: 0 | AC75: 0 | AD75: 0 | AE75: 0 | AF75: 0 | AG75: 0 | AH75: 0 | AI75: 0 | AJ75: 0 | AK75: 0 | AL75: 0 | AM75: 0 | AN75: 0 | AO75: 0 | AP75: 0 | AQ75: 0 | AS75: 66 | AT75: 0 | AU75: 0 | AV75: 0 | AW75: 0 | AX75: 0 | AY75: 0 | BA75: 0 | BB75: 0 | BC75: 0 | BD75: 0 | BE75: 0 | BG75: 0 | BH75: 0 | BI75: 0 | CA75: 66 | CB75: 66 | CC75: COLRAIN | CD75: 0 | CE75: 0 | CF75: =IF(CE75<0,CD75,IF(CD75-CE75>0,CD75-CE75,0)) -> 0 | CG75: 0 | CH75: 0 | CI75: =DT75 -> 0 | CJ75: =SUM(CF75:CI75) -> 0 | CK75: 0 | DA75: 66 | DB75: COLRAIN | DC75: 0 | DD75: 0 | DE75: 0 | DF75: 0 | DG75: =SUM(DD75:DF75) -> 0 | DH75: 0 | DI75: 0 | DJ75: 0 | DK75: =SUM(DH75:DJ75) -> 0 | DL75: 0 | DN75: 0 | DP75: =CF75 -> 0 | DQ75: 0 | DR75: =DP75-DQ75 -> 0 | DS75: 0 | DT75: =IF(AND(DR75<0,DS75<0), IF(DR75<DS75, 0, DS75-DR75), IF(AND(DR75>0,DS75>0), IF(OR(DS75>DR75,DS75=DR75 ), DS75-DR75, 0), DS75)) -> 0 | DV75: 0 | EC75: =DS75-DT75 -> 0 | EE75: 66
A76: 67 | B76: 67 | C76: CONCORD | D76: 4 | E76: 85132 | F76: 0 | G76: 4752 | H76: 89884 | J76: 4752 | K76: 41424.8 | L76: 46176.8 | N76: 43707.2 | P76: 4752 | Q76: 0 | R76: 0 | S76: 0 | T76: 41424.8 | U76: 46176.8 | W76: 46176.8 | AA76: 67 | AB76: 4 | AC76: 0 | AD76: 0 | AE76: 0 | AF76: 85132 | AG76: 0 | AH76: 0 | AI76: 85132 | AJ76: 0 | AK76: 4752 | AL76: 89884 | AM76: 0 | AN76: 0 | AO76: 0 | AP76: 0 | AQ76: 89884 | AS76: 67 | AT76: 2 | AU76: 0 | AV76: 0 | AW76: 0 | AX76: 0 | AY76: 0 | BA76: 0 | BB76: 0 | BC76: 0 | BD76: 0 | BE76: 0 | BG76: 9 | BH76: 0.1779772332 | BI76: 0 | CA76: 67 | CB76: 67 | CC76: CONCORD | CD76: 85132 | CE76: 51362 | CF76: 33770 | CG76: 6804 | CH76: 850.8 | CI76: 0 | CJ76: 41424.8 | CK76: 41424.8 | DA76: 67 | DB76: CONCORD | DC76: 0 | DD76: 0 | DE76: 0 | DF76: 0 | DG76: 0 | DH76: 0 | DI76: 0 | DJ76: 0 | DK76: 0 | DL76: 0 | DN76: 0 | DP76: 33770 | DQ76: 0 | DR76: 33770 | DS76: 0 | DT76: 0 | DV76: 0 | EC76: 0 | EE76: 67
A77: 68 | B77: 68 | C77: CONWAY | D77: 0 | E77: 0 | F77: 0 | G77: 0 | H77: 0 | J77: 0 | K77: 0 | L77: 0 | N77: 0 | P77: 0 | Q77: 0 | R77: 0 | S77: 0 | T77: 0 | U77: 0 | W77: 0 | AA77: 68 | AB77: 0 | AC77: 0 | AD77: 0 | AE77: 0 | AF77: 0 | AG77: 0 | AH77: 0 | AI77: 0 | AJ77: 0 | AK77: 0 | AL77: 0 | AM77: 0 | AN77: 0 | AO77: 0 | AP77: 0 | AQ77: 0 | AS77: 68 | AT77: 0 | AU77: 0 | AV77: 0 | AW77: 0 | AX77: 0 | AY77: 0 | BA77: 0 | BB77: 0 | BC77: 0 | BD77: 0 | BE77: 0 | BG77: 0 | BH77: 0 | BI77: 0 | CA77: 68 | CB77: 68 | CC77: CONWAY | CD77: 0 | CE77: 0 | CF77: 0 | CG77: 0 | CH77: 0 | CI77: 0 | CJ77: 0 | CK77: 0 | DA77: 68 | DB77: CONWAY | DC77: 0 | DD77: 0 | DE77: 0 | DF77: 0 | DG77: 0 | DH77: 0 | DI77: 0 | DJ77: 0 | DK77: 0 | DL77: 0 | DN77: 0 | DP77: 0 | DQ77: 0 | DR77: 0 | DS77: 0 | DT77: 0 | DV77: 0 | EC77: 0 | EE77: 68
A78: 69 | B78: 69 | C78: CUMMINGTON | D78: 0 | E78: 0 | F78: 0 | G78: 0 | H78: 0 | J78: 0 | K78: 0 | L78: 0 | N78: 0 | P78: 0 | Q78: 0 | R78: 0 | S78: 0 | T78: 0 | U78: 0 | W78: 0 | AA78: 69 | AB78: 0 | AC78: 0 | AD78: 0 | AE78: 0 | AF78: 0 | AG78: 0 | AH78: 0 | AI78: 0 | AJ78: 0 | AK78: 0 | AL78: 0 | AM78: 0 | AN78: 0 | AO78: 0 | AP78: 0 | AQ78: 0 | AS78: 69 | AT78: 0 | AU78: 0 | AV78: 0 | AW78: 0 | AX78: 0 | AY78: 0 | BA78: 0 | BB78: 0 | BC78: 0 | BD78: 0 | BE78: 0 | BG78: 0 | BH78: 0 | BI78: 0 | CA78: 69 | CB78: 69 | CC78: CUMMINGTON | CD78: 0 | CE78: 0 | CF78: 0 | CG78: 0 | CH78: 0 | CI78: 0 | CJ78: 0 | CK78: 0 | DA78: 69 | DB78: CUMMINGTON | DC78: 0 | DD78: 0 | DE78: 0 | DF78: 0 | DG78: 0 | DH78: 0 | DI78: 0 | DJ78: 0 | DK78: 0 | DL78: 0 | DN78: 0 | DP78: 0 | DQ78: 0 | DR78: 0 | DS78: 0 | DT78: 0 | DV78: 0 | EC78: 0 | EE78: 69
A79: 70 | B79: 70 | C79: DALTON | D79: 0 | E79: 0 | F79: 0 | G79: 0 | H79: 0 | J79: 0 | K79: 0 | L79: 0 | N79: 0 | P79: 0 | Q79: 0 | R79: 0 | S79: 0 | T79: 0 | U79: 0 | W79: 0 | AA79: 70 | AB79: 0 | AC79: 0 | AD79: 0 | AE79: 0 | AF79: 0 | AG79: 0 | AH79: 0 | AI79: 0 | AJ79: 0 | AK79: 0 | AL79: 0 | AM79: 0 | AN79: 0 | AO79: 0 | AP79: 0 | AQ79: 0 | AS79: 70 | AT79: 0 | AU79: 0 | AV79: 0 | AW79: 0 | AX79: 0 | AY79: 0 | BA79: 0 | BB79: 0 | BC79: 0 | BD79: 0 | BE79: 0 | BG79: 0 | BH79: 0 | BI79: 0 | CA79: 70 | CB79: 70 | CC79: DALTON | CD79: 0 | CE79: 0 | CF79: 0 | CG79: 0 | CH79: 0 | CI79: 0 | CJ79: 0 | CK79: 0 | DA79: 70 | DB79: DALTON | DC79: 0 | DD79: 0 | DE79: 0 | DF79: 0 | DG79: 0 | DH79: 0 | DI79: 0 | DJ79: 0 | DK79: 0 | DL79: 0 | DN79: 0 | DP79: 0 | DQ79: 0 | DR79: 0 | DS79: 0 | DT79: 0 | DV79: 0 | EC79: 0 | EE79: 70
A80: 71 | B80: 71 | C80: DANVERS | D80: 20 | E80: 358829 | F80: 0 | G80: 23638 | H80: 382467 | J80: 23638 | K80: 133279.4 | L80: 156917.4 | N80: 225549.6 | P80: 23638 | Q80: 0 | R80: 0 | S80: 0 | T80: 133279.4 | U80: 156917.4 | W80: 156917.4 | AA80: 71 | AB80: 20 | AC80: 0.1046135106 | AD80: 0 | AE80: 0 | AF80: 358829 | AG80: 0 | AH80: 0 | AI80: 358829 | AJ80: 0 | AK80: 23638 | AL80: 382467 | AM80: 0 | AN80: 0 | AO80: 0 | AP80: 0 | AQ80: 382467 | AS80: 71 | AT80: 11 | AU80: 0 | AV80: 0 | AW80: 0 | AX80: 0 | AY80: 0 | BA80: 0 | BB80: 0 | BC80: 0 | BD80: 0 | BE80: 0 | BG80: 9 | BH80: 0.5820138838 | BI80: 0 | CA80: 71 | CB80: 71 | CC80: DANVERS | CD80: 358829 | CE80: 384635 | CF80: 0 | CG80: 103143 | CH80: 30136.4 | CI80: 0 | CJ80: 133279.4 | CK80: 133279.4 | DA80: 71 | DB80: DANVERS | DC80: 0 | DD80: 0 | DE80: 0 | DF80: 0 | DG80: 0 | DH80: 0 | DI80: 0 | DJ80: 0 | DK80: 0 | DL80: 0 | DN80: 0 | DP80: 0 | DQ80: 0 | DR80: 0 | DS80: 0 | DT80: 0 | DV80: 0 | EC80: 0 | EE80: 71
A81: 72 | B81: 72 | C81: DARTMOUTH | D81: 8 | E81: 151155 | F81: 0 | G81: 9485 | H81: 160640 | J81: 9485 | K81: 8282.4 | L81: 17767.4 | N81: 142872.6 | P81: 9485 | Q81: 0 | R81: 0 | S81: 0 | T81: 8282.4 | U81: 17767.4 | W81: 17767.4 | AA81: 72 | AB81: 8 | AC81: 0.0151883441 | AD81: 0 | AE81: 0 | AF81: 151155 | AG81: 0 | AH81: 0 | AI81: 151155 | AJ81: 0 | AK81: 9485 | AL81: 160640 | AM81: 0 | AN81: 0 | AO81: 0 | AP81: 0 | AQ81: 160640 | AS81: 72 | AT81: 2 | AU81: 0 | AV81: 0 | AW81: 0 | AX81: 0 | AY81: 0 | BA81: 0 | BB81: 0 | BC81: 0 | BD81: 0 | BE81: 0 | BG81: 9 | BH81: 0.2712226911 | BI81: 0 | CA81: 72 | CB81: 72 | CC81: DARTMOUTH | CD81: 151155 | CE81: 170967 | CF81: 0 | CG81: 8282.4 | CH81: 0 | CI81: 0 | CJ81: 8282.4 | CK81: 8282.4 | DA81: 72 | DB81: DARTMOUTH | DC81: 0 | DD81: 0 | DE81: 0 | DF81: 0 | DG81: 0 | DH81: 0 | DI81: 0 | DJ81: 0 | DK81: 0 | DL81: 0 | DN81: 0 | DP81: 0 | DQ81: 0 | DR81: 0 | DS81: 0 | DT81: 0 | DV81: 0 | EC81: 0 | EE81: 72
A82: 73 | B82: 73 | C82: DEDHAM | D82: 32 | E82: 814147 | F82: 0 | G82: 37932 | H82: 852079 | J82: 37932 | K82: 119876.4 | L82: 157808.4 | N82: 694270.6 | P82: 37932 | Q82: 0 | R82: 0 | S82: 0 | T82: 119876.4 | U82: 157808.4 | W82: 157808.4 | AA82: 73 | AB82: 32 | AC82: 0.07009345794 | AD82: 0 | AE82: 0 | AF82: 814147 | AG82: 0 | AH82: 0 | AI82: 814147 | AJ82: 0 | AK82: 37932 | AL82: 852079 | AM82: 0 | AN82: 0 | AO82: 0 | AP82: 0 | AQ82: 852079 | AS82: 73 | AT82: 11 | AU82: 0 | AV82: 0 | AW82: 0 | AX82: 0 | AY82: 0 | BA82: 0 | BB82: 0 | BC82: 0 | BD82: 0 | BE82: 0 | BG82: 9 | BH82: 1.299953944 | BI82: 0 | CA82: 73 | CB82: 73 | CC82: DEDHAM | CD82: 814147 | CE82: 764415 | CF82: 49732 | CG82: 0 | CH82: 70144.4 | CI82: 0 | CJ82: 119876.4 | CK82: 119876.4 | DA82: 73 | DB82: DEDHAM | DC82: 0 | DD82: 0 | DE82: 0 | DF82: 0 | DG82: 0 | DH82: 0 | DI82: 0 | DJ82: 0 | DK82: 0 | DL82: 0 | DN82: 0 | DP82: 49732 | DQ82: 0 | DR82: 49732 | DS82: 0 | DT82: 0 | DV82: 0 | EC82: 0 | EE82: 73
A83: 74 | B83: 74 | C83: DEERFIELD | D83: 6 | E83: 135708 | F83: 0 | G83: 7128 | H83: 142836 | J83: 7128 | K83: 22492.4 | L83: 29620.4 | N83: 113215.6 | P83: 7128 | Q83: 0 | R83: 0 | S83: 0 | T83: 22492.4 | U83: 29620.4 | W83: 29620.4 | AA83: 74 | AB83: 6 | AC83: 0 | AD83: 0 | AE83: 0 | AF83: 135708 | AG83: 0 | AH83: 0 | AI83: 135708 | AJ83: 0 | AK83: 7128 | AL83: 142836 | AM83: 0 | AN83: 0 | AO83: 0 | AP83: 0 | AQ83: 142836 | AS83: 74 | AT83: 1 | AU83: 0 | AV83: 0 | AW83: 0 | AX83: 0 | AY83: 0 | BA83: 0 | BB83: 0 | BC83: 0 | BD83: 0 | BE83: 0 | BG83: 9 | BH83: 2.079048326 | BI83: 0 | CA83: 74 | CB83: 74 | CC83: DEERFIELD | CD83: 135708 | CE83: 173848 | CF83: 0 | CG83: 16846.8 | CH83: 5645.6 | CI83: 0 | CJ83: 22492.4 | CK83: 22492.4 | DA83: 74 | DB83: DEERFIELD | DC83: 0 | DD83: 0 | DE83: 0 | DF83: 0 | DG83: 0 | DH83: 0 | DI83: 0 | DJ83: 0 | DK83: 0 | DL83: 0 | DN83: 0 | DP83: 0 | DQ83: 0 | DR83: 0 | DS83: 0 | DT83: 0 | DV83: 0 | EC83: 0 | EE83: 74
A84: 75 | B84: 75 | C84: DENNIS | D84: 0 | E84: 0 | F84: 0 | G84: 0 | H84: 0 | J84: 0 | K84: 0 | L84: 0 | N84: 0 | P84: 0 | Q84: 0 | R84: 0 | S84: 0 | T84: 0 | U84: 0 | W84: 0 | AA84: 75 | AB84: 0 | AC84: 0 | AD84: 0 | AE84: 0 | AF84: 0 | AG84: 0 | AH84: 0 | AI84: 0 | AJ84: 0 | AK84: 0 | AL84: 0 | AM84: 0 | AN84: 0 | AO84: 0 | AP84: 0 | AQ84: 0 | AS84: 75 | AT84: 0 | AU84: 0 | AV84: 0 | AW84: 0 | AX84: 0 | AY84: 0 | BA84: 0 | BB84: 0 | BC84: 0 | BD84: 0 | BE84: 0 | BG84: 0 | BH84: 0 | BI84: 0 | CA84: 75 | CB84: 75 | CC84: DENNIS | CD84: 0 | CE84: 0 | CF84: 0 | CG84: 0 | CH84: 0 | CI84: 0 | CJ84: 0 | CK84: 0 | DA84: 75 | DB84: DENNIS | DC84: 0 | DD84: 0 | DE84: 0 | DF84: 0 | DG84: 0 | DH84: 0 | DI84: 0 | DJ84: 0 | DK84: 0 | DL84: 0 | DN84: 0 | DP84: 0 | DQ84: 0 | DR84: 0 | DS84: 0 | DT84: 0 | DV84: 0 | EC84: 0 | EE84: 75
A85: 76 | B85: 76 | C85: DIGHTON | D85: 0 | E85: 0 | F85: 0 | G85: 0 | H85: 0 | J85: 0 | K85: 0 | L85: 0 | N85: 0 | P85: 0 | Q85: 0 | R85: 0 | S85: 0 | T85: 0 | U85: 0 | W85: 0 | AA85: 76 | AB85: 0 | AC85: 0 | AD85: 0 | AE85: 0 | AF85: 0 | AG85: 0 | AH85: 0 | AI85: 0 | AJ85: 0 | AK85: 0 | AL85: 0 | AM85: 0 | AN85: 0 | AO85: 0 | AP85: 0 | AQ85: 0 | AS85: 76 | AT85: 0 | AU85: 0 | AV85: 0 | AW85: 0 | AX85: 0 | AY85: 0 | BA85: 0 | BB85: 0 | BC85: 0 | BD85: 0 | BE85: 0 | BG85: 0 | BH85: 0 | BI85: 0 | CA85: 76 | CB85: 76 | CC85: DIGHTON | CD85: 0 | CE85: 0 | CF85: 0 | CG85: 0 | CH85: 0 | CI85: 0 | CJ85: 0 | CK85: 0 | DA85: 76 | DB85: DIGHTON | DC85: 0 | DD85: 0 | DE85: 0 | DF85: 0 | DG85: 0 | DH85: 0 | DI85: 0 | DJ85: 0 | DK85: 0 | DL85: 0 | DN85: 0 | DP85: 0 | DQ85: 0 | DR85: 0 | DS85: 0 | DT85: 0 | DV85: 0 | EC85: 0 | EE85: 76
A86: 77 | B86: 77 | C86: DOUGLAS | D86: 0 | E86: 0 | F86: 0 | G86: 0 | H86: 0 | J86: 0 | K86: 0 | L86: 0 | N86: 0 | P86: 0 | Q86: 0 | R86: 0 | S86: 0 | T86: 0 | U86: 0 | W86: 0 | AA86: 77 | AB86: 0 | AC86: 0 | AD86: 0 | AE86: 0 | AF86: 0 | AG86: 0 | AH86: 0 | AI86: 0 | AJ86: 0 | AK86: 0 | AL86: 0 | AM86: 0 | AN86: 0 | AO86: 0 | AP86: 0 | AQ86: 0 | AS86: 77 | AT86: 0 | AU86: 0 | AV86: 0 | AW86: 0 | AX86: 0 | AY86: 0 | BA86: 0 | BB86: 0 | BC86: 0 | BD86: 0 | BE86: 0 | BG86: 0 | BH86: 0 | BI86: 0 | CA86: 77 | CB86: 77 | CC86: DOUGLAS | CD86: 0 | CE86: 0 | CF86: 0 | CG86: 0 | CH86: 0 | CI86: 0 | CJ86: 0 | CK86: 0 | DA86: 77 | DB86: DOUGLAS | DC86: 0 | DD86: 0 | DE86: 0 | DF86: 0 | DG86: 0 | DH86: 0 | DI86: 0 | DJ86: 0 | DK86: 0 | DL86: 0 | DN86: 0 | DP86: 0 | DQ86: 0 | DR86: 0 | DS86: 0 | DT86: 0 | DV86: 0 | EC86: 0 | EE86: 77
A87: 78 | B87: 78 | C87: DOVER | D87: 0 | E87: 0 | F87: 0 | G87: 0 | H87: 0 | J87: 0 | K87: 0 | L87: 0 | N87: 0 | P87: 0 | Q87: 0 | R87: 0 | S87: 0 | T87: 0 | U87: 0 | W87: 0 | AA87: 78 | AB87: 0 | AC87: 0 | AD87: 0 | AE87: 0 | AF87: 0 | AG87: 0 | AH87: 0 | AI87: 0 | AJ87: 0 | AK87: 0 | AL87: 0 | AM87: 0 | AN87: 0 | AO87: 0 | AP87: 0 | AQ87: 0 | AS87: 78 | AT87: 0 | AU87: 0 | AV87: 0 | AW87: 0 | AX87: 0 | AY87: 0 | BA87: 0 | BB87: 0 | BC87: 0 | BD87: 0 | BE87: 0 | BG87: 0 | BH87: 0 | BI87: 0 | CA87: 78 | CB87: 78 | CC87: DOVER | CD87: 0 | CE87: 0 | CF87: 0 | CG87: 0 | CH87: 0 | CI87: 0 | CJ87: 0 | CK87: 0 | DA87: 78 | DB87: DOVER | DC87: 0 | DD87: 0 | DE87: 0 | DF87: 0 | DG87: 0 | DH87: 0 | DI87: 0 | DJ87: 0 | DK87: 0 | DL87: 0 | DN87: 0 | DP87: 0 | DQ87: 0 | DR87: 0 | DS87: 0 | DT87: 0 | DV87: 0 | EC87: 0 | EE87: 78
A88: 79 | B88: 79 | C88: DRACUT | D88: 255 | E88: 3653251 | F88: 0 | G88: 302295 | H88: 3955546 | J88: 302295 | K88: 456654.4 | L88: 758949.4 | N88: 3196596.6 | P88: 302295 | Q88: 0 | R88: 0 | S88: 0 | T88: 456654.4 | U88: 758949.4 | W88: 758949.4 | AA88: 79 | AB88: 255 | AC88: 0.5325013549 | AD88: 0 | AE88: 0 | AF88: 3653251 | AG88: 0 | AH88: 0 | AI88: 3653251 | AJ88: 0 | AK88: 302295 | AL88: 3955546 | AM88: 0 | AN88: 0 | AO88: 0 | AP88: 0 | AQ88: 3955546 | AS88: 79 | AT88: 38 | AU88: 0 | AV88: 0 | AW88: 0 | AX88: 0 | AY88: 0 | BA88: 0 | BB88: 0 | BC88: 0 | BD88: 0 | BE88: 0 | BG88: 9 | BH88: 6.625370623 | BI88: 0 | CA88: 79 | CB88: 79 | CC88: DRACUT | CD88: 3653251 | CE88: 3417878 | CF88: 235373 | CG88: 148278.6 | CH88: 73002.8 | CI88: 0 | CJ88: 456654.4 | CK88: 456654.4 | DA88: 79 | DB88: DRACUT | DC88: 0 | DD88: 0 | DE88: 0 | DF88: 0 | DG88: 0 | DH88: 0 | DI88: 0 | DJ88: 0 | DK88: 0 | DL88: 0 | DN88: 0 | DP88: 235373 | DQ88: 0 | DR88: 235373 | DS88: 0 | DT88: 0 | DV88: 0 | EC88: 0 | EE88: 79
A89: 80 | B89: 80 | C89: DUDLEY | D89: 0 | E89: 0 | F89: 0 | G89: 0 | H89: 0 | J89: 0 | K89: 0 | L89: 0 | N89: 0 | P89: 0 | Q89: 0 | R89: 0 | S89: 0 | T89: 0 | U89: 0 | W89: 0 | AA89: 80 | AB89: 0 | AC89: 0 | AD89: 0 | AE89: 0 | AF89: 0 | AG89: 0 | AH89: 0 | AI89: 0 | AJ89: 0 | AK89: 0 | AL89: 0 | AM89: 0 | AN89: 0 | AO89: 0 | AP89: 0 | AQ89: 0 | AS89: 80 | AT89: 0 | AU89: 0 | AV89: 0 | AW89: 0 | AX89: 0 | AY89: 0 | BA89: 0 | BB89: 0 | BC89: 0 | BD89: 0 | BE89: 0 | BG89: 0 | BH89: 0 | BI89: 0 | CA89: 80 | CB89: 80 | CC89: DUDLEY | CD89: 0 | CE89: 0 | CF89: 0 | CG89: 0 | CH89: 0 | CI89: 0 | CJ89: 0 | CK89: 0 | DA89: 80 | DB89: DUDLEY | DC89: 0 | DD89: 0 | DE89: 0 | DF89: 0 | DG89: 0 | DH89: 0 | DI89: 0 | DJ89: 0 | DK89: 0 | DL89: 0 | DN89: 0 | DP89: 0 | DQ89: 0 | DR89: 0 | DS89: 0 | DT89: 0 | DV89: 0 | EC89: 0 | EE89: 80
A90: 81 | B90: 81 | C90: DUNSTABLE | D90: 0 | E90: 0 | F90: 0 | G90: 0 | H90: 0 | J90: 0 | K90: 0 | L90: 0 | N90: 0 | P90: 0 | Q90: 0 | R90: 0 | S90: 0 | T90: 0 | U90: 0 | W90: 0 | AA90: 81 | AB90: 0 | AC90: 0 | AD90: 0 | AE90: 0 | AF90: 0 | AG90: 0 | AH90: 0 | AI90: 0 | AJ90: 0 | AK90: 0 | AL90: 0 | AM90: 0 | AN90: 0 | AO90: 0 | AP90: 0 | AQ90: 0 | AS90: 81 | AT90: 0 | AU90: 0 | AV90: 0 | AW90: 0 | AX90: 0 | AY90: 0 | BA90: 0 | BB90: 0 | BC90: 0 | BD90: 0 | BE90: 0 | BG90: 0 | BH90: 0 | BI90: 0 | CA90: 81 | CB90: 81 | CC90: DUNSTABLE | CD90: 0 | CE90: 0 | CF90: 0 | CG90: 0 | CH90: 0 | CI90: 0 | CJ90: 0 | CK90: 0 | DA90: 81 | DB90: DUNSTABLE | DC90: 0 | DD90: 0 | DE90: 0 | DF90: 0 | DG90: 0 | DH90: 0 | DI90: 0 | DJ90: 0 | DK90: 0 | DL90: 0 | DN90: 0 | DP90: 0 | DQ90: 0 | DR90: 0 | DS90: 0 | DT90: 0 | DV90: 0 | EC90: 0 | EE90: 81
A91: 82 | B91: 82 | C91: DUXBURY | D91: 8 | E91: 147026 | F91: 0 | G91: 9486 | H91: 156512 | J91: 9486 | K91: 25511.2 | L91: 34997.2 | N91: 121514.8 | P91: 9486 | Q91: 0 | R91: 0 | S91: 0 | T91: 25511.2 | U91: 34997.2 | W91: 34997.2 | AA91: 82 | AB91: 8 | AC91: 0.01444043321 | AD91: 0 | AE91: 0 | AF91: 147026 | AG91: 0 | AH91: 0 | AI91: 147026 | AJ91: 0 | AK91: 9486 | AL91: 156512 | AM91: 0 | AN91: 0 | AO91: 0 | AP91: 0 | AQ91: 156512 | AS91: 82 | AT91: 0 | AU91: 0 | AV91: 0 | AW91: 0 | AX91: 0 | AY91: 0 | BA91: 0 | BB91: 0 | BC91: 0 | BD91: 0 | BE91: 0 | BG91: 9 | BH91: 0.2992881053 | BI91: 0 | CA91: 82 | CB91: 82 | CC91: DUXBURY | CD91: 147026 | CE91: 180496 | CF91: 0 | CG91: 16413.6 | CH91: 9097.6 | CI91: 0 | CJ91: 25511.2 | CK91: 25511.2 | DA91: 82 | DB91: DUXBURY | DC91: 0 | DD91: 0 | DE91: 0 | DF91: 0 | DG91: 0 | DH91: 0 | DI91: 0 | DJ91: 0 | DK91: 0 | DL91: 0 | DN91: 0 | DP91: 0 | DQ91: 0 | DR91: 0 | DS91: 0 | DT91: 0 | DV91: 0 | EC91: 0 | EE91: 82
A92: 83 | B92: 83 | C92: EAST BRIDGEWATER | D92: 17 | E92: 282088 | F92: 0 | G92: 20178 | H92: 302266 | J92: 20178 | K92: 75735.2 | L92: 95913.2 | N92: 206352.8 | P92: 20178 | Q92: 0 | R92: 0 | S92: 0 | T92: 75735.2 | U92: 95913.2 | W92: 95913.2 | AA92: 83 | AB92: 17 | AC92: 0.01444043321 | AD92: 0 | AE92: 0 | AF92: 282088 | AG92: 0 | AH92: 0 | AI92: 282088 | AJ92: 0 | AK92: 20178 | AL92: 302266 | AM92: 0 | AN92: 0 | AO92: 0 | AP92: 0 | AQ92: 302266 | AS92: 83 | AT92: 3 | AU92: 0 | AV92: 0 | AW92: 0 | AX92: 0 | AY92: 0 | BA92: 0 | BB92: 0 | BC92: 0 | BD92: 0 | BE92: 0 | BG92: 9 | BH92: 0.9514876529 | BI92: 0 | CA92: 83 | CB92: 83 | CC92: EAST BRIDGEWATER | CD92: 282088 | CE92: 326315 | CF92: 0 | CG92: 36780 | CH92: 38955.2 | CI92: 0 | CJ92: 75735.2 | CK92: 75735.2 | DA92: 83 | DB92: EAST BRIDGEWATER | DC92: 0 | DD92: 0 | DE92: 0 | DF92: 0 | DG92: 0 | DH92: 0 | DI92: 0 | DJ92: 0 | DK92: 0 | DL92: 0 | DN92: 0 | DP92: 0 | DQ92: 0 | DR92: 0 | DS92: 0 | DT92: 0 | DV92: 0 | EC92: 0 | EE92: 83
A93: 84 | B93: 84 | C93: EAST BROOKFIELD | D93: 0 | E93: 0 | F93: 0 | G93: 0 | H93: 0 | J93: 0 | K93: 0 | L93: 0 | N93: 0 | P93: 0 | Q93: 0 | R93: 0 | S93: 0 | T93: 0 | U93: 0 | W93: 0 | AA93: 84 | AB93: 0 | AC93: 0 | AD93: 0 | AE93: 0 | AF93: 0 | AG93: 0 | AH93: 0 | AI93: 0 | AJ93: 0 | AK93: 0 | AL93: 0 | AM93: 0 | AN93: 0 | AO93: 0 | AP93: 0 | AQ93: 0 | AS93: 84 | AT93: 0 | AU93: 0 | AV93: 0 | AW93: 0 | AX93: 0 | AY93: 0 | BA93: 0 | BB93: 0 | BC93: 0 | BD93: 0 | BE93: 0 | BG93: 0 | BH93: 0 | BI93: 0 | CA93: 84 | CB93: 84 | CC93: EAST BROOKFIELD | CD93: 0 | CE93: 0 | CF93: 0 | CG93: 0 | CH93: 0 | CI93: 0 | CJ93: 0 | CK93: 0 | DA93: 84 | DB93: EAST BROOKFIELD | DC93: 0 | DD93: 0 | DE93: 0 | DF93: 0 | DG93: 0 | DH93: 0 | DI93: 0 | DJ93: 0 | DK93: 0 | DL93: 0 | DN93: 0 | DP93: 0 | DQ93: 0 | DR93: 0 | DS93: 0 | DT93: 0 | DV93: 0 | EC93: 0 | EE93: 84
A94: 85 | B94: 86 | C94: EASTHAM | D94: 0 | E94: 0 | F94: 0 | G94: 0 | H94: 0 | J94: 0 | K94: 0 | L94: 0 | N94: 0 | P94: 0 | Q94: 0 | R94: 0 | S94: 0 | T94: 0 | U94: 0 | W94: 0 | AA94: 85 | AB94: 0 | AC94: 0 | AD94: 0 | AE94: 0 | AF94: 0 | AG94: 0 | AH94: 0 | AI94: 0 | AJ94: 0 | AK94: 0 | AL94: 0 | AM94: 0 | AN94: 0 | AO94: 0 | AP94: 0 | AQ94: 0 | AS94: 85 | AT94: 0 | AU94: 0 | AV94: 0 | AW94: 0 | AX94: 0 | AY94: 0 | BA94: 0 | BB94: 0 | BC94: 0 | BD94: 0 | BE94: 0 | BG94: 0 | BH94: 0 | BI94: 0 | CA94: 85 | CB94: 86 | CC94: EASTHAM | CD94: 0 | CE94: 0 | CF94: 0 | CG94: 0 | CH94: 0 | CI94: 0 | CJ94: 0 | CK94: 0 | DA94: 85 | DB94: EASTHAM | DC94: 0 | DD94: 0 | DE94: 0 | DF94: 0 | DG94: 0 | DH94: 0 | DI94: 0 | DJ94: 0 | DK94: 0 | DL94: 0 | DN94: 0 | DP94: 0 | DQ94: 0 | DR94: 0 | DS94: 0 | DT94: 0 | DV94: 0 | EC94: 0 | EE94: 85
A95: 86 | B95: 87 | C95: EASTHAMPTON | D95: 119 | E95: 1614703 | F95: 0 | G95: 141372 | H95: 1756075 | J95: 141372 | K95: 142943 | L95: 284315 | N95: 1471760 | P95: 141372 | Q95: 0 | R95: 0 | S95: 0 | T95: 142943 | U95: 284315 | W95: 284315 | AA95: 86 | AB95: 119 | AC95: 0 | AD95: 0 | AE95: 0 | AF95: 1614703 | AG95: 0 | AH95: 0 | AI95: 1614703 | AJ95: 0 | AK95: 141372 | AL95: 1756075 | AM95: 0 | AN95: 0 | AO95: 0 | AP95: 0 | AQ95: 1756075 | AS95: 86 | AT95: 30 | AU95: 0 | AV95: 0 | AW95: 0 | AX95: 0 | AY95: 0 | BA95: 0 | BB95: 0 | BC95: 0 | BD95: 0 | BE95: 0 | BG95: 9 | BH95: 6.459409986 | BI95: 0 | CA95: 86 | CB95: 87 | CC95: EASTHAMPTON | CD95: 1614703 | CE95: 1518769 | CF95: 95934 | CG95: 39724.2 | CH95: 7284.8 | CI95: 0 | CJ95: 142943 | CK95: 142943 | DA95: 86 | DB95: EASTHAMPTON | DC95: 0 | DD95: 0 | DE95: 0 | DF95: 0 | DG95: 0 | DH95: 0 | DI95: 0 | DJ95: 0 | DK95: 0 | DL95: 0 | DN95: 0 | DP95: 95934 | DQ95: 0 | DR95: 95934 | DS95: 0 | DT95: 0 | DV95: 0 | EC95: 0 | EE95: 86
A96: 87 | B96: 85 | C96: EAST LONGMEADOW | D96: 16 | E96: 309622 | F96: 0 | G96: 18987 | H96: 328609 | J96: 18987 | K96: 81014.8 | L96: 100001.8 | N96: 228607.2 | P96: 18987 | Q96: 0 | R96: 0 | S96: 0 | T96: 81014.8 | U96: 100001.8 | W96: 100001.8 | AA96: 87 | AB96: 16 | AC96: 0.01788617886 | AD96: 0 | AE96: 0 | AF96: 309622 | AG96: 0 | AH96: 0 | AI96: 309622 | AJ96: 0 | AK96: 18987 | AL96: 328609 | AM96: 0 | AN96: 0 | AO96: 0 | AP96: 0 | AQ96: 328609 | AS96: 87 | AT96: 6 | AU96: 0 | AV96: 0 | AW96: 0 | AX96: 0 | AY96: 0 | BA96: 0 | BB96: 0 | BC96: 0 | BD96: 0 | BE96: 0 | BG96: 9 | BH96: 0.6768434123 | BI96: 0 | CA96: 87 | CB96: 85 | CC96: EAST LONGMEADOW | CD96: 309622 | CE96: 282024 | CF96: 27598 | CG96: 0 | CH96: 53416.8 | CI96: 0 | CJ96: 81014.8 | CK96: 81014.8 | DA96: 87 | DB96: EAST LONGMEADOW | DC96: 0 | DD96: 0 | DE96: 0 | DF96: 0 | DG96: 0 | DH96: 0 | DI96: 0 | DJ96: 0 | DK96: 0 | DL96: 0 | DN96: 0 | DP96: 27598 | DQ96: 0 | DR96: 27598 | DS96: 0 | DT96: 0 | DV96: 0 | EC96: 0 | EE96: 87
A97: 88 | B97: 88 | C97: EASTON | D97: 25 | E97: 445872 | F97: 0 | G97: 29700 | H97: 475572 | J97: 29700 | K97: 164745 | L97: 194445 | N97: 281127 | P97: 29700 | Q97: 0 | R97: 0 | S97: 0 | T97: 164745 | U97: 194445 | W97: 194445 | AA97: 88 | AB97: 25 | AC97: 0 | AD97: 0 | AE97: 0 | AF97: 445872 | AG97: 0 | AH97: 0 | AI97: 445872 | AJ97: 0 | AK97: 29700 | AL97: 475572 | AM97: 0 | AN97: 0 | AO97: 0 | AP97: 0 | AQ97: 475572 | AS97: 88 | AT97: 1 | AU97: 0 | AV97: 0 | AW97: 0 | AX97: 0 | AY97: 0 | BA97: 0 | BB97: 0 | BC97: 0 | BD97: 0 | BE97: 0 | BG97: 9 | BH97: 0.8145881179 | BI97: 0 | CA97: 88 | CB97: 88 | CC97: EASTON | CD97: 445872 | CE97: 353397 | CF97: 92475 | CG97: 72270 | CH97: 0 | CI97: 0 | CJ97: 164745 | CK97: 164745 | DA97: 88 | DB97: EASTON | DC97: 0 | DD97: 0 | DE97: 0 | DF97: 0 | DG97: 0 | DH97: 0 | DI97: 0 | DJ97: 0 | DK97: 0 | DL97: 0 | DN97: 0 | DP97: 92475 | DQ97: 0 | DR97: 92475 | DS97: 0 | DT97: 0 | DV97: 0 | EC97: 0 | EE97: 88
A98: 89 | B98: 89 | C98: EDGARTOWN | D98: 34 | E98: 959888 | F98: 0 | G98: 40392 | H98: 1000280 | J98: 40392 | K98: 231011 | L98: 271403 | N98: 728877 | P98: 40392 | Q98: 0 | R98: 0 | S98: 0 | T98: 231011 | U98: 271403 | W98: 271403 | AA98: 89 | AB98: 34 | AC98: 0 | AD98: 0 | AE98: 0 | AF98: 959888 | AG98: 0 | AH98: 0 | AI98: 959888 | AJ98: 0 | AK98: 40392 | AL98: 1000280 | AM98: 0 | AN98: 0 | AO98: 0 | AP98: 0 | AQ98: 1000280 | AS98: 89 | AT98: 5 | AU98: 0 | AV98: 0 | AW98: 0 | AX98: 0 | AY98: 0 | BA98: 0 | BB98: 0 | BC98: 0 | BD98: 0 | BE98: 0 | BG98: 9 | BH98: 7.206693925 | BI98: 0 | CA98: 89 | CB98: 89 | CC98: EDGARTOWN | CD98: 959888 | CE98: 792802 | CF98: 167086 | CG98: 55231.8 | CH98: 8693.2 | CI98: 0 | CJ98: 231011 | CK98: 231011 | DA98: 89 | DB98: EDGARTOWN | DC98: 0 | DD98: 0 | DE98: 0 | DF98: 0 | DG98: 0 | DH98: 0 | DI98: 0 | DJ98: 0 | DK98: 0 | DL98: 0 | DN98: 0 | DP98: 167086 | DQ98: 0 | DR98: 167086 | DS98: 0 | DT98: 0 | DV98: 0 | EC98: 0 | EE98: 89
A99: 90 | B99: 90 | C99: EGREMONT | D99: 0 | E99: 0 | F99: 0 | G99: 0 | H99: 0 | J99: 0 | K99: 0 | L99: 0 | N99: 0 | P99: 0 | Q99: 0 | R99: 0 | S99: 0 | T99: 0 | U99: 0 | W99: 0 | AA99: 90 | AB99: 0 | AC99: 0 | AD99: 0 | AE99: 0 | AF99: 0 | AG99: 0 | AH99: 0 | AI99: 0 | AJ99: 0 | AK99: 0 | AL99: 0 | AM99: 0 | AN99: 0 | AO99: 0 | AP99: 0 | AQ99: 0 | AS99: 90 | AT99: 0 | AU99: 0 | AV99: 0 | AW99: 0 | AX99: 0 | AY99: 0 | BA99: 0 | BB99: 0 | BC99: 0 | BD99: 0 | BE99: 0 | BG99: 0 | BH99: 0 | BI99: 0 | CA99: 90 | CB99: 90 | CC99: EGREMONT | CD99: 0 | CE99: 0 | CF99: 0 | CG99: 0 | CH99: 0 | CI99: 0 | CJ99: 0 | CK99: 0 | DA99: 90 | DB99: EGREMONT | DC99: 0 | DD99: 0 | DE99: 0 | DF99: 0 | DG99: 0 | DH99: 0 | DI99: 0 | DJ99: 0 | DK99: 0 | DL99: 0 | DN99: 0 | DP99: 0 | DQ99: 0 | DR99: 0 | DS99: 0 | DT99: 0 | DV99: 0 | EC99: 0 | EE99: 90
A100: 91 | B100: 91 | C100: ERVING | D100: 1 | E100: 26103 | F100: 0 | G100: 1188 | H100: 27291 | J100: 1188 | K100: 0 | L100: 1188 | N100: 26103 | P100: 1188 | Q100: 0 | R100: 0 | S100: 0 | T100: 0 | U100: 1188 | W100: 1188 | AA100: 91 | AB100: 1 | AC100: 0 | AD100: 0 | AE100: 0 | AF100: 26103 | AG100: 0 | AH100: 0 | AI100: 26103 | AJ100: 0 | AK100: 1188 | AL100: 27291 | AM100: 0 | AN100: 0 | AO100: 0 | AP100: 0 | AQ100: 27291 | AS100: 91 | AT100: 0 | AU100: 0 | AV100: 0 | AW100: 0 | AX100: 0 | AY100: 0 | BA100: 0 | BB100: 0 | BC100: 0 | BD100: 0 | BE100: 0 | BG100: 9 | BH100: 0.4385981862 | BI100: 0 | CA100: 91 | CB100: 91 | CC100: ERVING | CD100: 26103 | CE100: 43274 | CF100: 0 | CG100: 0 | CH100: 0 | CI100: 0 | CJ100: 0 | CK100: 0 | DA100: 91 | DB100: ERVING | DC100: 0 | DD100: 0 | DE100: 0 | DF100: 0 | DG100: 0 | DH100: 0 | DI100: 0 | DJ100: 0 | DK100: 0 | DL100: 0 | DN100: 0 | DP100: 0 | DQ100: 0 | DR100: 0 | DS100: 0 | DT100: 0 | DV100: 0 | EC100: 0 | EE100: 91
A101: 92 | B101: 92 | C101: ESSEX | D101: 0 | E101: 0 | F101: 0 | G101: 0 | H101: 0 | J101: 0 | K101: 0 | L101: 0 | N101: 0 | P101: 0 | Q101: 0 | R101: 0 | S101: 0 | T101: 0 | U101: 0 | W101: 0 | AA101: 92 | AB101: 0 | AC101: 0 | AD101: 0 | AE101: 0 | AF101: 0 | AG101: 0 | AH101: 0 | AI101: 0 | AJ101: 0 | AK101: 0 | AL101: 0 | AM101: 0 | AN101: 0 | AO101: 0 | AP101: 0 | AQ101: 0 | AS101: 92 | AT101: 0 | AU101: 0 | AV101: 0 | AW101: 0 | AX101: 0 | AY101: 0 | BA101: 0 | BB101: 0 | BC101: 0 | BD101: 0 | BE101: 0 | BG101: 0 | BH101: 0 | BI101: 0 | CA101: 92 | CB101: 92 | CC101: ESSEX | CD101: 0 | CE101: 0 | CF101: 0 | CG101: 0 | CH101: 0 | CI101: 0 | CJ101: 0 | CK101: 0 | DA101: 92 | DB101: ESSEX | DC101: 0 | DD101: 0 | DE101: 0 | DF101: 0 | DG101: 0 | DH101: 0 | DI101: 0 | DJ101: 0 | DK101: 0 | DL101: 0 | DN101: 0 | DP101: 0 | DQ101: 0 | DR101: 0 | DS101: 0 | DT101: 0 | DV101: 0 | EC101: 0 | EE101: 92
A102: 93 | B102: 93 | C102: EVERETT | D102: 765 | E102: 12874402 | F102: 0 | G102: 908808 | H102: 13783210 | J102: 908808 | K102: 3442932.8 | L102: 4351740.8 | N102: 9431469.2 | P102: 908808 | Q102: 0 | R102: 0 | S102: 0 | T102: 3442932.8 | U102: 4351740.8 | W102: 4351740.8 | AA102: 93 | AB102: 765 | AC102: 0.01015228426 | AD102: 0 | AE102: 0 | AF102: 12874402 | AG102: 0 | AH102: 0 | AI102: 12874402 | AJ102: 0 | AK102: 908808 | AL102: 13783210 | AM102: 0 | AN102: 0 | AO102: 0 | AP102: 0 | AQ102: 13783210 | AS102: 93 | AT102: 263 | AU102: 0 | AV102: 0 | AW102: 0 | AX102: 0 | AY102: 0 | BA102: 0 | BB102: 0 | BC102: 0 | BD102: 0 | BE102: 0 | BG102: 18 | BH102: 8.435749774 | BI102: 0 | CA102: 93 | CB102: 93 | CC102: EVERETT | CD102: 12874402 | CE102: 10893799 | CF102: 1980603 | CG102: 894965.4 | CH102: 567364.4 | CI102: 0 | CJ102: 3442932.8 | CK102: 3442932.8 | DA102: 93 | DB102: EVERETT | DC102: 0 | DD102: 0 | DE102: 0 | DF102: 0 | DG102: 0 | DH102: 0 | DI102: 0 | DJ102: 0 | DK102: 0 | DL102: 0 | DN102: 0 | DP102: 1980603 | DQ102: 0 | DR102: 1980603 | DS102: 0 | DT102: 0 | DV102: 0 | EC102: 0 | EE102: 93
A103: 94 | B103: 94 | C103: FAIRHAVEN | D103: 4 | E103: 67014 | F103: 0 | G103: 4724 | H103: 71738 | J103: 4724 | K103: 45483.4 | L103: 50207.4 | N103: 21530.6 | P103: 4724 | Q103: 0 | R103: 0 | S103: 0 | T103: 45483.4 | U103: 50207.4 | W103: 50207.4 | AA103: 94 | AB103: 4 | AC103: 0.0224085607 | AD103: 0 | AE103: 0 | AF103: 67014 | AG103: 0 | AH103: 0 | AI103: 67014 | AJ103: 0 | AK103: 4724 | AL103: 71738 | AM103: 0 | AN103: 0 | AO103: 0 | AP103: 0 | AQ103: 71738 | AS103: 94 | AT103: 0 | AU103: 0 | AV103: 0 | AW103: 0 | AX103: 0 | AY103: 0 | BA103: 0 | BB103: 0 | BC103: 0 | BD103: 0 | BE103: 0 | BG103: 9 | BH103: 0.2757022255 | BI103: 0 | CA103: 94 | CB103: 94 | CC103: FAIRHAVEN | CD103: 67014 | CE103: 30326 | CF103: 36688 | CG103: 8795.4 | CH103: 0 | CI103: 0 | CJ103: 45483.4 | CK103: 45483.4 | DA103: 94 | DB103: FAIRHAVEN | DC103: 0 | DD103: 0 | DE103: 0 | DF103: 0 | DG103: 0 | DH103: 0 | DI103: 0 | DJ103: 0 | DK103: 0 | DL103: 0 | DN103: 0 | DP103: 36688 | DQ103: 0 | DR103: 36688 | DS103: 0 | DT103: 0 | DV103: 0 | EC103: 0 | EE103: 94
A104: 95 | B104: 95 | C104: FALL RIVER | D104: 1757 | E104: 30462809 | F104: 0 | G104: 2087288 | H104: 32550097 | J104: 2087288 | K104: 5982182.4 | L104: 8069470.4 | N104: 24480626.6 | P104: 2087288 | Q104: 0 | R104: 0 | S104: 0 | T104: 5982182.4 | U104: 8069470.4 | W104: 8069470.4 | AA104: 95 | AB104: 1757 | AC104: 0.0224085607 | AD104: 0 | AE104: 0 | AF104: 30462809 | AG104: 0 | AH104: 0 | AI104: 30462809 | AJ104: 0 | AK104: 2087288 | AL104: 32550097 | AM104: 0 | AN104: 0 | AO104: 0 | AP104: 0 | AQ104: 32550097 | AS104: 95 | AT104: 570 | AU104: 0 | AV104: 0 | AW104: 0 | AX104: 0 | AY104: 0 | BA104: 0 | BB104: 0 | BC104: 0 | BD104: 0 | BE104: 0 | BG104: 18 | BH104: 13.30838943 | BI104: 0 | CA104: 95 | CB104: 95 | CC104: FALL RIVER | CD104: 30462809 | CE104: 26839293 | CF104: 3623516 | CG104: 1953190.8 | CH104: 405475.6 | CI104: 0 | CJ104: 5982182.4 | CK104: 5982182.4 | DA104: 95 | DB104: FALL RIVER | DC104: 0 | DD104: 0 | DE104: 0 | DF104: 0 | DG104: 0 | DH104: 0 | DI104: 0 | DJ104: 0 | DK104: 0 | DL104: 0 | DN104: 0 | DP104: 3623516 | DQ104: 0 | DR104: 3623516 | DS104: 0 | DT104: 0 | DV104: 0 | EC104: 0 | EE104: 95
A105: 96 | B105: 96 | C105: FALMOUTH | D105: 119 | E105: 2585796 | F105: 0 | G105: 141300 | H105: 2727096 | J105: 141300 | K105: 264350.4 | L105: 405650.4 | N105: 2321445.6 | P105: 141300 | Q105: 0 | R105: 0 | S105: 0 | T105: 264350.4 | U105: 405650.4 | W105: 405650.4 | AA105: 96 | AB105: 119 | AC105: 0.05776173285 | AD105: 0 | AE105: 0 | AF105: 2585796 | AG105: 0 | AH105: 0 | AI105: 2585796 | AJ105: 0 | AK105: 141300 | AL105: 2727096 | AM105: 0 | AN105: 0 | AO105: 0 | AP105: 0 | AQ105: 2727096 | AS105: 96 | AT105: 30 | AU105: 0 | AV105: 0 | AW105: 0 | AX105: 0 | AY105: 0 | BA105: 0 | BB105: 0 | BC105: 0 | BD105: 0 | BE105: 0 | BG105: 9 | BH105: 3.842057112 | BI105: 0 | CA105: 96 | CB105: 96 | CC105: FALMOUTH | CD105: 2585796 | CE105: 2617918 | CF105: 0 | CG105: 23562 | CH105: 240788.4 | CI105: 0 | CJ105: 264350.4 | CK105: 264350.4 | DA105: 96 | DB105: FALMOUTH | DC105: 0 | DD105: 0 | DE105: 0 | DF105: 0 | DG105: 0 | DH105: 0 | DI105: 0 | DJ105: 0 | DK105: 0 | DL105: 0 | DN105: 0 | DP105: 0 | DQ105: 0 | DR105: 0 | DS105: 0 | DT105: 0 | DV105: 0 | EC105: 0 | EE105: 96
A106: 97 | B106: 97 | C106: FITCHBURG | D106: 208 | E106: 3343985 | F106: 0 | G106: 247104 | H106: 3591089 | J106: 247104 | K106: 380328 | L106: 627432 | N106: 2963657 | P106: 247104 | Q106: 0 | R106: 0 | S106: 0 | T106: 380328 | U106: 627432 | W106: 627432 | AA106: 97 | AB106: 208 | AC106: 0 | AD106: 0 | AE106: 0 | AF106: 3343985 | AG106: 0 | AH106: 0 | AI106: 3343985 | AJ106: 0 | AK106: 247104 | AL106: 3591089 | AM106: 0 | AN106: 0 | AO106: 0 | AP106: 0 | AQ106: 3591089 | AS106: 97 | AT106: 12 | AU106: 0 | AV106: 0 | AW106: 0 | AX106: 0 | AY106: 0 | BA106: 0 | BB106: 0 | BC106: 0 | BD106: 0 | BE106: 0 | BG106: 18 | BH106: 3.48433183 | BI106: 0 | CA106: 97 | CB106: 97 | CC106: FITCHBURG | CD106: 3343985 | CE106: 3534649 | CF106: 0 | CG106: 219838.8 | CH106: 160489.2 | CI106: 0 | CJ106: 380328 | CK106: 380328 | DA106: 97 | DB106: FITCHBURG | DC106: 0 | DD106: 0 | DE106: 0 | DF106: 0 | DG106: 0 | DH106: 0 | DI106: 0 | DJ106: 0 | DK106: 0 | DL106: 0 | DN106: 0 | DP106: 0 | DQ106: 0 | DR106: 0 | DS106: 0 | DT106: 0 | DV106: 0 | EC106: 0 | EE106: 97
A107: 98 | B107: 98 | C107: FLORIDA | D107: 1 | E107: 28212 | F107: 0 | G107: 1181 | H107: 29393 | J107: 1181 | K107: 9733 | L107: 10914 | N107: 18479 | P107: 1181 | Q107: 0 | R107: 0 | S107: 0 | T107: 9733 | U107: 10914 | W107: 10914 | AA107: 98 | AB107: 1 | AC107: 0.005479452055 | AD107: 0 | AE107: 0 | AF107: 28212 | AG107: 0 | AH107: 0 | AI107: 28212 | AJ107: 0 | AK107: 1181 | AL107: 29393 | AM107: 0 | AN107: 0 | AO107: 0 | AP107: 0 | AQ107: 29393 | AS107: 98 | AT107: 0 | AU107: 0 | AV107: 0 | AW107: 0 | AX107: 0 | AY107: 0 | BA107: 0 | BB107: 0 | BC107: 0 | BD107: 0 | BE107: 0 | BG107: 18 | BH107: 1.77329572 | BI107: 0 | CA107: 98 | CB107: 98 | CC107: FLORIDA | CD107: 28212 | CE107: 18479 | CF107: 9733 | CG107: 0 | CH107: 0 | CI107: 0 | CJ107: 9733 | CK107: 9733 | DA107: 98 | DB107: FLORIDA | DC107: 0 | DD107: 0 | DE107: 0 | DF107: 0 | DG107: 0 | DH107: 0 | DI107: 0 | DJ107: 0 | DK107: 0 | DL107: 0 | DN107: 0 | DP107: 9733 | DQ107: 0 | DR107: 9733 | DS107: 0 | DT107: 0 | DV107: 0 | EC107: 0 | EE107: 98
A108: 99 | B108: 99 | C108: FOXBOROUGH | D108: 91 | E108: 1809567 | F108: 0 | G108: 108102 | H108: 1917669 | J108: 108102 | K108: 0 | L108: 108102 | N108: 1809567 | P108: 108102 | Q108: 0 | R108: 0 | S108: 0 | T108: 0 | U108: 108102 | W108: 108102 | AA108: 99 | AB108: 91 | AC108: 0.005076142132 | AD108: 0 | AE108: 0 | AF108: 1809567 | AG108: 0 | AH108: 0 | AI108: 1809567 | AJ108: 0 | AK108: 108102 | AL108: 1917669 | AM108: 0 | AN108: 0 | AO108: 0 | AP108: 0 | AQ108: 1917669 | AS108: 99 | AT108: 19 | AU108: 0 | AV108: 0 | AW108: 0 | AX108: 0 | AY108: 0 | BA108: 0 | BB108: 0 | BC108: 0 | BD108: 0 | BE108: 0 | BG108: 9 | BH108: 3.595047255 | BI108: 0 | CA108: 99 | CB108: 99 | CC108: FOXBOROUGH | CD108: 1809567 | CE108: 1849550 | CF108: 0 | CG108: 0 | CH108: 0 | CI108: 0 | CJ108: 0 | CK108: 0 | DA108: 99 | DB108: FOXBOROUGH | DC108: 0 | DD108: 0 | DE108: 0 | DF108: 0 | DG108: 0 | DH108: 0 | DI108: 0 | DJ108: 0 | DK108: 0 | DL108: 0 | DN108: 0 | DP108: 0 | DQ108: 0 | DR108: 0 | DS108: 0 | DT108: 0 | DV108: 0 | EC108: 0 | EE108: 99
A109: 100 | B109: 100 | C109: FRAMINGHAM | D109: 281 | E109: 5153219 | F109: 0 | G109: 333786 | H109: 5487005 | J109: 333786 | K109: 38338.8 | L109: 372124.8 | N109: 5114880.2 | P109: 333786 | Q109: 0 | R109: 0 | S109: 0 | T109: 38338.8 | U109: 372124.8 | W109: 372124.8 | AA109: 100 | AB109: 281 | AC109: 0.03504672897 | AD109: 0 | AE109: 0 | AF109: 5153219 | AG109: 0 | AH109: 0 | AI109: 5153219 | AJ109: 0 | AK109: 333786 | AL109: 5487005 | AM109: 0 | AN109: 0 | AO109: 0 | AP109: 0 | AQ109: 5487005 | AS109: 100 | AT109: 11 | AU109: 0 | AV109: 0 | AW109: 0 | AX109: 0 | AY109: 0 | BA109: 0 | BB109: 0 | BC109: 0 | BD109: 0 | BE109: 0 | BG109: 9 | BH109: 2.532836859 | BI109: 0 | CA109: 100 | CB109: 100 | CC109: FRAMINGHAM | CD109: 5153219 | CE109: 5495906 | CF109: 0 | CG109: 0 | CH109: 38338.8 | CI109: 0 | CJ109: 38338.8 | CK109: 38338.8 | DA109: 100 | DB109: FRAMINGHAM | DC109: 0 | DD109: 0 | DE109: 0 | DF109: 0 | DG109: 0 | DH109: 0 | DI109: 0 | DJ109: 0 | DK109: 0 | DL109: 0 | DN109: 0 | DP109: 0 | DQ109: 0 | DR109: 0 | DS109: 0 | DT109: 0 | DV109: 0 | EC109: 0 | EE109: 100
A110: 101 | B110: 101 | C110: FRANKLIN | D110: 331 | E110: 5522101 | F110: 0 | G110: 393228 | H110: 5915329 | J110: 393228 | K110: 679975.4 | L110: 1073203.4 | N110: 4842125.6 | P110: 393228 | Q110: 0 | R110: 0 | S110: 0 | T110: 679975.4 | U110: 1073203.4 | W110: 1073203.4 | AA110: 101 | AB110: 331 | AC110: 0 | AD110: 0 | AE110: 0 | AF110: 5522101 | AG110: 0 | AH110: 0 | AI110: 5522101 | AJ110: 0 | AK110: 393228 | AL110: 5915329 | AM110: 0 | AN110: 0 | AO110: 0 | AP110: 0 | AQ110: 5915329 | AS110: 101 | AT110: 75 | AU110: 0 | AV110: 0 | AW110: 0 | AX110: 0 | AY110: 0 | BA110: 0 | BB110: 0 | BC110: 0 | BD110: 0 | BE110: 0 | BG110: 9 | BH110: 5.918787388 | BI110: 0 | CA110: 101 | CB110: 101 | CC110: FRANKLIN | CD110: 5522101 | CE110: 5138171 | CF110: 383930 | CG110: 296045.4 | CH110: 0 | CI110: 0 | CJ110: 679975.4 | CK110: 679975.4 | DA110: 101 | DB110: FRANKLIN | DC110: 0 | DD110: 0 | DE110: 0 | DF110: 0 | DG110: 0 | DH110: 0 | DI110: 0 | DJ110: 0 | DK110: 0 | DL110: 0 | DN110: 0 | DP110: 383930 | DQ110: 0 | DR110: 383930 | DS110: 0 | DT110: 0 | DV110: 0 | EC110: 0 | EE110: 101
A111: 102 | B111: 102 | C111: FREETOWN | D111: 0 | E111: 0 | F111: 0 | G111: 0 | H111: 0 | J111: 0 | K111: 0 | L111: 0 | N111: 0 | P111: 0 | Q111: 0 | R111: 0 | S111: 0 | T111: 0 | U111: 0 | W111: 0 | AA111: 102 | AB111: 0 | AC111: 0 | AD111: 0 | AE111: 0 | AF111: 0 | AG111: 0 | AH111: 0 | AI111: 0 | AJ111: 0 | AK111: 0 | AL111: 0 | AM111: 0 | AN111: 0 | AO111: 0 | AP111: 0 | AQ111: 0 | AS111: 102 | AT111: 0 | AU111: 0 | AV111: 0 | AW111: 0 | AX111: 0 | AY111: 0 | BA111: 0 | BB111: 0 | BC111: 0 | BD111: 0 | BE111: 0 | BG111: 0 | BH111: 0 | BI111: 0 | CA111: 102 | CB111: 102 | CC111: FREETOWN | CD111: 0 | CE111: 0 | CF111: 0 | CG111: 0 | CH111: 0 | CI111: 0 | CJ111: 0 | CK111: 0 | DA111: 102 | DB111: FREETOWN | DC111: 0 | DD111: 0 | DE111: 0 | DF111: 0 | DG111: 0 | DH111: 0 | DI111: 0 | DJ111: 0 | DK111: 0 | DL111: 0 | DN111: 0 | DP111: 0 | DQ111: 0 | DR111: 0 | DS111: 0 | DT111: 0 | DV111: 0 | EB111: fy12 | EC111: 0 | EE111: 102
A112: 103 | B112: 103 | C112: GARDNER | D112: 17 | E112: 257693 | F112: 0 | G112: 20196 | H112: 277889 | J112: 20196 | K112: 31642 | L112: 51838 | N112: 226051 | P112: 20196 | Q112: 0 | R112: 0 | S112: 0 | T112: 31642 | U112: 51838 | W112: 51838 | AA112: 103 | AB112: 17 | AC112: 0 | AD112: 0 | AE112: 0 | AF112: 257693 | AG112: 0 | AH112: 0 | AI112: 257693 | AJ112: 0 | AK112: 20196 | AL112: 277889 | AM112: 0 | AN112: 0 | AO112: 0 | AP112: 0 | AQ112: 277889 | AS112: 103 | AT112: 0 | AU112: 0 | AV112: 0 | AW112: 0 | AX112: 0 | AY112: 0 | BA112: 0 | BB112: 0 | BC112: 0 | BD112: 0 | BE112: 0 | BG112: 18 | BH112: 0.6713036898 | BI112: 0 | CA112: 103 | CB112: 103 | CC112: GARDNER | CD112: 257693 | CE112: 226051 | CF112: 31642 | CG112: 0 | CH112: 0 | CI112: 0 | CJ112: 31642 | CK112: 31642 | DA112: 103 | DB112: GARDNER | DC112: 0 | DD112: 0 | DE112: 0 | DF112: 0 | DG112: 0 | DH112: 0 | DI112: 0 | DJ112: 0 | DK112: 0 | DL112: 0 | DN112: 0 | DP112: 31642 | DQ112: 0 | DR112: 31642 | DS112: 0 | DT112: 0 | DV112: 0 | EC112: 0 | EE112: 103
A113: 104 | B113: 104 | C113: AQUINNAH | D113: 0 | E113: 0 | F113: 0 | G113: 0 | H113: 0 | J113: 0 | K113: 0 | L113: 0 | N113: 0 | P113: 0 | Q113: 0 | R113: 0 | S113: 0 | T113: 0 | U113: 0 | W113: 0 | AA113: 104 | AB113: 0 | AC113: 0 | AD113: 0 | AE113: 0 | AF113: 0 | AG113: 0 | AH113: 0 | AI113: 0 | AJ113: 0 | AK113: 0 | AL113: 0 | AM113: 0 | AN113: 0 | AO113: 0 | AP113: 0 | AQ113: 0 | AS113: 104 | AT113: 0 | AU113: 0 | AV113: 0 | AW113: 0 | AX113: 0 | AY113: 0 | BA113: 0 | BB113: 0 | BC113: 0 | BD113: 0 | BE113: 0 | BG113: 0 | BH113: 0 | BI113: 0 | CA113: 104 | CB113: 104 | CC113: AQUINNAH | CD113: 0 | CE113: 0 | CF113: 0 | CG113: 0 | CH113: 0 | CI113: 0 | CJ113: 0 | CK113: 0 | DA113: 104 | DB113: AQUINNAH | DC113: 0 | DD113: 0 | DE113: 0 | DF113: 0 | DG113: 0 | DH113: 0 | DI113: 0 | DJ113: 0 | DK113: 0 | DL113: 0 | DN113: 0 | DP113: 0 | DQ113: 0 | DR113: 0 | DS113: 0 | DT113: 0 | DV113: 0 | EC113: 0 | EE113: 104
A114: 105 | B114: 105 | C114: GEORGETOWN | D114: 2 | E114: 30964 | F114: 0 | G114: 2360 | H114: 33324 | J114: 2360 | K114: 22250.8 | L114: 24610.8 | N114: 8713.2 | P114: 2360 | Q114: 0 | R114: 0 | S114: 0 | T114: 22250.8 | U114: 24610.8 | W114: 24610.8 | AA114: 105 | AB114: 2 | AC114: 0.01388888889 | AD114: 0 | AE114: 0 | AF114: 30964 | AG114: 0 | AH114: 0 | AI114: 30964 | AJ114: 0 | AK114: 2360 | AL114: 33324 | AM114: 0 | AN114: 0 | AO114: 0 | AP114: 0 | AQ114: 33324 | AS114: 105 | AT114: 2 | AU114: 0 | AV114: 0 | AW114: 0 | AX114: 0 | AY114: 0 | BA114: 0 | BB114: 0 | BC114: 0 | BD114: 0 | BE114: 0 | BG114: 9 | BH114: 0.1354340678 | BI114: 0 | CA114: 105 | CB114: 105 | CC114: GEORGETOWN | CD114: 30964 | CE114: 74212 | CF114: 0 | CG114: 19348.8 | CH114: 2902 | CI114: 0 | CJ114: 22250.8 | CK114: 22250.8 | DA114: 105 | DB114: GEORGETOWN | DC114: 0 | DD114: 0 | DE114: 0 | DF114: 0 | DG114: 0 | DH114: 0 | DI114: 0 | DJ114: 0 | DK114: 0 | DL114: 0 | DN114: 0 | DP114: 0 | DQ114: 0 | DR114: 0 | DS114: 0 | DT114: 0 | DV114: 0 | EC114: 0 | EE114: 105
A115: 106 | B115: 106 | C115: GILL | D115: 0 | E115: 0 | F115: 0 | G115: 0 | H115: 0 | J115: 0 | K115: 0 | L115: 0 | N115: 0 | P115: 0 | Q115: 0 | R115: 0 | S115: 0 | T115: 0 | U115: 0 | W115: 0 | AA115: 106 | AB115: 0 | AC115: 0 | AD115: 0 | AE115: 0 | AF115: 0 | AG115: 0 | AH115: 0 | AI115: 0 | AJ115: 0 | AK115: 0 | AL115: 0 | AM115: 0 | AN115: 0 | AO115: 0 | AP115: 0 | AQ115: 0 | AS115: 106 | AT115: 0 | AU115: 0 | AV115: 0 | AW115: 0 | AX115: 0 | AY115: 0 | BA115: 0 | BB115: 0 | BC115: 0 | BD115: 0 | BE115: 0 | BG115: 0 | BH115: 0 | BI115: 0 | CA115: 106 | CB115: 106 | CC115: GILL | CD115: 0 | CE115: 0 | CF115: 0 | CG115: 0 | CH115: 0 | CI115: 0 | CJ115: 0 | CK115: 0 | DA115: 106 | DB115: GILL | DC115: 0 | DD115: 0 | DE115: 0 | DF115: 0 | DG115: 0 | DH115: 0 | DI115: 0 | DJ115: 0 | DK115: 0 | DL115: 0 | DN115: 0 | DP115: 0 | DQ115: 0 | DR115: 0 | DS115: 0 | DT115: 0 | DV115: 0 | EC115: 0 | EE115: 106
A116: 107 | B116: 107 | C116: GLOUCESTER | D116: 1 | E116: 13234 | F116: 0 | G116: 1169 | H116: 14403 | J116: 1169 | K116: 0 | L116: 1169 | N116: 13234 | P116: 1169 | Q116: 0 | R116: 0 | S116: 0 | T116: 0 | U116: 1169 | W116: 1169 | AA116: 107 | AB116: 1 | AC116: 0.01639344262 | AD116: 0 | AE116: 0 | AF116: 13234 | AG116: 0 | AH116: 0 | AI116: 13234 | AJ116: 0 | AK116: 1169 | AL116: 14403 | AM116: 0 | AN116: 0 | AO116: 0 | AP116: 0 | AQ116: 14403 | AS116: 107 | AT116: 1 | AU116: 0 | AV116: 0 | AW116: 0 | AX116: 0 | AY116: 0 | BA116: 0 | BB116: 0 | BC116: 0 | BD116: 0 | BE116: 0 | BG116: 9 | BH116: 0.02100025188 | BI116: 0 | CA116: 107 | CB116: 107 | CC116: GLOUCESTER | CD116: 13234 | CE116: 22970 | CF116: 0 | CG116: 0 | CH116: 0 | CI116: 0 | CJ116: 0 | CK116: 0 | DA116: 107 | DB116: GLOUCESTER | DC116: 0 | DD116: 0 | DE116: 0 | DF116: 0 | DG116: 0 | DH116: 0 | DI116: 0 | DJ116: 0 | DK116: 0 | DL116: 0 | DN116: 0 | DP116: 0 | DQ116: 0 | DR116: 0 | DS116: 0 | DT116: 0 | DV116: 0 | EC116: 0 | EE116: 107
A117: 108 | B117: 108 | C117: GOSHEN | D117: 0 | E117: 0 | F117: 0 | G117: 0 | H117: 0 | J117: 0 | K117: 0 | L117: 0 | N117: 0 | P117: 0 | Q117: 0 | R117: 0 | S117: 0 | T117: 0 | U117: 0 | W117: 0 | AA117: 108 | AB117: 0 | AC117: 0 | AD117: 0 | AE117: 0 | AF117: 0 | AG117: 0 | AH117: 0 | AI117: 0 | AJ117: 0 | AK117: 0 | AL117: 0 | AM117: 0 | AN117: 0 | AO117: 0 | AP117: 0 | AQ117: 0 | AS117: 108 | AT117: 0 | AU117: 0 | AV117: 0 | AW117: 0 | AX117: 0 | AY117: 0 | BA117: 0 | BB117: 0 | BC117: 0 | BD117: 0 | BE117: 0 | BG117: 0 | BH117: 0 | BI117: 0 | CA117: 108 | CB117: 108 | CC117: GOSHEN | CD117: 0 | CE117: 0 | CF117: 0 | CG117: 0 | CH117: 0 | CI117: 0 | CJ117: 0 | CK117: 0 | DA117: 108 | DB117: GOSHEN | DC117: 0 | DD117: 0 | DE117: 0 | DF117: 0 | DG117: 0 | DH117: 0 | DI117: 0 | DJ117: 0 | DK117: 0 | DL117: 0 | DN117: 0 | DP117: 0 | DQ117: 0 | DR117: 0 | DS117: 0 | DT117: 0 | DV117: 0 | EC117: 0 | EE117: 108
A118: 109 | B118: 109 | C118: GOSNOLD | D118: 0 | E118: 0 | F118: 0 | G118: 0 | H118: 0 | J118: 0 | K118: 0 | L118: 0 | N118: 0 | P118: 0 | Q118: 0 | R118: 0 | S118: 0 | T118: 0 | U118: 0 | W118: 0 | AA118: 109 | AB118: 0 | AC118: 0 | AD118: 0 | AE118: 0 | AF118: 0 | AG118: 0 | AH118: 0 | AI118: 0 | AJ118: 0 | AK118: 0 | AL118: 0 | AM118: 0 | AN118: 0 | AO118: 0 | AP118: 0 | AQ118: 0 | AS118: 109 | AT118: 0 | AU118: 0 | AV118: 0 | AW118: 0 | AX118: 0 | AY118: 0 | BA118: 0 | BB118: 0 | BC118: 0 | BD118: 0 | BE118: 0 | BG118: 0 | BH118: 0 | BI118: 0 | CA118: 109 | CB118: 109 | CC118: GOSNOLD | CD118: 0 | CE118: 0 | CF118: 0 | CG118: 0 | CH118: 0 | CI118: 0 | CJ118: 0 | CK118: 0 | DA118: 109 | DB118: GOSNOLD | DC118: 0 | DD118: 0 | DE118: 0 | DF118: 0 | DG118: 0 | DH118: 0 | DI118: 0 | DJ118: 0 | DK118: 0 | DL118: 0 | DN118: 0 | DP118: 0 | DQ118: 0 | DR118: 0 | DS118: 0 | DT118: 0 | DV118: 0 | EC118: 0 | EE118: 109
A119: 110 | B119: 110 | C119: GRAFTON | D119: 11 | E119: 189746 | F119: 0 | G119: 13068 | H119: 202814 | J119: 13068 | K119: 29251 | L119: 42319 | N119: 160495 | P119: 13068 | Q119: 0 | R119: 0 | S119: 0 | T119: 29251 | U119: 42319 | W119: 42319 | AA119: 110 | AB119: 11 | AC119: 0 | AD119: 0 | AE119: 0 | AF119: 189746 | AG119: 0 | AH119: 0 | AI119: 189746 | AJ119: 0 | AK119: 13068 | AL119: 202814 | AM119: 0 | AN119: 0 | AO119: 0 | AP119: 0 | AQ119: 202814 | AS119: 110 | AT119: 8 | AU119: 0 | AV119: 0 | AW119: 0 | AX119: 0 | AY119: 0 | BA119: 0 | BB119: 0 | BC119: 0 | BD119: 0 | BE119: 0 | BG119: 9 | BH119: 0.3973332536 | BI119: 0 | CA119: 110 | CB119: 110 | CC119: GRAFTON | CD119: 189746 | CE119: 160495 | CF119: 29251 | CG119: 0 | CH119: 0 | CI119: 0 | CJ119: 29251 | CK119: 29251 | DA119: 110 | DB119: GRAFTON | DC119: 0 | DD119: 0 | DE119: 0 | DF119: 0 | DG119: 0 | DH119: 0 | DI119: 0 | DJ119: 0 | DK119: 0 | DL119: 0 | DN119: 0 | DP119: 29251 | DQ119: 0 | DR119: 29251 | DS119: 0 | DT119: 0 | DV119: 0 | EC119: 0 | EE119: 110
A120: 111 | B120: 111 | C120: GRANBY | D120: 25 | E120: 397469 | F120: 0 | G120: 29658 | H120: 427127 | J120: 29658 | K120: 85307.2 | L120: 114965.2 | N120: 312161.8 | P120: 29658 | Q120: 0 | R120: 0 | S120: 0 | T120: 85307.2 | U120: 114965.2 | W120: 114965.2 | AA120: 111 | AB120: 25 | AC120: 0.03577235772 | AD120: 0 | AE120: 0 | AF120: 397469 | AG120: 0 | AH120: 0 | AI120: 397469 | AJ120: 0 | AK120: 29658 | AL120: 427127 | AM120: 0 | AN120: 0 | AO120: 0 | AP120: 0 | AQ120: 427127 | AS120: 111 | AT120: 3 | AU120: 0 | AV120: 0 | AW120: 0 | AX120: 0 | AY120: 0 | BA120: 0 | BB120: 0 | BC120: 0 | BD120: 0 | BE120: 0 | BG120: 9 | BH120: 3.384534563 | BI120: 0 | CA120: 111 | CB120: 111 | CC120: GRANBY | CD120: 397469 | CE120: 354220 | CF120: 43249 | CG120: 34027.8 | CH120: 8030.4 | CI120: 0 | CJ120: 85307.2 | CK120: 85307.2 | DA120: 111 | DB120: GRANBY | DC120: 0 | DD120: 0 | DE120: 0 | DF120: 0 | DG120: 0 | DH120: 0 | DI120: 0 | DJ120: 0 | DK120: 0 | DL120: 0 | DN120: 0 | DP120: 43249 | DQ120: 0 | DR120: 43249 | DS120: 0 | DT120: 0 | DV120: 0 | EC120: 0 | EE120: 111
A121: 112 | B121: 112 | C121: GRANVILLE | D121: 0 | E121: 0 | F121: 0 | G121: 0 | H121: 0 | J121: 0 | K121: 0 | L121: 0 | N121: 0 | P121: 0 | Q121: 0 | R121: 0 | S121: 0 | T121: 0 | U121: 0 | W121: 0 | AA121: 112 | AB121: 0 | AC121: 0 | AD121: 0 | AE121: 0 | AF121: 0 | AG121: 0 | AH121: 0 | AI121: 0 | AJ121: 0 | AK121: 0 | AL121: 0 | AM121: 0 | AN121: 0 | AO121: 0 | AP121: 0 | AQ121: 0 | AS121: 112 | AT121: 0 | AU121: 0 | AV121: 0 | AW121: 0 | AX121: 0 | AY121: 0 | BA121: 0 | BB121: 0 | BC121: 0 | BD121: 0 | BE121: 0 | BG121: 0 | BH121: 0 | BI121: 0 | CA121: 112 | CB121: 112 | CC121: GRANVILLE | CD121: 0 | CE121: 0 | CF121: 0 | CG121: 0 | CH121: 0 | CI121: 0 | CJ121: 0 | CK121: 0 | DA121: 112 | DB121: GRANVILLE | DC121: 0 | DD121: 0 | DE121: 0 | DF121: 0 | DG121: 0 | DH121: 0 | DI121: 0 | DJ121: 0 | DK121: 0 | DL121: 0 | DN121: 0 | DP121: 0 | DQ121: 0 | DR121: 0 | DS121: 0 | DT121: 0 | DV121: 0 | EB121: fy13 | EC121: 0 | EE121: 112
A122: 113 | B122: 113 | C122: GREAT BARRINGTON | D122: 0 | E122: 0 | F122: 0 | G122: 0 | H122: 0 | J122: 0 | K122: 0 | L122: 0 | N122: 0 | P122: 0 | Q122: 0 | R122: 0 | S122: 0 | T122: 0 | U122: 0 | W122: 0 | AA122: 113 | AB122: 0 | AC122: 0 | AD122: 0 | AE122: 0 | AF122: 0 | AG122: 0 | AH122: 0 | AI122: 0 | AJ122: 0 | AK122: 0 | AL122: 0 | AM122: 0 | AN122: 0 | AO122: 0 | AP122: 0 | AQ122: 0 | AS122: 113 | AT122: 0 | AU122: 0 | AV122: 0 | AW122: 0 | AX122: 0 | AY122: 0 | BA122: 0 | BB122: 0 | BC122: 0 | BD122: 0 | BE122: 0 | BG122: 0 | BH122: 0 | BI122: 0 | CA122: 113 | CB122: 113 | CC122: GREAT BARRINGTON | CD122: 0 | CE122: 0 | CF122: 0 | CG122: 0 | CH122: 0 | CI122: 0 | CJ122: 0 | CK122: 0 | DA122: 113 | DB122: GREAT BARRINGTON | DC122: 0 | DD122: 0 | DE122: 0 | DF122: 0 | DG122: 0 | DH122: 0 | DI122: 0 | DJ122: 0 | DK122: 0 | DL122: 0 | DN122: 0 | DP122: 0 | DQ122: 0 | DR122: 0 | DS122: 0 | DT122: 0 | DV122: 0 | EC122: 0 | EE122: 113
A123: 114 | B123: 114 | C123: GREENFIELD | D123: 113 | E123: 1887957 | F123: 0 | G123: 134244 | H123: 2022201 | J123: 134244 | K123: 413502 | L123: 547746 | N123: 1474455 | P123: 134244 | Q123: 0 | R123: 0 | S123: 0 | T123: 413502 | U123: 547746 | W123: 547746 | AA123: 114 | AB123: 113 | AC123: 0 | AD123: 0 | AE123: 0 | AF123: 1887957 | AG123: 0 | AH123: 0 | AI123: 1887957 | AJ123: 0 | AK123: 134244 | AL123: 2022201 | AM123: 0 | AN123: 0 | AO123: 0 | AP123: 0 | AQ123: 2022201 | AS123: 114 | AT123: 18 | AU123: 0 | AV123: 0 | AW123: 0 | AX123: 0 | AY123: 0 | BA123: 0 | BB123: 0 | BC123: 0 | BD123: 0 | BE123: 0 | BG123: 18 | BH123: 5.641749924 | BI123: 0 | CA123: 114 | CB123: 114 | CC123: GREENFIELD | CD123: 1887957 | CE123: 1682160 | CF123: 205797 | CG123: 207705 | CH123: 0 | CI123: 0 | CJ123: 413502 | CK123: 413502 | DA123: 114 | DB123: GREENFIELD | DC123: 0 | DD123: 0 | DE123: 0 | DF123: 0 | DG123: 0 | DH123: 0 | DI123: 0 | DJ123: 0 | DK123: 0 | DL123: 0 | DN123: 0 | DP123: 205797 | DQ123: 0 | DR123: 205797 | DS123: 0 | DT123: 0 | DV123: 0 | EC123: 0 | EE123: 114
A124: 115 | B124: 115 | C124: GROTON | D124: 0 | E124: 0 | F124: 0 | G124: 0 | H124: 0 | J124: 0 | K124: 0 | L124: 0 | N124: 0 | P124: 0 | Q124: 0 | R124: 0 | S124: 0 | T124: 0 | U124: 0 | W124: 0 | AA124: 115 | AB124: 0 | AC124: 0 | AD124: 0 | AE124: 0 | AF124: 0 | AG124: 0 | AH124: 0 | AI124: 0 | AJ124: 0 | AK124: 0 | AL124: 0 | AM124: 0 | AN124: 0 | AO124: 0 | AP124: 0 | AQ124: 0 | AS124: 115 | AT124: 0 | AU124: 0 | AV124: 0 | AW124: 0 | AX124: 0 | AY124: 0 | BA124: 0 | BB124: 0 | BC124: 0 | BD124: 0 | BE124: 0 | BG124: 0 | BH124: 0 | BI124: 0 | CA124: 115 | CB124: 115 | CC124: GROTON | CD124: 0 | CE124: 0 | CF124: 0 | CG124: 0 | CH124: 0 | CI124: 0 | CJ124: 0 | CK124: 0 | DA124: 115 | DB124: GROTON | DC124: 0 | DD124: 0 | DE124: 0 | DF124: 0 | DG124: 0 | DH124: 0 | DI124: 0 | DJ124: 0 | DK124: 0 | DL124: 0 | DN124: 0 | DP124: 0 | DQ124: 0 | DR124: 0 | DS124: 0 | DT124: 0 | DV124: 0 | EC124: 0 | EE124: 115
A125: 116 | B125: 116 | C125: GROVELAND | D125: 0 | E125: 0 | F125: 0 | G125: 0 | H125: 0 | J125: 0 | K125: 0 | L125: 0 | N125: 0 | P125: 0 | Q125: 0 | R125: 0 | S125: 0 | T125: 0 | U125: 0 | W125: 0 | AA125: 116 | AB125: 0 | AC125: 0 | AD125: 0 | AE125: 0 | AF125: 0 | AG125: 0 | AH125: 0 | AI125: 0 | AJ125: 0 | AK125: 0 | AL125: 0 | AM125: 0 | AN125: 0 | AO125: 0 | AP125: 0 | AQ125: 0 | AS125: 116 | AT125: 0 | AU125: 0 | AV125: 0 | AW125: 0 | AX125: 0 | AY125: 0 | BA125: 0 | BB125: 0 | BC125: 0 | BD125: 0 | BE125: 0 | BG125: 0 | BH125: 0 | BI125: 0 | CA125: 116 | CB125: 116 | CC125: GROVELAND | CD125: 0 | CE125: 0 | CF125: 0 | CG125: 0 | CH125: 0 | CI125: 0 | CJ125: 0 | CK125: 0 | DA125: 116 | DB125: GROVELAND | DC125: 0 | DD125: 0 | DE125: 0 | DF125: 0 | DG125: 0 | DH125: 0 | DI125: 0 | DJ125: 0 | DK125: 0 | DL125: 0 | DN125: 0 | DP125: 0 | DQ125: 0 | DR125: 0 | DS125: 0 | DT125: 0 | DV125: 0 | EC125: 0 | EE125: 116
A126: 117 | B126: 117 | C126: HADLEY | D126: 43 | E126: 798500 | F126: 0 | G126: 51084 | H126: 849584 | J126: 51084 | K126: 79299.8 | L126: 130383.8 | N126: 719200.2 | P126: 51084 | Q126: 0 | R126: 0 | S126: 0 | T126: 79299.8 | U126: 130383.8 | W126: 130383.8 | AA126: 117 | AB126: 43 | AC126: 0 | AD126: 0 | AE126: 0 | AF126: 798500 | AG126: 0 | AH126: 0 | AI126: 798500 | AJ126: 0 | AK126: 51084 | AL126: 849584 | AM126: 0 | AN126: 0 | AO126: 0 | AP126: 0 | AQ126: 849584 | AS126: 117 | AT126: 8 | AU126: 0 | AV126: 0 | AW126: 0 | AX126: 0 | AY126: 0 | BA126: 0 | BB126: 0 | BC126: 0 | BD126: 0 | BE126: 0 | BG126: 9 | BH126: 8.285253378 | BI126: 0 | CA126: 117 | CB126: 117 | CC126: HADLEY | CD126: 798500 | CE126: 756997 | CF126: 41503 | CG126: 3804 | CH126: 33992.8 | CI126: 0 | CJ126: 79299.8 | CK126: 79299.8 | DA126: 117 | DB126: HADLEY | DC126: 0 | DD126: 0 | DE126: 0 | DF126: 0 | DG126: 0 | DH126: 0 | DI126: 0 | DJ126: 0 | DK126: 0 | DL126: 0 | DN126: 0 | DP126: 41503 | DQ126: 0 | DR126: 41503 | DS126: 0 | DT126: 0 | DV126: 0 | EC126: 0 | EE126: 117
A127: 118 | B127: 118 | C127: HALIFAX | D127: 6 | E127: 76796 | F127: 0 | G127: 7128 | H127: 83924 | J127: 7128 | K127: 35282.4 | L127: 42410.4 | N127: 41513.6 | P127: 7128 | Q127: 0 | R127: 0 | S127: 0 | T127: 35282.4 | U127: 42410.4 | W127: 42410.4 | AA127: 118 | AB127: 6 | AC127: 0 | AD127: 0 | AE127: 0 | AF127: 76796 | AG127: 0 | AH127: 0 | AI127: 76796 | AJ127: 0 | AK127: 7128 | AL127: 83924 | AM127: 0 | AN127: 0 | AO127: 0 | AP127: 0 | AQ127: 83924 | AS127: 118 | AT127: 1 | AU127: 0 | AV127: 0 | AW127: 0 | AX127: 0 | AY127: 0 | BA127: 0 | BB127: 0 | BC127: 0 | BD127: 0 | BE127: 0 | BG127: 9 | BH127: 0.8413927832 | BI127: 0 | CA127: 118 | CB127: 118 | CC127: HALIFAX | CD127: 76796 | CE127: 52305 | CF127: 24491 | CG127: 9995.4 | CH127: 796 | CI127: 0 | CJ127: 35282.4 | CK127: 35282.4 | DA127: 118 | DB127: HALIFAX | DC127: 0 | DD127: 0 | DE127: 0 | DF127: 0 | DG127: 0 | DH127: 0 | DI127: 0 | DJ127: 0 | DK127: 0 | DL127: 0 | DN127: 0 | DP127: 24491 | DQ127: 0 | DR127: 24491 | DS127: 0 | DT127: 0 | DV127: 0 | EC127: 0 | EE127: 118
A128: 119 | B128: 119 | C128: HAMILTON | D128: 0 | E128: 0 | F128: 0 | G128: 0 | H128: 0 | J128: 0 | K128: 0 | L128: 0 | N128: 0 | P128: 0 | Q128: 0 | R128: 0 | S128: 0 | T128: 0 | U128: 0 | W128: 0 | AA128: 119 | AB128: 0 | AC128: 0 | AD128: 0 | AE128: 0 | AF128: 0 | AG128: 0 | AH128: 0 | AI128: 0 | AJ128: 0 | AK128: 0 | AL128: 0 | AM128: 0 | AN128: 0 | AO128: 0 | AP128: 0 | AQ128: 0 | AS128: 119 | AT128: 0 | AU128: 0 | AV128: 0 | AW128: 0 | AX128: 0 | AY128: 0 | BA128: 0 | BB128: 0 | BC128: 0 | BD128: 0 | BE128: 0 | BG128: 0 | BH128: 0 | BI128: 0 | CA128: 119 | CB128: 119 | CC128: HAMILTON | CD128: 0 | CE128: 0 | CF128: 0 | CG128: 0 | CH128: 0 | CI128: 0 | CJ128: 0 | CK128: 0 | DA128: 119 | DB128: HAMILTON | DC128: 0 | DD128: 0 | DE128: 0 | DF128: 0 | DG128: 0 | DH128: 0 | DI128: 0 | DJ128: 0 | DK128: 0 | DL128: 0 | DN128: 0 | DP128: 0 | DQ128: 0 | DR128: 0 | DS128: 0 | DT128: 0 | DV128: 0 | EC128: 0 | EE128: 119
A129: 120 | B129: 120 | C129: HAMPDEN | D129: 0 | E129: 0 | F129: 0 | G129: 0 | H129: 0 | J129: 0 | K129: 0 | L129: 0 | N129: 0 | P129: 0 | Q129: 0 | R129: 0 | S129: 0 | T129: 0 | U129: 0 | W129: 0 | AA129: 120 | AB129: 0 | AC129: 0 | AD129: 0 | AE129: 0 | AF129: 0 | AG129: 0 | AH129: 0 | AI129: 0 | AJ129: 0 | AK129: 0 | AL129: 0 | AM129: 0 | AN129: 0 | AO129: 0 | AP129: 0 | AQ129: 0 | AS129: 120 | AT129: 0 | AU129: 0 | AV129: 0 | AW129: 0 | AX129: 0 | AY129: 0 | BA129: 0 | BB129: 0 | BC129: 0 | BD129: 0 | BE129: 0 | BG129: 0 | BH129: 0 | BI129: 0 | CA129: 120 | CB129: 120 | CC129: HAMPDEN | CD129: 0 | CE129: 0 | CF129: 0 | CG129: 0 | CH129: 0 | CI129: 0 | CJ129: 0 | CK129: 0 | DA129: 120 | DB129: HAMPDEN | DC129: 0 | DD129: 0 | DE129: 0 | DF129: 0 | DG129: 0 | DH129: 0 | DI129: 0 | DJ129: 0 | DK129: 0 | DL129: 0 | DN129: 0 | DP129: 0 | DQ129: 0 | DR129: 0 | DS129: 0 | DT129: 0 | DV129: 0 | EC129: 0 | EE129: 120
A130: 121 | B130: 121 | C130: HANCOCK | D130: 1 | E130: 24089 | F130: 0 | G130: 1181 | H130: 25270 | J130: 1181 | K130: 24089 | L130: 25270 | N130: 0 | P130: 1181 | Q130: 0 | R130: 0 | S130: 0 | T130: 24089 | U130: 25270 | W130: 25270 | AA130: 121 | AB130: 1 | AC130: 0.005479452055 | AD130: 0 | AE130: 0 | AF130: 24089 | AG130: 0 | AH130: 0 | AI130: 24089 | AJ130: 0 | AK130: 1181 | AL130: 25270 | AM130: 0 | AN130: 0 | AO130: 0 | AP130: 0 | AQ130: 25270 | AS130: 121 | AT130: 0 | AU130: 0 | AV130: 0 | AW130: 0 | AX130: 0 | AY130: 0 | BA130: 0 | BB130: 0 | BC130: 0 | BD130: 0 | BE130: 0 | BG130: 9 | BH130: 1.052211789 | BI130: 0 | CA130: 121 | CB130: 121 | CC130: HANCOCK | CD130: 24089 | CE130: 0 | CF130: 24089 | CG130: 0 | CH130: 0 | CI130: 0 | CJ130: 24089 | CK130: 24089 | DA130: 121 | DB130: HANCOCK | DC130: 0 | DD130: 0 | DE130: 0 | DF130: 0 | DG130: 0 | DH130: 0 | DI130: 0 | DJ130: 0 | DK130: 0 | DL130: 0 | DN130: 0 | DP130: 24089 | DQ130: 0 | DR130: 24089 | DS130: 0 | DT130: 0 | DV130: 0 | EC130: 0 | EE130: 121
A131: 122 | B131: 122 | C131: HANOVER | D131: 26 | E131: 459654 | F131: 0 | G131: 30888 | H131: 490542 | J131: 30888 | K131: 27197 | L131: 58085 | N131: 432457 | P131: 30888 | Q131: 0 | R131: 0 | S131: 0 | T131: 27197 | U131: 58085 | W131: 58085 | AA131: 122 | AB131: 26 | AC131: 0 | AD131: 0 | AE131: 0 | AF131: 459654 | AG131: 0 | AH131: 0 | AI131: 459654 | AJ131: 0 | AK131: 30888 | AL131: 490542 | AM131: 0 | AN131: 0 | AO131: 0 | AP131: 0 | AQ131: 490542 | AS131: 122 | AT131: 13 | AU131: 0 | AV131: 0 | AW131: 0 | AX131: 0 | AY131: 0 | BA131: 0 | BB131: 0 | BC131: 0 | BD131: 0 | BE131: 0 | BG131: 9 | BH131: 1.099065472 | BI131: 0 | CA131: 122 | CB131: 122 | CC131: HANOVER | CD131: 459654 | CE131: 442000 | CF131: 17654 | CG131: 9543 | CH131: 0 | CI131: 0 | CJ131: 27197 | CK131: 27197 | DA131: 122 | DB131: HANOVER | DC131: 0 | DD131: 0 | DE131: 0 | DF131: 0 | DG131: 0 | DH131: 0 | DI131: 0 | DJ131: 0 | DK131: 0 | DL131: 0 | DN131: 0 | DP131: 17654 | DQ131: 0 | DR131: 17654 | DS131: 0 | DT131: 0 | DV131: 0 | EC131: 0 | EE131: 122
A132: 123 | B132: 123 | C132: HANSON | D132: 0 | E132: 0 | F132: 0 | G132: 0 | H132: 0 | J132: 0 | K132: 0 | L132: 0 | N132: 0 | P132: 0 | Q132: 0 | R132: 0 | S132: 0 | T132: 0 | U132: 0 | W132: 0 | AA132: 123 | AB132: 0 | AC132: 0 | AD132: 0 | AE132: 0 | AF132: 0 | AG132: 0 | AH132: 0 | AI132: 0 | AJ132: 0 | AK132: 0 | AL132: 0 | AM132: 0 | AN132: 0 | AO132: 0 | AP132: 0 | AQ132: 0 | AS132: 123 | AT132: 0 | AU132: 0 | AV132: 0 | AW132: 0 | AX132: 0 | AY132: 0 | BA132: 0 | BB132: 0 | BC132: 0 | BD132: 0 | BE132: 0 | BG132: 0 | BH132: 0 | BI132: 0 | CA132: 123 | CB132: 123 | CC132: HANSON | CD132: 0 | CE132: 0 | CF132: 0 | CG132: 0 | CH132: 0 | CI132: 0 | CJ132: 0 | CK132: 0 | DA132: 123 | DB132: HANSON | DC132: 0 | DD132: 0 | DE132: 0 | DF132: 0 | DG132: 0 | DH132: 0 | DI132: 0 | DJ132: 0 | DK132: 0 | DL132: 0 | DN132: 0 | DP132: 0 | DQ132: 0 | DR132: 0 | DS132: 0 | DT132: 0 | DV132: 0 | EC132: 0 | EE132: 123
A133: 124 | B133: 124 | C133: HARDWICK | D133: 0 | E133: 0 | F133: 0 | G133: 0 | H133: 0 | J133: 0 | K133: 0 | L133: 0 | N133: 0 | P133: 0 | Q133: 0 | R133: 0 | S133: 0 | T133: 0 | U133: 0 | W133: 0 | AA133: 124 | AB133: 0 | AC133: 0 | AD133: 0 | AE133: 0 | AF133: 0 | AG133: 0 | AH133: 0 | AI133: 0 | AJ133: 0 | AK133: 0 | AL133: 0 | AM133: 0 | AN133: 0 | AO133: 0 | AP133: 0 | AQ133: 0 | AS133: 124 | AT133: 0 | AU133: 0 | AV133: 0 | AW133: 0 | AX133: 0 | AY133: 0 | BA133: 0 | BB133: 0 | BC133: 0 | BD133: 0 | BE133: 0 | BG133: 0 | BH133: 0 | BI133: 0 | CA133: 124 | CB133: 124 | CC133: HARDWICK | CD133: 0 | CE133: 0 | CF133: 0 | CG133: 0 | CH133: 0 | CI133: 0 | CJ133: 0 | CK133: 0 | DA133: 124 | DB133: HARDWICK | DC133: 0 | DD133: 0 | DE133: 0 | DF133: 0 | DG133: 0 | DH133: 0 | DI133: 0 | DJ133: 0 | DK133: 0 | DL133: 0 | DN133: 0 | DP133: 0 | DQ133: 0 | DR133: 0 | DS133: 0 | DT133: 0 | DV133: 0 | EC133: 0 | EE133: 124
A134: 125 | B134: 125 | C134: HARVARD | D134: 23 | E134: 414253 | F134: 0 | G134: 27324 | H134: 441577 | J134: 27324 | K134: 59535 | L134: 86859 | N134: 354718 | P134: 27324 | Q134: 0 | R134: 0 | S134: 0 | T134: 59535 | U134: 86859 | W134: 86859 | AA134: 125 | AB134: 23 | AC134: 0 | AD134: 0 | AE134: 0 | AF134: 414253 | AG134: 0 | AH134: 0 | AI134: 414253 | AJ134: 0 | AK134: 27324 | AL134: 441577 | AM134: 0 | AN134: 0 | AO134: 0 | AP134: 0 | AQ134: 441577 | AS134: 125 | AT134: 9 | AU134: 0 | AV134: 0 | AW134: 0 | AX134: 0 | AY134: 0 | BA134: 0 | BB134: 0 | BC134: 0 | BD134: 0 | BE134: 0 | BG134: 9 | BH134: 2.553524223 | BI134: 0 | CA134: 125 | CB134: 125 | CC134: HARVARD | CD134: 414253 | CE134: 369302 | CF134: 44951 | CG134: 0 | CH134: 14584 | CI134: 0 | CJ134: 59535 | CK134: 59535 | DA134: 125 | DB134: HARVARD | DC134: 0 | DD134: 0 | DE134: 0 | DF134: 0 | DG134: 0 | DH134: 0 | DI134: 0 | DJ134: 0 | DK134: 0 | DL134: 0 | DN134: 0 | DP134: 44951 | DQ134: 0 | DR134: 44951 | DS134: 0 | DT134: 0 | DV134: 0 | EC134: 0 | EE134: 125
A135: 126 | B135: 126 | C135: HARWICH | D135: 0 | E135: 0 | F135: 0 | G135: 0 | H135: 0 | J135: 0 | K135: 0 | L135: 0 | N135: 0 | P135: 0 | Q135: 0 | R135: 0 | S135: 0 | T135: 0 | U135: 0 | W135: 0 | AA135: 126 | AB135: 0 | AC135: 0 | AD135: 0 | AE135: 0 | AF135: 0 | AG135: 0 | AH135: 0 | AI135: 0 | AJ135: 0 | AK135: 0 | AL135: 0 | AM135: 0 | AN135: 0 | AO135: 0 | AP135: 0 | AQ135: 0 | AS135: 126 | AT135: 0 | AU135: 0 | AV135: 0 | AW135: 0 | AX135: 0 | AY135: 0 | BA135: 0 | BB135: 0 | BC135: 0 | BD135: 0 | BE135: 0 | BG135: 0 | BH135: 0 | BI135: 0 | CA135: 126 | CB135: 126 | CC135: HARWICH | CD135: 0 | CE135: 0 | CF135: 0 | CG135: 0 | CH135: 0 | CI135: 0 | CJ135: 0 | CK135: 0 | DA135: 126 | DB135: HARWICH | DC135: 0 | DD135: 0 | DE135: 0 | DF135: 0 | DG135: 0 | DH135: 0 | DI135: 0 | DJ135: 0 | DK135: 0 | DL135: 0 | DN135: 0 | DP135: 0 | DQ135: 0 | DR135: 0 | DS135: 0 | DT135: 0 | DV135: 0 | EB135: fy13 | EC135: 0 | EE135: 126
A136: 127 | B136: 127 | C136: HATFIELD | D136: 15 | E136: 385220 | F136: 0 | G136: 17820 | H136: 403040 | J136: 17820 | K136: 172282.6 | L136: 190102.6 | N136: 212937.4 | P136: 17820 | Q136: 0 | R136: 0 | S136: 0 | T136: 172282.6 | U136: 190102.6 | W136: 190102.6 | AA136: 127 | AB136: 15 | AC136: 0 | AD136: 0 | AE136: 0 | AF136: 385220 | AG136: 0 | AH136: 0 | AI136: 385220 | AJ136: 0 | AK136: 17820 | AL136: 403040 | AM136: 0 | AN136: 0 | AO136: 0 | AP136: 0 | AQ136: 403040 | AS136: 127 | AT136: 4 | AU136: 0 | AV136: 0 | AW136: 0 | AX136: 0 | AY136: 0 | BA136: 0 | BB136: 0 | BC136: 0 | BD136: 0 | BE136: 0 | BG136: 9 | BH136: 4.49050059 | BI136: 0 | CA136: 127 | CB136: 127 | CC136: HATFIELD | CD136: 385220 | CE136: 256198 | CF136: 129022 | CG136: 30892.2 | CH136: 12368.4 | CI136: 0 | CJ136: 172282.6 | CK136: 172282.6 | DA136: 127 | DB136: HATFIELD | DC136: 0 | DD136: 0 | DE136: 0 | DF136: 0 | DG136: 0 | DH136: 0 | DI136: 0 | DJ136: 0 | DK136: 0 | DL136: 0 | DN136: 0 | DP136: 129022 | DQ136: 0 | DR136: 129022 | DS136: 0 | DT136: 0 | DV136: 0 | EC136: 0 | EE136: 127
A137: 128 | B137: 128 | C137: HAVERHILL | D137: 402 | E137: 6063632 | F137: 0 | G137: 477470 | H137: 6541102 | J137: 477470 | K137: 988783.2 | L137: 1466253.2 | N137: 5074848.8 | P137: 477470 | Q137: 0 | R137: 0 | S137: 0 | T137: 988783.2 | U137: 1466253.2 | W137: 1466253.2 | AA137: 128 | AB137: 402 | AC137: 0.08915953457 | AD137: 0 | AE137: 0 | AF137: 6063632 | AG137: 0 | AH137: 0 | AI137: 6063632 | AJ137: 0 | AK137: 477470 | AL137: 6541102 | AM137: 0 | AN137: 0 | AO137: 0 | AP137: 0 | AQ137: 6541102 | AS137: 128 | AT137: 86 | AU137: 0 | AV137: 0 | AW137: 0 | AX137: 0 | AY137: 0 | BA137: 0 | BB137: 0 | BC137: 0 | BD137: 0 | BE137: 0 | BG137: 9 | BH137: 4.399810107 | BI137: 0 | CA137: 128 | CB137: 128 | CC137: HAVERHILL | CD137: 6063632 | CE137: 5825013 | CF137: 238619 | CG137: 467568.6 | CH137: 282595.6 | CI137: 0 | CJ137: 988783.2 | CK137: 988783.2 | DA137: 128 | DB137: HAVERHILL | DC137: 0 | DD137: 0 | DE137: 0 | DF137: 0 | DG137: 0 | DH137: 0 | DI137: 0 | DJ137: 0 | DK137: 0 | DL137: 0 | DN137: 0 | DP137: 238619 | DQ137: 0 | DR137: 238619 | DS137: 0 | DT137: 0 | DV137: 0 | EC137: 0 | EE137: 128
A138: 129 | B138: 129 | C138: HAWLEY | D138: 0 | E138: =AI138+DD138 -> 0 | F138: 0 | G138: =AK138+DF138 -> 0 | H138: 0 | J138: 0 | K138: 0 | L138: =SUM(J138:K138) -> 0 | N138: =H138-L138 -> 0 | P138: =AK138+AO138+DF138+DJ138 -> 0 | Q138: 0 | R138: =AP138+DK138 -> 0 | S138: =AO138+DJ138 -> 0 | T138: =K138 -> 0 | U138: 0 | W138: 0 | AA138: 129 | AB138: 0 | AC138: 0 | AD138: 0 | AE138: 0 | AF138: 0 | AG138: 0 | AH138: 0 | AI138: 0 | AJ138: 0 | AK138: 0 | AL138: 0 | AM138: 0 | AN138: 0 | AO138: 0 | AP138: 0 | AQ138: 0 | AS138: 129 | AT138: 0 | AU138: 0 | AV138: 0 | AW138: 0 | AX138: 0 | AY138: 0 | BA138: 0 | BB138: 0 | BC138: 0 | BD138: 0 | BE138: 0 | BG138: 0 | BH138: 0 | BI138: 0 | CA138: 129 | CB138: 129 | CC138: HAWLEY | CD138: =AI138+DD138 -> 0 | CE138: 0 | CF138: 0 | CG138: 0 | CH138: 0 | CI138: 0 | CJ138: 0 | CK138: =(CF138+CI138)*CF$5+CG138*CG$5+CH138*CH$5 -> 0 | DA138: 129 | DB138: HAWLEY | DC138: 0 | DD138: 0 | DE138: 0 | DF138: 0 | DG138: 0 | DH138: 0 | DI138: 0 | DJ138: 0 | DK138: 0 | DL138: =DK138+DG138 -> 0 | DN138: =DJ138+DF138 -> 0 | DP138: 0 | DQ138: =IF(CE138<0,0,IF((AH138-CE138)>0,AH138-CE138,0)) -> 0 | DR138: 0 | DS138: 0 | DT138: 0 | DV138: 0 | EC138: 0 | EE138: 129
A139: 130 | B139: 130 | C139: HEATH | D139: =AB139 -> 0 | E139: 0 | F139: 0 | G139: 0 | H139: =SUM(E139:G139) -> 0 | J139: =G139 -> 0 | K139: =IF(CK139="",CJ139,CK139) -> 0 | L139: 0 | N139: 0 | P139: 0 | Q139: =AE139 -> 0 | R139: 0 | S139: 0 | T139: 0 | U139: =P139+R139-S139+T139 -> 0 | W139: =AK139+AP139+CJ139+DF139+DK139 -> 0 | AA139: 130 | AB139: 0 | AC139: 0 | AD139: 0 | AE139: 0 | AF139: 0 | AG139: 0 | AH139: 0 | AI139: 0 | AJ139: 0 | AK139: 0 | AL139: 0 | AM139: 0 | AN139: 0 | AO139: 0 | AP139: 0 | AQ139: 0 | AS139: 130 | AT139: 0 | AU139: 0 | AV139: 0 | AW139: 0 | AX139: 0 | AY139: 0 | BA139: 0 | BB139: 0 | BC139: 0 | BD139: 0 | BE139: 0 | BG139: 0 | BH139: 0 | BI139: 0 | CA139: 130 | CB139: 130 | CC139: HEATH | CD139: 0 | CE139: 0 | CF139: =IF(CE139<0,CD139,IF(CD139-CE139>0,CD139-CE139,0)) -> 0 | CG139: 0 | CH139: 0 | CI139: =DT139 -> 0 | CJ139: =SUM(CF139:CI139) -> 0 | CK139: 0 | DA139: 130 | DB139: HEATH | DC139: 0 | DD139: 0 | DE139: 0 | DF139: 0 | DG139: =SUM(DD139:DF139) -> 0 | DH139: 0 | DI139: 0 | DJ139: 0 | DK139: =SUM(DH139:DJ139) -> 0 | DL139: 0 | DN139: 0 | DP139: =CF139 -> 0 | DQ139: 0 | DR139: =DP139-DQ139 -> 0 | DS139: 0 | DT139: =IF(AND(DR139<0,DS139<0), IF(DR139<DS139, 0, DS139-DR139), IF(AND(DR139>0,DS139>0), IF(OR(DS139>DR139,DS139=DR139 ), DS139-DR139, 0), DS139)) -> 0 | DV139: 0 | EC139: =DS139-DT139 -> 0 | EE139: 130
A140: 131 | B140: 131 | C140: HINGHAM | D140: 6 | E140: 124836 | F140: 0 | G140: 7128 | H140: 131964 | J140: 7128 | K140: 17931.6 | L140: 25059.6 | N140: 106904.4 | P140: 7128 | Q140: 0 | R140: 0 | S140: 0 | T140: 17931.6 | U140: 25059.6 | W140: 25059.6 | AA140: 131 | AB140: 6 | AC140: 0 | AD140: 0 | AE140: 0 | AF140: 124836 | AG140: 0 | AH140: 0 | AI140: 124836 | AJ140: 0 | AK140: 7128 | AL140: 131964 | AM140: 0 | AN140: 0 | AO140: 0 | AP140: 0 | AQ140: 131964 | AS140: 131 | AT140: 2 | AU140: 0 | AV140: 0 | AW140: 0 | AX140: 0 | AY140: 0 | BA140: 0 | BB140: 0 | BC140: 0 | BD140: 0 | BE140: 0 | BG140: 9 | BH140: 0.1705404604 | BI140: 0 | CA140: 131 | CB140: 131 | CC140: HINGHAM | CD140: 124836 | CE140: 190872 | CF140: 0 | CG140: 0 | CH140: 17931.6 | CI140: 0 | CJ140: 17931.6 | CK140: 17931.6 | DA140: 131 | DB140: HINGHAM | DC140: 0 | DD140: 0 | DE140: 0 | DF140: 0 | DG140: 0 | DH140: 0 | DI140: 0 | DJ140: 0 | DK140: 0 | DL140: 0 | DN140: 0 | DP140: 0 | DQ140: 0 | DR140: 0 | DS140: 0 | DT140: 0 | DV140: 0 | EC140: 0 | EE140: 131
A141: 132 | B141: 132 | C141: HINSDALE | D141: 0 | E141: 0 | F141: 0 | G141: 0 | H141: 0 | J141: 0 | K141: 0 | L141: 0 | N141: 0 | P141: 0 | Q141: 0 | R141: 0 | S141: 0 | T141: 0 | U141: 0 | W141: 0 | AA141: 132 | AB141: 0 | AC141: 0 | AD141: 0 | AE141: 0 | AF141: 0 | AG141: 0 | AH141: 0 | AI141: 0 | AJ141: 0 | AK141: 0 | AL141: 0 | AM141: 0 | AN141: 0 | AO141: 0 | AP141: 0 | AQ141: 0 | AS141: 132 | AT141: 0 | AU141: 0 | AV141: 0 | AW141: 0 | AX141: 0 | AY141: 0 | BA141: 0 | BB141: 0 | BC141: 0 | BD141: 0 | BE141: 0 | BG141: 0 | BH141: 0 | BI141: 0 | CA141: 132 | CB141: 132 | CC141: HINSDALE | CD141: 0 | CE141: 0 | CF141: 0 | CG141: 0 | CH141: 0 | CI141: 0 | CJ141: 0 | CK141: 0 | DA141: 132 | DB141: HINSDALE | DC141: 0 | DD141: 0 | DE141: 0 | DF141: 0 | DG141: 0 | DH141: 0 | DI141: 0 | DJ141: 0 | DK141: 0 | DL141: 0 | DN141: 0 | DP141: 0 | DQ141: 0 | DR141: 0 | DS141: 0 | DT141: 0 | DV141: 0 | EC141: 0 | EE141: 132
A142: 133 | B142: 133 | C142: HOLBROOK | D142: 52 | E142: 760034 | F142: 0 | G142: 61728 | H142: 821762 | J142: 61728 | K142: 84051.4 | L142: 145779.4 | N142: 675982.6 | P142: 61728 | Q142: 0 | R142: 0 | S142: 0 | T142: 84051.4 | U142: 145779.4 | W142: 145779.4 | AA142: 133 | AB142: 52 | AC142: 0.0401228711 | AD142: 0 | AE142: 0 | AF142: 760034 | AG142: 0 | AH142: 0 | AI142: 760034 | AJ142: 0 | AK142: 61728 | AL142: 821762 | AM142: 0 | AN142: 0 | AO142: 0 | AP142: 0 | AQ142: 821762 | AS142: 133 | AT142: 22 | AU142: 0 | AV142: 0 | AW142: 0 | AX142: 0 | AY142: 0 | BA142: 0 | BB142: 0 | BC142: 0 | BD142: 0 | BE142: 0 | BG142: 9 | BH142: 3.533845327 | BI142: 0 | CA142: 133 | CB142: 133 | CC142: HOLBROOK | CD142: 760034 | CE142: 710291 | CF142: 49743 | CG142: 0 | CH142: 34308.4 | CI142: 0 | CJ142: 84051.4 | CK142: 84051.4 | DA142: 133 | DB142: HOLBROOK | DC142: 0 | DD142: 0 | DE142: 0 | DF142: 0 | DG142: 0 | DH142: 0 | DI142: 0 | DJ142: 0 | DK142: 0 | DL142: 0 | DN142: 0 | DP142: 49743 | DQ142: 0 | DR142: 49743 | DS142: 0 | DT142: 0 | DV142: 0 | EC142: 0 | EE142: 133
A143: 134 | B143: 134 | C143: HOLDEN | D143: 0 | E143: 0 | F143: 0 | G143: 0 | H143: 0 | J143: 0 | K143: 0 | L143: 0 | N143: 0 | P143: 0 | Q143: 0 | R143: 0 | S143: 0 | T143: 0 | U143: 0 | W143: 0 | AA143: 134 | AB143: 0 | AC143: 0 | AD143: 0 | AE143: 0 | AF143: 0 | AG143: 0 | AH143: 0 | AI143: 0 | AJ143: 0 | AK143: 0 | AL143: 0 | AM143: 0 | AN143: 0 | AO143: 0 | AP143: 0 | AQ143: 0 | AS143: 134 | AT143: 0 | AU143: 0 | AV143: 0 | AW143: 0 | AX143: 0 | AY143: 0 | BA143: 0 | BB143: 0 | BC143: 0 | BD143: 0 | BE143: 0 | BG143: 0 | BH143: 0 | BI143: 0 | CA143: 134 | CB143: 134 | CC143: HOLDEN | CD143: 0 | CE143: 0 | CF143: 0 | CG143: 0 | CH143: 0 | CI143: 0 | CJ143: 0 | CK143: 0 | DA143: 134 | DB143: HOLDEN | DC143: 0 | DD143: 0 | DE143: 0 | DF143: 0 | DG143: 0 | DH143: 0 | DI143: 0 | DJ143: 0 | DK143: 0 | DL143: 0 | DN143: 0 | DP143: 0 | DQ143: 0 | DR143: 0 | DS143: 0 | DT143: 0 | DV143: 0 | EC143: 0 | EE143: 134
A144: 135 | B144: 135 | C144: HOLLAND | D144: 3 | E144: 45594 | F144: 0 | G144: 3564 | H144: 49158 | J144: 3564 | K144: 22020.4 | L144: 25584.4 | N144: 23573.6 | P144: 3564 | Q144: 0 | R144: 0 | S144: 0 | T144: 22020.4 | U144: 25584.4 | W144: 25584.4 | AA144: 135 | AB144: 3 | AC144: 0 | AD144: 0 | AE144: 0 | AF144: 45594 | AG144: 0 | AH144: 0 | AI144: 45594 | AJ144: 0 | AK144: 3564 | AL144: 49158 | AM144: 0 | AN144: 0 | AO144: 0 | AP144: 0 | AQ144: 49158 | AS144: 135 | AT144: 1 | AU144: 0 | AV144: 0 | AW144: 0 | AX144: 0 | AY144: 0 | BA144: 0 | BB144: 0 | BC144: 0 | BD144: 0 | BE144: 0 | BG144: 9 | BH144: 1.365489655 | BI144: 0 | CA144: 135 | CB144: 135 | CC144: HOLLAND | CD144: 45594 | CE144: 127935 | CF144: 0 | CG144: 10531.2 | CH144: 11489.2 | CI144: 0 | CJ144: 22020.4 | CK144: 22020.4 | DA144: 135 | DB144: HOLLAND | DC144: 0 | DD144: 0 | DE144: 0 | DF144: 0 | DG144: 0 | DH144: 0 | DI144: 0 | DJ144: 0 | DK144: 0 | DL144: 0 | DN144: 0 | DP144: 0 | DQ144: 0 | DR144: 0 | DS144: 0 | DT144: 0 | DV144: 0 | EC144: 0 | EE144: 135
A145: 136 | B145: 136 | C145: HOLLISTON | D145: 13 | E145: 196093 | F145: 0 | G145: 15444 | H145: 211537 | J145: 15444 | K145: 0 | L145: 15444 | N145: 196093 | P145: 15444 | Q145: 0 | R145: 0 | S145: 0 | T145: 0 | U145: 15444 | W145: 15444 | AA145: 136 | AB145: 13 | AC145: 0 | AD145: 0 | AE145: 0 | AF145: 196093 | AG145: 0 | AH145: 0 | AI145: 196093 | AJ145: 0 | AK145: 15444 | AL145: 211537 | AM145: 0 | AN145: 0 | AO145: 0 | AP145: 0 | AQ145: 211537 | AS145: 136 | AT145: 2 | AU145: 0 | AV145: 0 | AW145: 0 | AX145: 0 | AY145: 0 | BA145: 0 | BB145: 0 | BC145: 0 | BD145: 0 | BE145: 0 | BG145: 9 | BH145: 0.4459000616 | BI145: 0 | CA145: 136 | CB145: 136 | CC145: HOLLISTON | CD145: 196093 | CE145: 211294 | CF145: 0 | CG145: 0 | CH145: 0 | CI145: 0 | CJ145: 0 | CK145: 0 | DA145: 136 | DB145: HOLLISTON | DC145: 0 | DD145: 0 | DE145: 0 | DF145: 0 | DG145: 0 | DH145: 0 | DI145: 0 | DJ145: 0 | DK145: 0 | DL145: 0 | DN145: 0 | DP145: 0 | DQ145: 0 | DR145: 0 | DS145: 0 | DT145: 0 | DV145: 0 | EC145: 0 | EE145: 136
A146: 137 | B146: 137 | C146: HOLYOKE | D146: 666 | E146: 11640855 | F146: 792900 | G146: 790861 | H146: 13224616 | J146: 790861 | K146: 1404117 | L146: 2194978 | N146: 11029638 | P146: 790861 | Q146: 0 | R146: 0 | S146: 0 | T146: 1404117 | U146: 2194978 | W146: 2194978 | AA146: 137 | AB146: 666 | AC146: 0.2943828331 | AD146: 0 | AE146: 0 | AF146: 11640855 | AG146: 0 | AH146: 0 | AI146: 11640855 | AJ146: 0 | AK146: 790861 | AL146: 12431716 | AM146: 0 | AN146: 0 | AO146: 0 | AP146: 0 | AQ146: 12431716 | AS146: 137 | AT146: 109 | AU146: 0 | AV146: 0 | AW146: 0 | AX146: 0 | AY146: 0 | BA146: 0 | BB146: 0 | BC146: 0 | BD146: 0 | BE146: 0 | BG146: 18 | BH146: 10.56820156 | BI146: 0 | CA146: 137 | CB146: 137 | CC146: HOLYOKE | CD146: 11640855 | CE146: 11167698 | CF146: 473157 | CG146: 930960 | CH146: 0 | CI146: 0 | CJ146: 1404117 | CK146: 1404117 | DA146: 137 | DB146: HOLYOKE | DC146: 0 | DD146: 0 | DE146: 0 | DF146: 0 | DG146: 0 | DH146: 0 | DI146: 0 | DJ146: 0 | DK146: 0 | DL146: 0 | DN146: 0 | DP146: 473157 | DQ146: 0 | DR146: 473157 | DS146: 0 | DT146: 0 | DV146: 0 | EC146: 0 | EE146: 137
A147: 138 | B147: 138 | C147: HOPEDALE | D147: 8 | E147: 170736 | F147: 0 | G147: 9504 | H147: 180240 | J147: 9504 | K147: 113875 | L147: 123379 | N147: 56861 | P147: 9504 | Q147: 0 | R147: 0 | S147: 0 | T147: 113875 | U147: 123379 | W147: 123379 | AA147: 138 | AB147: 8 | AC147: 0 | AD147: 0 | AE147: 0 | AF147: 170736 | AG147: 0 | AH147: 0 | AI147: 170736 | AJ147: 0 | AK147: 9504 | AL147: 180240 | AM147: 0 | AN147: 0 | AO147: 0 | AP147: 0 | AQ147: 180240 | AS147: 138 | AT147: 0 | AU147: 0 | AV147: 0 | AW147: 0 | AX147: 0 | AY147: 0 | BA147: 0 | BB147: 0 | BC147: 0 | BD147: 0 | BE147: 0 | BG147: 9 | BH147: 0.9896606385 | BI147: 0 | CA147: 138 | CB147: 138 | CC147: HOPEDALE | CD147: 170736 | CE147: 56861 | CF147: 113875 | CG147: 0 | CH147: 0 | CI147: 0 | CJ147: 113875 | CK147: 113875 | DA147: 138 | DB147: HOPEDALE | DC147: 0 | DD147: 0 | DE147: 0 | DF147: 0 | DG147: 0 | DH147: 0 | DI147: 0 | DJ147: 0 | DK147: 0 | DL147: 0 | DN147: 0 | DP147: 113875 | DQ147: 0 | DR147: 113875 | DS147: 0 | DT147: 0 | DV147: 0 | EC147: 0 | EE147: 138
A148: 139 | B148: 139 | C148: HOPKINTON | D148: 3 | E148: 48912 | F148: 0 | G148: 3564 | H148: 52476 | J148: 3564 | K148: 4431 | L148: 7995 | N148: 44481 | P148: 3564 | Q148: 0 | R148: 0 | S148: 0 | T148: 4431 | U148: 7995 | W148: 7995 | AA148: 139 | AB148: 3 | AC148: 0 | AD148: 0 | AE148: 0 | AF148: 48912 | AG148: 0 | AH148: 0 | AI148: 48912 | AJ148: 0 | AK148: 3564 | AL148: 52476 | AM148: 0 | AN148: 0 | AO148: 0 | AP148: 0 | AQ148: 52476 | AS148: 139 | AT148: 3 | AU148: 0 | AV148: 0 | AW148: 0 | AX148: 0 | AY148: 0 | BA148: 0 | BB148: 0 | BC148: 0 | BD148: 0 | BE148: 0 | BG148: 9 | BH148: 0.07269811817 | BI148: 0 | CA148: 139 | CB148: 139 | CC148: HOPKINTON | CD148: 48912 | CE148: 44481 | CF148: 4431 | CG148: 0 | CH148: 0 | CI148: 0 | CJ148: 4431 | CK148: 4431 | DA148: 139 | DB148: HOPKINTON | DC148: 0 | DD148: 0 | DE148: 0 | DF148: 0 | DG148: 0 | DH148: 0 | DI148: 0 | DJ148: 0 | DK148: 0 | DL148: 0 | DN148: 0 | DP148: 4431 | DQ148: 0 | DR148: 4431 | DS148: 0 | DT148: 0 | DV148: 0 | EC148: 0 | EE148: 139
A149: 140 | B149: 140 | C149: HUBBARDSTON | D149: 0 | E149: 0 | F149: 0 | G149: 0 | H149: 0 | J149: 0 | K149: 0 | L149: 0 | N149: 0 | P149: 0 | Q149: 0 | R149: 0 | S149: 0 | T149: 0 | U149: 0 | W149: 0 | AA149: 140 | AB149: 0 | AC149: 0 | AD149: 0 | AE149: 0 | AF149: 0 | AG149: 0 | AH149: 0 | AI149: 0 | AJ149: 0 | AK149: 0 | AL149: 0 | AM149: 0 | AN149: 0 | AO149: 0 | AP149: 0 | AQ149: 0 | AS149: 140 | AT149: 0 | AU149: 0 | AV149: 0 | AW149: 0 | AX149: 0 | AY149: 0 | BA149: 0 | BB149: 0 | BC149: 0 | BD149: 0 | BE149: 0 | BG149: 0 | BH149: 0 | BI149: 0 | CA149: 140 | CB149: 140 | CC149: HUBBARDSTON | CD149: 0 | CE149: 0 | CF149: 0 | CG149: 0 | CH149: 0 | CI149: 0 | CJ149: 0 | CK149: 0 | DA149: 140 | DB149: HUBBARDSTON | DC149: 0 | DD149: 0 | DE149: 0 | DF149: 0 | DG149: 0 | DH149: 0 | DI149: 0 | DJ149: 0 | DK149: 0 | DL149: 0 | DN149: 0 | DP149: 0 | DQ149: 0 | DR149: 0 | DS149: 0 | DT149: 0 | DV149: 0 | EC149: 0 | EE149: 140
A150: 141 | B150: 141 | C150: HUDSON | D150: 208 | E150: 3963467 | F150: 0 | G150: 247104 | H150: 4210571 | J150: 247104 | K150: 907173.6 | L150: 1154277.6 | N150: 3056293.4 | P150: 247104 | Q150: 0 | R150: 0 | S150: 0 | T150: 907173.6 | U150: 1154277.6 | W150: 1154277.6 | AA150: 141 | AB150: 208 | AC150: 0 | AD150: 0 | AE150: 0 | AF150: 3963467 | AG150: 0 | AH150: 0 | AI150: 3963467 | AJ150: 0 | AK150: 247104 | AL150: 4210571 | AM150: 0 | AN150: 0 | AO150: 0 | AP150: 0 | AQ150: 4210571 | AS150: 141 | AT150: 74 | AU150: 0 | AV150: 0 | AW150: 0 | AX150: 0 | AY150: 0 | BA150: 0 | BB150: 0 | BC150: 0 | BD150: 0 | BE150: 0 | BG150: 9 | BH150: 7.256589195 | BI150: 0 | CA150: 141 | CB150: 141 | CC150: HUDSON | CD150: 3963467 | CE150: 3422051 | CF150: 541416 | CG150: 169420.8 | CH150: 196336.8 | CI150: 0 | CJ150: 907173.6 | CK150: 907173.6 | DA150: 141 | DB150: HUDSON | DC150: 0 | DD150: 0 | DE150: 0 | DF150: 0 | DG150: 0 | DH150: 0 | DI150: 0 | DJ150: 0 | DK150: 0 | DL150: 0 | DN150: 0 | DP150: 541416 | DQ150: 0 | DR150: 541416 | DS150: 0 | DT150: 0 | DV150: 0 | EC150: 0 | EE150: 141
A151: 142 | B151: 142 | C151: HULL | D151: 17 | E151: 425425 | F151: 0 | G151: 20196 | H151: 445621 | J151: 20196 | K151: 70961 | L151: 91157 | N151: 354464 | P151: 20196 | Q151: 0 | R151: 0 | S151: 0 | T151: 70961 | U151: 91157 | W151: 91157 | AA151: 142 | AB151: 17 | AC151: 0 | AD151: 0 | AE151: 0 | AF151: 425425 | AG151: 0 | AH151: 0 | AI151: 425425 | AJ151: 0 | AK151: 20196 | AL151: 445621 | AM151: 0 | AN151: 0 | AO151: 0 | AP151: 0 | AQ151: 445621 | AS151: 142 | AT151: 7 | AU151: 0 | AV151: 0 | AW151: 0 | AX151: 0 | AY151: 0 | BA151: 0 | BB151: 0 | BC151: 0 | BD151: 0 | BE151: 0 | BG151: 9 | BH151: 1.999967374 | BI151: 0 | CA151: 142 | CB151: 142 | CC151: HULL | CD151: 425425 | CE151: 354464 | CF151: 70961 | CG151: 0 | CH151: 0 | CI151: 0 | CJ151: 70961 | CK151: 70961 | DA151: 142 | DB151: HULL | DC151: 0 | DD151: 0 | DE151: 0 | DF151: 0 | DG151: 0 | DH151: 0 | DI151: 0 | DJ151: 0 | DK151: 0 | DL151: 0 | DN151: 0 | DP151: 70961 | DQ151: 0 | DR151: 70961 | DS151: 0 | DT151: 0 | DV151: 0 | EC151: 0 | EE151: 142
A152: 143 | B152: 143 | C152: HUNTINGTON | D152: 0 | E152: 0 | F152: 0 | G152: 0 | H152: 0 | J152: 0 | K152: 0 | L152: 0 | N152: 0 | P152: 0 | Q152: 0 | R152: 0 | S152: 0 | T152: 0 | U152: 0 | W152: 0 | AA152: 143 | AB152: 0 | AC152: 0 | AD152: 0 | AE152: 0 | AF152: 0 | AG152: 0 | AH152: 0 | AI152: 0 | AJ152: 0 | AK152: 0 | AL152: 0 | AM152: 0 | AN152: 0 | AO152: 0 | AP152: 0 | AQ152: 0 | AS152: 143 | AT152: 0 | AU152: 0 | AV152: 0 | AW152: 0 | AX152: 0 | AY152: 0 | BA152: 0 | BB152: 0 | BC152: 0 | BD152: 0 | BE152: 0 | BG152: 0 | BH152: 0 | BI152: 0 | CA152: 143 | CB152: 143 | CC152: HUNTINGTON | CD152: 0 | CE152: 0 | CF152: 0 | CG152: 0 | CH152: 0 | CI152: 0 | CJ152: 0 | CK152: 0 | DA152: 143 | DB152: HUNTINGTON | DC152: 0 | DD152: 0 | DE152: 0 | DF152: 0 | DG152: 0 | DH152: 0 | DI152: 0 | DJ152: 0 | DK152: 0 | DL152: 0 | DN152: 0 | DP152: 0 | DQ152: 0 | DR152: 0 | DS152: 0 | DT152: 0 | DV152: 0 | EC152: 0 | EE152: 143
A153: 144 | B153: 144 | C153: IPSWICH | D153: 0 | E153: 0 | F153: 0 | G153: 0 | H153: 0 | J153: 0 | K153: 0 | L153: 0 | N153: 0 | P153: 0 | Q153: 0 | R153: 0 | S153: 0 | T153: 0 | U153: 0 | W153: 0 | AA153: 144 | AB153: 0 | AC153: 0 | AD153: 0 | AE153: 0 | AF153: 0 | AG153: 0 | AH153: 0 | AI153: 0 | AJ153: 0 | AK153: 0 | AL153: 0 | AM153: 0 | AN153: 0 | AO153: 0 | AP153: 0 | AQ153: 0 | AS153: 144 | AT153: 0 | AU153: 0 | AV153: 0 | AW153: 0 | AX153: 0 | AY153: 0 | BA153: 0 | BB153: 0 | BC153: 0 | BD153: 0 | BE153: 0 | BG153: 0 | BH153: 0 | BI153: 0 | CA153: 144 | CB153: 144 | CC153: IPSWICH | CD153: 0 | CE153: 0 | CF153: 0 | CG153: 0 | CH153: 0 | CI153: 0 | CJ153: 0 | CK153: 0 | DA153: 144 | DB153: IPSWICH | DC153: 0 | DD153: 0 | DE153: 0 | DF153: 0 | DG153: 0 | DH153: 0 | DI153: 0 | DJ153: 0 | DK153: 0 | DL153: 0 | DN153: 0 | DP153: 0 | DQ153: 0 | DR153: 0 | DS153: 0 | DT153: 0 | DV153: 0 | EC153: 0 | EE153: 144
A154: 145 | B154: 145 | C154: KINGSTON | D154: 15 | E154: 226354 | F154: 0 | G154: 17820 | H154: 244174 | J154: 17820 | K154: 86217.2 | L154: 104037.2 | N154: 140136.8 | P154: 17820 | Q154: 0 | R154: 0 | S154: 0 | T154: 86217.2 | U154: 104037.2 | W154: 104037.2 | AA154: 145 | AB154: 15 | AC154: 0 | AD154: 0 | AE154: 0 | AF154: 226354 | AG154: 0 | AH154: 0 | AI154: 226354 | AJ154: 0 | AK154: 17820 | AL154: 244174 | AM154: 0 | AN154: 0 | AO154: 0 | AP154: 0 | AQ154: 244174 | AS154: 145 | AT154: 6 | AU154: 0 | AV154: 0 | AW154: 0 | AX154: 0 | AY154: 0 | BA154: 0 | BB154: 0 | BC154: 0 | BD154: 0 | BE154: 0 | BG154: 9 | BH154: 1.337517245 | BI154: 0 | CA154: 145 | CB154: 145 | CC154: KINGSTON | CD154: 226354 | CE154: 155170 | CF154: 71184 | CG154: 0 | CH154: 15033.2 | CI154: 0 | CJ154: 86217.2 | CK154: 86217.2 | DA154: 145 | DB154: KINGSTON | DC154: 0 | DD154: 0 | DE154: 0 | DF154: 0 | DG154: 0 | DH154: 0 | DI154: 0 | DJ154: 0 | DK154: 0 | DL154: 0 | DN154: 0 | DP154: 71184 | DQ154: 0 | DR154: 71184 | DS154: 0 | DT154: 0 | DV154: 0 | EC154: 0 | EE154: 145
A155: 146 | B155: 146 | C155: LAKEVILLE | D155: 0 | E155: 0 | F155: 0 | G155: 0 | H155: 0 | J155: 0 | K155: 0 | L155: 0 | N155: 0 | P155: 0 | Q155: 0 | R155: 0 | S155: 0 | T155: 0 | U155: 0 | W155: 0 | AA155: 146 | AB155: 0 | AC155: 0 | AD155: 0 | AE155: 0 | AF155: 0 | AG155: 0 | AH155: 0 | AI155: 0 | AJ155: 0 | AK155: 0 | AL155: 0 | AM155: 0 | AN155: 0 | AO155: 0 | AP155: 0 | AQ155: 0 | AS155: 146 | AT155: 0 | AU155: 0 | AV155: 0 | AW155: 0 | AX155: 0 | AY155: 0 | BA155: 0 | BB155: 0 | BC155: 0 | BD155: 0 | BE155: 0 | BG155: 0 | BH155: 0 | BI155: 0 | CA155: 146 | CB155: 146 | CC155: LAKEVILLE | CD155: 0 | CE155: 0 | CF155: 0 | CG155: 0 | CH155: 0 | CI155: 0 | CJ155: 0 | CK155: 0 | DA155: 146 | DB155: LAKEVILLE | DC155: 0 | DD155: 0 | DE155: 0 | DF155: 0 | DG155: 0 | DH155: 0 | DI155: 0 | DJ155: 0 | DK155: 0 | DL155: 0 | DN155: 0 | DP155: 0 | DQ155: 0 | DR155: 0 | DS155: 0 | DT155: 0 | DV155: 0 | EB155: fy12 | EC155: 0 | EE155: 146
A156: 147 | B156: 147 | C156: LANCASTER | D156: 0 | E156: 0 | F156: 0 | G156: 0 | H156: 0 | J156: 0 | K156: 0 | L156: 0 | N156: 0 | P156: 0 | Q156: 0 | R156: 0 | S156: 0 | T156: 0 | U156: 0 | W156: 0 | AA156: 147 | AB156: 0 | AC156: 0 | AD156: 0 | AE156: 0 | AF156: 0 | AG156: 0 | AH156: 0 | AI156: 0 | AJ156: 0 | AK156: 0 | AL156: 0 | AM156: 0 | AN156: 0 | AO156: 0 | AP156: 0 | AQ156: 0 | AS156: 147 | AT156: 0 | AU156: 0 | AV156: 0 | AW156: 0 | AX156: 0 | AY156: 0 | BA156: 0 | BB156: 0 | BC156: 0 | BD156: 0 | BE156: 0 | BG156: 0 | BH156: 0 | BI156: 0 | CA156: 147 | CB156: 147 | CC156: LANCASTER | CD156: 0 | CE156: 0 | CF156: 0 | CG156: 0 | CH156: 0 | CI156: 0 | CJ156: 0 | CK156: 0 | DA156: 147 | DB156: LANCASTER | DC156: 0 | DD156: 0 | DE156: 0 | DF156: 0 | DG156: 0 | DH156: 0 | DI156: 0 | DJ156: 0 | DK156: 0 | DL156: 0 | DN156: 0 | DP156: 0 | DQ156: 0 | DR156: 0 | DS156: 0 | DT156: 0 | DV156: 0 | EC156: 0 | EE156: 147
A157: 148 | B157: 148 | C157: LANESBOROUGH | D157: 0 | E157: 0 | F157: 0 | G157: 0 | H157: 0 | J157: 0 | K157: 0 | L157: 0 | N157: 0 | P157: 0 | Q157: 0 | R157: 0 | S157: 0 | T157: 0 | U157: 0 | W157: 0 | AA157: 148 | AB157: 0 | AC157: 0 | AD157: 0 | AE157: 0 | AF157: 0 | AG157: 0 | AH157: 0 | AI157: 0 | AJ157: 0 | AK157: 0 | AL157: 0 | AM157: 0 | AN157: 0 | AO157: 0 | AP157: 0 | AQ157: 0 | AS157: 148 | AT157: 0 | AU157: 0 | AV157: 0 | AW157: 0 | AX157: 0 | AY157: 0 | BA157: 0 | BB157: 0 | BC157: 0 | BD157: 0 | BE157: 0 | BG157: 0 | BH157: 0 | BI157: 0 | CA157: 148 | CB157: 148 | CC157: LANESBOROUGH | CD157: 0 | CE157: 0 | CF157: 0 | CG157: 0 | CH157: 0 | CI157: 0 | CJ157: 0 | CK157: 0 | DA157: 148 | DB157: LANESBOROUGH | DC157: 0 | DD157: 0 | DE157: 0 | DF157: 0 | DG157: 0 | DH157: 0 | DI157: 0 | DJ157: 0 | DK157: 0 | DL157: 0 | DN157: 0 | DP157: 0 | DQ157: 0 | DR157: 0 | DS157: 0 | DT157: 0 | DV157: 0 | EB157: fy19 | EC157: 0 | EE157: 148
A158: 149 | B158: 149 | C158: LAWRENCE | D158: 1980 | E158: 35497440 | F158: 959101 | G158: 2352209 | H158: 38808750 | J158: 2352209 | K158: 6905346.4 | L158: 9257555.4 | N158: 29551194.6 | P158: 2352209 | Q158: 0 | R158: 0 | S158: 0 | T158: 6905346.4 | U158: 9257555.4 | W158: 9257555.4 | AA158: 149 | AB158: 1980 | AC158: 0.02551074554 | AD158: 0 | AE158: 0 | AF158: 35497440 | AG158: 0 | AH158: 0 | AI158: 35497440 | AJ158: 0 | AK158: 2352209 | AL158: 37849649 | AM158: 0 | AN158: 0 | AO158: 0 | AP158: 0 | AQ158: 37849649 | AS158: 149 | AT158: 181 | AU158: 0 | AV158: 0 | AW158: 0 | AX158: 0 | AY158: 0 | BA158: 0 | BB158: 0 | BC158: 0 | BD158: 0 | BE158: 0 | BG158: 18 | BH158: 12.53799974 | BI158: 0 | CA158: 149 | CB158: 149 | CC158: LAWRENCE | CD158: 35497440 | CE158: 30920016 | CF158: 4577424 | CG158: 1169391.6 | CH158: 1158530.8 | CI158: 0 | CJ158: 6905346.4 | CK158: 6905346.4 | DA158: 149 | DB158: LAWRENCE | DC158: 0 | DD158: 0 | DE158: 0 | DF158: 0 | DG158: 0 | DH158: 0 | DI158: 0 | DJ158: 0 | DK158: 0 | DL158: 0 | DN158: 0 | DP158: 4577424 | DQ158: 0 | DR158: 4577424 | DS158: 0 | DT158: 0 | DV158: 0 | EC158: 0 | EE158: 149
A159: 150 | B159: 150 | C159: LEE | D159: 1 | E159: 23355 | F159: 0 | G159: 1181 | H159: 24536 | J159: 1181 | K159: 23355 | L159: 24536 | N159: 0 | P159: 1181 | Q159: 0 | R159: 0 | S159: 0 | T159: 23355 | U159: 24536 | W159: 24536 | AA159: 150 | AB159: 1 | AC159: 0.005479452055 | AD159: 0 | AE159: 0 | AF159: 23355 | AG159: 0 | AH159: 0 | AI159: 23355 | AJ159: 0 | AK159: 1181 | AL159: 24536 | AM159: 0 | AN159: 0 | AO159: 0 | AP159: 0 | AQ159: 24536 | AS159: 150 | AT159: 0 | AU159: 0 | AV159: 0 | AW159: 0 | AX159: 0 | AY159: 0 | BA159: 0 | BB159: 0 | BC159: 0 | BD159: 0 | BE159: 0 | BG159: 9 | BH159: 0.1696280334 | BI159: 0 | CA159: 150 | CB159: 150 | CC159: LEE | CD159: 23355 | CE159: 0 | CF159: 23355 | CG159: 0 | CH159: 0 | CI159: 0 | CJ159: 23355 | CK159: 23355 | DA159: 150 | DB159: LEE | DC159: 0 | DD159: 0 | DE159: 0 | DF159: 0 | DG159: 0 | DH159: 0 | DI159: 0 | DJ159: 0 | DK159: 0 | DL159: 0 | DN159: 0 | DP159: 23355 | DQ159: 0 | DR159: 23355 | DS159: 0 | DT159: 0 | DV159: 0 | EC159: 0 | EE159: 150
A160: 151 | B160: 151 | C160: LEICESTER | D160: 28 | E160: 470487 | F160: 0 | G160: 32942 | H160: 503429 | J160: 32942 | K160: 137250 | L160: 170192 | N160: 333237 | P160: 32942 | Q160: 0 | R160: 0 | S160: 0 | T160: 137250 | U160: 170192 | W160: 170192 | AA160: 151 | AB160: 28 | AC160: 0.2692036335 | AD160: 0 | AE160: 0 | AF160: 470487 | AG160: 0 | AH160: 0 | AI160: 470487 | AJ160: 0 | AK160: 32942 | AL160: 503429 | AM160: 0 | AN160: 0 | AO160: 0 | AP160: 0 | AQ160: 503429 | AS160: 151 | AT160: 8 | AU160: 0 | AV160: 0 | AW160: 0 | AX160: 0 | AY160: 0 | BA160: 0 | BB160: 0 | BC160: 0 | BD160: 0 | BE160: 0 | BG160: 9 | BH160: 1.940356055 | BI160: 0 | CA160: 151 | CB160: 151 | CC160: LEICESTER | CD160: 470487 | CE160: 346230 | CF160: 124257 | CG160: 12993 | CH160: 0 | CI160: 0 | CJ160: 137250 | CK160: 137250 | DA160: 151 | DB160: LEICESTER | DC160: 0 | DD160: 0 | DE160: 0 | DF160: 0 | DG160: 0 | DH160: 0 | DI160: 0 | DJ160: 0 | DK160: 0 | DL160: 0 | DN160: 0 | DP160: 124257 | DQ160: 0 | DR160: 124257 | DS160: 0 | DT160: 0 | DV160: 0 | EC160: 0 | EE160: 151
A161: 152 | B161: 152 | C161: LENOX | D161: 0 | E161: 0 | F161: 0 | G161: 0 | H161: 0 | J161: 0 | K161: 0 | L161: 0 | N161: 0 | P161: 0 | Q161: 0 | R161: 0 | S161: 0 | T161: 0 | U161: 0 | W161: 0 | AA161: 152 | AB161: 0 | AC161: 0 | AD161: 0 | AE161: 0 | AF161: 0 | AG161: 0 | AH161: 0 | AI161: 0 | AJ161: 0 | AK161: 0 | AL161: 0 | AM161: 0 | AN161: 0 | AO161: 0 | AP161: 0 | AQ161: 0 | AS161: 152 | AT161: 0 | AU161: 0 | AV161: 0 | AW161: 0 | AX161: 0 | AY161: 0 | BA161: 0 | BB161: 0 | BC161: 0 | BD161: 0 | BE161: 0 | BG161: 0 | BH161: 0 | BI161: 0 | CA161: 152 | CB161: 152 | CC161: LENOX | CD161: 0 | CE161: 0 | CF161: 0 | CG161: 0 | CH161: 0 | CI161: 0 | CJ161: 0 | CK161: 0 | DA161: 152 | DB161: LENOX | DC161: 0 | DD161: 0 | DE161: 0 | DF161: 0 | DG161: 0 | DH161: 0 | DI161: 0 | DJ161: 0 | DK161: 0 | DL161: 0 | DN161: 0 | DP161: 0 | DQ161: 0 | DR161: 0 | DS161: 0 | DT161: 0 | DV161: 0 | EC161: 0 | EE161: 152
A162: 153 | B162: 153 | C162: LEOMINSTER | D162: 86 | E162: 1290561 | F162: 0 | G162: 102084 | H162: 1392645 | J162: 102084 | K162: 211615.2 | L162: 313699.2 | N162: 1078945.8 | P162: 102084 | Q162: 0 | R162: 0 | S162: 0 | T162: 211615.2 | U162: 313699.2 | W162: 313699.2 | AA162: 153 | AB162: 86 | AC162: 0.07012370138 | AD162: 0 | AE162: 0 | AF162: 1290561 | AG162: 0 | AH162: 0 | AI162: 1290561 | AJ162: 0 | AK162: 102084 | AL162: 1392645 | AM162: 0 | AN162: 0 | AO162: 0 | AP162: 0 | AQ162: 1392645 | AS162: 153 | AT162: 15 | AU162: 0 | AV162: 0 | AW162: 0 | AX162: 0 | AY162: 0 | BA162: 0 | BB162: 0 | BC162: 0 | BD162: 0 | BE162: 0 | BG162: 9 | BH162: 1.293896648 | BI162: 0 | CA162: 153 | CB162: 153 | CC162: LEOMINSTER | CD162: 1290561 | CE162: 1160819 | CF162: 129742 | CG162: 58608 | CH162: 23265.2 | CI162: 0 | CJ162: 211615.2 | CK162: 211615.2 | DA162: 153 | DB162: LEOMINSTER | DC162: 0 | DD162: 0 | DE162: 0 | DF162: 0 | DG162: 0 | DH162: 0 | DI162: 0 | DJ162: 0 | DK162: 0 | DL162: 0 | DN162: 0 | DP162: 129742 | DQ162: 0 | DR162: 129742 | DS162: 0 | DT162: 0 | DV162: 0 | EC162: 0 | EE162: 153
A163: 154 | B163: 154 | C163: LEVERETT | D163: 0 | E163: 0 | F163: 0 | G163: 0 | H163: 0 | J163: 0 | K163: 1026.4 | L163: 1026.4 | N163: -1026.4 | P163: 0 | Q163: 0 | R163: 0 | S163: 0 | T163: 1026.4 | U163: 1026.4 | W163: 1026.4 | AA163: 154 | AB163: 0 | AC163: 0 | AD163: 0 | AE163: 0 | AF163: 0 | AG163: 0 | AH163: 0 | AI163: 0 | AJ163: 0 | AK163: 0 | AL163: 0 | AM163: 0 | AN163: 0 | AO163: 0 | AP163: 0 | AQ163: 0 | AS163: 154 | AT163: 0 | AU163: 0 | AV163: 0 | AW163: 0 | AX163: 0 | AY163: 0 | BA163: 0 | BB163: 0 | BC163: 0 | BD163: 0 | BE163: 0 | BG163: 0 | BH163: 0 | BI163: 0 | CA163: 154 | CB163: 154 | CC163: LEVERETT | CD163: 0 | CE163: 20668 | CF163: 0 | CG163: 0 | CH163: 1026.4 | CI163: 0 | CJ163: 1026.4 | CK163: 1026.4 | DA163: 154 | DB163: LEVERETT | DC163: 0 | DD163: 0 | DE163: 0 | DF163: 0 | DG163: 0 | DH163: 0 | DI163: 0 | DJ163: 0 | DK163: 0 | DL163: 0 | DN163: 0 | DP163: 0 | DQ163: 0 | DR163: 0 | DS163: 0 | DT163: 0 | DV163: 0 | EC163: 0 | EE163: 154
A164: 155 | B164: 155 | C164: LEXINGTON | D164: 5 | E164: 118800 | F164: 0 | G164: 5940 | H164: 124740 | J164: 5940 | K164: 93992.2 | L164: 99932.2 | N164: 24807.8 | P164: 5940 | Q164: 0 | R164: 0 | S164: 0 | T164: 93992.2 | U164: 99932.2 | W164: 99932.2 | AA164: 155 | AB164: 5 | AC164: 0 | AD164: 0 | AE164: 0 | AF164: 118800 | AG164: 0 | AH164: 0 | AI164: 118800 | AJ164: 0 | AK164: 5940 | AL164: 124740 | AM164: 0 | AN164: 0 | AO164: 0 | AP164: 0 | AQ164: 124740 | AS164: 155 | AT164: 1 | AU164: 0 | AV164: 0 | AW164: 0 | AX164: 0 | AY164: 0 | BA164: 0 | BB164: 0 | BC164: 0 | BD164: 0 | BE164: 0 | BG164: 9 | BH164: 0.07217478482 | BI164: 0 | CA164: 155 | CB164: 155 | CC164: LEXINGTON | CD164: 118800 | CE164: 47033 | CF164: 71767 | CG164: 0 | CH164: 22225.2 | CI164: 0 | CJ164: 93992.2 | CK164: 93992.2 | DA164: 155 | DB164: LEXINGTON | DC164: 0 | DD164: 0 | DE164: 0 | DF164: 0 | DG164: 0 | DH164: 0 | DI164: 0 | DJ164: 0 | DK164: 0 | DL164: 0 | DN164: 0 | DP164: 71767 | DQ164: 0 | DR164: 71767 | DS164: 0 | DT164: 0 | DV164: 0 | EC164: 0 | EE164: 155
A165: 156 | B165: 156 | C165: LEYDEN | D165: 0 | E165: 0 | F165: 0 | G165: 0 | H165: 0 | J165: 0 | K165: 0 | L165: 0 | N165: 0 | P165: 0 | Q165: 0 | R165: 0 | S165: 0 | T165: 0 | U165: 0 | W165: 0 | AA165: 156 | AB165: 0 | AC165: 0 | AD165: 0 | AE165: 0 | AF165: 0 | AG165: 0 | AH165: 0 | AI165: 0 | AJ165: 0 | AK165: 0 | AL165: 0 | AM165: 0 | AN165: 0 | AO165: 0 | AP165: 0 | AQ165: 0 | AS165: 156 | AT165: 0 | AU165: 0 | AV165: 0 | AW165: 0 | AX165: 0 | AY165: 0 | BA165: 0 | BB165: 0 | BC165: 0 | BD165: 0 | BE165: 0 | BG165: 0 | BH165: 0 | BI165: 0 | CA165: 156 | CB165: 156 | CC165: LEYDEN | CD165: 0 | CE165: 0 | CF165: 0 | CG165: 0 | CH165: 0 | CI165: 0 | CJ165: 0 | CK165: 0 | DA165: 156 | DB165: LEYDEN | DC165: 0 | DD165: 0 | DE165: 0 | DF165: 0 | DG165: 0 | DH165: 0 | DI165: 0 | DJ165: 0 | DK165: 0 | DL165: 0 | DN165: 0 | DP165: 0 | DQ165: 0 | DR165: 0 | DS165: 0 | DT165: 0 | DV165: 0 | EC165: 0 | EE165: 156
A166: 157 | B166: 157 | C166: LINCOLN | D166: 0 | E166: 0 | F166: 0 | G166: 0 | H166: 0 | J166: 0 | K166: 0 | L166: 0 | N166: 0 | P166: 0 | Q166: 0 | R166: 0 | S166: 0 | T166: 0 | U166: 0 | W166: 0 | AA166: 157 | AB166: 0 | AC166: 0 | AD166: 0 | AE166: 0 | AF166: 0 | AG166: 0 | AH166: 0 | AI166: 0 | AJ166: 0 | AK166: 0 | AL166: 0 | AM166: 0 | AN166: 0 | AO166: 0 | AP166: 0 | AQ166: 0 | AS166: 157 | AT166: 0 | AU166: 0 | AV166: 0 | AW166: 0 | AX166: 0 | AY166: 0 | BA166: 0 | BB166: 0 | BC166: 0 | BD166: 0 | BE166: 0 | BG166: 0 | BH166: 0 | BI166: 0 | CA166: 157 | CB166: 157 | CC166: LINCOLN | CD166: 0 | CE166: 0 | CF166: 0 | CG166: 0 | CH166: 0 | CI166: 0 | CJ166: 0 | CK166: 0 | DA166: 157 | DB166: LINCOLN | DC166: 0 | DD166: 0 | DE166: 0 | DF166: 0 | DG166: 0 | DH166: 0 | DI166: 0 | DJ166: 0 | DK166: 0 | DL166: 0 | DN166: 0 | DP166: 0 | DQ166: 0 | DR166: 0 | DS166: 0 | DT166: 0 | DV166: 0 | EC166: 0 | EE166: 157
A167: 158 | B167: 158 | C167: LITTLETON | D167: 46 | E167: 827494 | F167: 0 | G167: 54648 | H167: 882142 | J167: 54648 | K167: 32871.2 | L167: 87519.2 | N167: 794622.8 | P167: 54648 | Q167: 0 | R167: 0 | S167: 0 | T167: 32871.2 | U167: 87519.2 | W167: 87519.2 | AA167: 158 | AB167: 46 | AC167: 0 | AD167: 0 | AE167: 0 | AF167: 827494 | AG167: 0 | AH167: 0 | AI167: 827494 | AJ167: 0 | AK167: 54648 | AL167: 882142 | AM167: 0 | AN167: 0 | AO167: 0 | AP167: 0 | AQ167: 882142 | AS167: 158 | AT167: 17 | AU167: 0 | AV167: 0 | AW167: 0 | AX167: 0 | AY167: 0 | BA167: 0 | BB167: 0 | BC167: 0 | BD167: 0 | BE167: 0 | BG167: 9 | BH167: 2.728122133 | BI167: 0 | CA167: 158 | CB167: 158 | CC167: LITTLETON | CD167: 827494 | CE167: 848769 | CF167: 0 | CG167: 0 | CH167: 32871.2 | CI167: 0 | CJ167: 32871.2 | CK167: 32871.2 | DA167: 158 | DB167: LITTLETON | DC167: 0 | DD167: 0 | DE167: 0 | DF167: 0 | DG167: 0 | DH167: 0 | DI167: 0 | DJ167: 0 | DK167: 0 | DL167: 0 | DN167: 0 | DP167: 0 | DQ167: 0 | DR167: 0 | DS167: 0 | DT167: 0 | DV167: 0 | EC167: 0 | EE167: 158
A168: 159 | B168: 159 | C168: LONGMEADOW | D168: 11 | E168: 174899 | F168: 0 | G168: 13068 | H168: 187967 | J168: 13068 | K168: 82858.2 | L168: 95926.2 | N168: 92040.8 | P168: 13068 | Q168: 0 | R168: 0 | S168: 0 | T168: 82858.2 | U168: 95926.2 | W168: 95926.2 | AA168: 159 | AB168: 11 | AC168: 0 | AD168: 0 | AE168: 0 | AF168: 174899 | AG168: 0 | AH168: 0 | AI168: 174899 | AJ168: 0 | AK168: 13068 | AL168: 187967 | AM168: 0 | AN168: 0 | AO168: 0 | AP168: 0 | AQ168: 187967 | AS168: 159 | AT168: 1 | AU168: 0 | AV168: 0 | AW168: 0 | AX168: 0 | AY168: 0 | BA168: 0 | BB168: 0 | BC168: 0 | BD168: 0 | BE168: 0 | BG168: 9 | BH168: 0.364326142 | BI168: 0 | CA168: 159 | CB168: 159 | CC168: LONGMEADOW | CD168: 174899 | CE168: 100742 | CF168: 74157 | CG168: 8701.2 | CH168: 0 | CI168: 0 | CJ168: 82858.2 | CK168: 82858.2 | DA168: 159 | DB168: LONGMEADOW | DC168: 0 | DD168: 0 | DE168: 0 | DF168: 0 | DG168: 0 | DH168: 0 | DI168: 0 | DJ168: 0 | DK168: 0 | DL168: 0 | DN168: 0 | DP168: 74157 | DQ168: 0 | DR168: 74157 | DS168: 0 | DT168: 0 | DV168: 0 | EC168: 0 | EE168: 159
A169: 160 | B169: 160 | C169: LOWELL | D169: 2315 | E169: 39264455 | F169: 0 | G169: 2735486 | H169: 41999941 | J169: 2735486 | K169: 9638735 | L169: 12374221 | N169: 29625720 | P169: 2735486 | Q169: 0 | R169: 0 | S169: 0 | T169: 9638735 | U169: 12374221 | W169: 12374221 | AA169: 160 | AB169: 2315 | AC169: 12.14657982 | AD169: 0 | AE169: 0 | AF169: 39264455 | AG169: 0 | AH169: 0 | AI169: 39264455 | AJ169: 0 | AK169: 2735486 | AL169: 41999941 | AM169: 0 | AN169: 0 | AO169: 0 | AP169: 0 | AQ169: 41999941 | AS169: 160 | AT169: 165 | AU169: 0 | AV169: 0 | AW169: 0 | AX169: 0 | AY169: 0 | BA169: 0 | BB169: 0 | BC169: 0 | BD169: 0 | BE169: 0 | BG169: 18 | BH169: 13.37278223 | BI169: 0 | CA169: 160 | CB169: 160 | CC169: LOWELL | CD169: 39264455 | CE169: 33977539 | CF169: 5286916 | CG169: 2844660.6 | CH169: 1507158.4 | CI169: 0 | CJ169: 9638735 | CK169: 9638735 | DA169: 160 | DB169: LOWELL | DC169: 0 | DD169: 0 | DE169: 0 | DF169: 0 | DG169: 0 | DH169: 0 | DI169: 0 | DJ169: 0 | DK169: 0 | DL169: 0 | DN169: 0 | DP169: 5286916 | DQ169: 0 | DR169: 5286916 | DS169: 0 | DT169: 0 | DV169: 0 | EC169: 0 | EE169: 160
A170: 161 | B170: 161 | C170: LUDLOW | D170: 21 | E170: 402205 | F170: 0 | G170: 24948 | H170: 427153 | J170: 24948 | K170: 63515.4 | L170: 88463.4 | N170: 338689.6 | P170: 24948 | Q170: 0 | R170: 0 | S170: 0 | T170: 63515.4 | U170: 88463.4 | W170: 88463.4 | AA170: 161 | AB170: 21 | AC170: 0 | AD170: 0 | AE170: 0 | AF170: 402205 | AG170: 0 | AH170: 0 | AI170: 402205 | AJ170: 0 | AK170: 24948 | AL170: 427153 | AM170: 0 | AN170: 0 | AO170: 0 | AP170: 0 | AQ170: 427153 | AS170: 161 | AT170: 3 | AU170: 0 | AV170: 0 | AW170: 0 | AX170: 0 | AY170: 0 | BA170: 0 | BB170: 0 | BC170: 0 | BD170: 0 | BE170: 0 | BG170: 9 | BH170: 0.9030463879 | BI170: 0 | CA170: 161 | CB170: 161 | CC170: LUDLOW | CD170: 402205 | CE170: 448722 | CF170: 0 | CG170: 63515.4 | CH170: 0 | CI170: 0 | CJ170: 63515.4 | CK170: 63515.4 | DA170: 161 | DB170: LUDLOW | DC170: 0 | DD170: 0 | DE170: 0 | DF170: 0 | DG170: 0 | DH170: 0 | DI170: 0 | DJ170: 0 | DK170: 0 | DL170: 0 | DN170: 0 | DP170: 0 | DQ170: 0 | DR170: 0 | DS170: 0 | DT170: 0 | DV170: 0 | EC170: 0 | EE170: 161
A171: 162 | B171: 162 | C171: LUNENBURG | D171: 26 | E171: 381085 | F171: 0 | G171: 30888 | H171: 411973 | J171: 30888 | K171: 40755 | L171: 71643 | N171: 340330 | P171: 30888 | Q171: 0 | R171: 0 | S171: 0 | T171: 40755 | U171: 71643 | W171: 71643 | AA171: 162 | AB171: 26 | AC171: 0 | AD171: 0 | AE171: 0 | AF171: 381085 | AG171: 0 | AH171: 0 | AI171: 381085 | AJ171: 0 | AK171: 30888 | AL171: 411973 | AM171: 0 | AN171: 0 | AO171: 0 | AP171: 0 | AQ171: 411973 | AS171: 162 | AT171: 4 | AU171: 0 | AV171: 0 | AW171: 0 | AX171: 0 | AY171: 0 | BA171: 0 | BB171: 0 | BC171: 0 | BD171: 0 | BE171: 0 | BG171: 9 | BH171: 1.515817106 | BI171: 0 | CA171: 162 | CB171: 162 | CC171: LUNENBURG | CD171: 381085 | CE171: 437758 | CF171: 0 | CG171: 40755 | CH171: 0 | CI171: 0 | CJ171: 40755 | CK171: 40755 | DA171: 162 | DB171: LUNENBURG | DC171: 0 | DD171: 0 | DE171: 0 | DF171: 0 | DG171: 0 | DH171: 0 | DI171: 0 | DJ171: 0 | DK171: 0 | DL171: 0 | DN171: 0 | DP171: 0 | DQ171: 0 | DR171: 0 | DS171: 0 | DT171: 0 | DV171: 0 | EC171: 0 | EE171: 162
A172: 163 | B172: 163 | C172: LYNN | D172: 1946 | E172: 32376924 | F172: 993388 | G172: 2279183 | H172: 35649495 | J172: 2279183 | K172: 5999926.4 | L172: 8279109.4 | N172: 27370385.6 | P172: 2279183 | Q172: 0 | R172: 0 | S172: 0 | T172: 5999926.4 | U172: 8279109.4 | W172: 8279109.4 | AA172: 163 | AB172: 1946 | AC172: 27.93350251 | AD172: 0 | AE172: 0 | AF172: 32376924 | AG172: 0 | AH172: 0 | AI172: 32376924 | AJ172: 0 | AK172: 2279183 | AL172: 34656107 | AM172: 0 | AN172: 0 | AO172: 0 | AP172: 0 | AQ172: 34656107 | AS172: 163 | AT172: 735 | AU172: 0 | AV172: 0 | AW172: 0 | AX172: 0 | AY172: 0 | BA172: 0 | BB172: 0 | BC172: 0 | BD172: 0 | BE172: 0 | BG172: 11.34900331 | BH172: 9.910245399 | BI172: 0 | CA172: 163 | CB172: 163 | CC172: LYNN | CD172: 32376924 | CE172: 28836955 | CF172: 3539969 | CG172: 1074451.8 | CH172: 1385505.6 | CI172: 0 | CJ172: 5999926.4 | CK172: 5999926.4 | DA172: 163 | DB172: LYNN | DC172: 0 | DD172: 0 | DE172: 0 | DF172: 0 | DG172: 0 | DH172: 0 | DI172: 0 | DJ172: 0 | DK172: 0 | DL172: 0 | DN172: 0 | DP172: 3539969 | DQ172: 0 | DR172: 3539969 | DS172: 0 | DT172: 0 | DV172: 0 | EC172: 0 | EE172: 163
A173: 164 | B173: 164 | C173: LYNNFIELD | D173: 6 | E173: 117092 | F173: 0 | G173: 7128 | H173: 124220 | J173: 7128 | K173: 24953.2 | L173: 32081.2 | N173: 92138.8 | P173: 7128 | Q173: 0 | R173: 0 | S173: 0 | T173: 24953.2 | U173: 32081.2 | W173: 32081.2 | AA173: 164 | AB173: 6 | AC173: 0 | AD173: 0 | AE173: 0 | AF173: 117092 | AG173: 0 | AH173: 0 | AI173: 117092 | AJ173: 0 | AK173: 7128 | AL173: 124220 | AM173: 0 | AN173: 0 | AO173: 0 | AP173: 0 | AQ173: 124220 | AS173: 164 | AT173: 2 | AU173: 0 | AV173: 0 | AW173: 0 | AX173: 0 | AY173: 0 | BA173: 0 | BB173: 0 | BC173: 0 | BD173: 0 | BE173: 0 | BG173: 9 | BH173: 0.2971893123 | BI173: 0 | CA173: 164 | CB173: 164 | CC173: LYNNFIELD | CD173: 117092 | CE173: 136863 | CF173: 0 | CG173: 21724.8 | CH173: 3228.4 | CI173: 0 | CJ173: 24953.2 | CK173: 24953.2 | DA173: 164 | DB173: LYNNFIELD | DC173: 0 | DD173: 0 | DE173: 0 | DF173: 0 | DG173: 0 | DH173: 0 | DI173: 0 | DJ173: 0 | DK173: 0 | DL173: 0 | DN173: 0 | DP173: 0 | DQ173: 0 | DR173: 0 | DS173: 0 | DT173: 0 | DV173: 0 | EC173: 0 | EE173: 164
A174: 165 | B174: 165 | C174: MALDEN | D174: 596 | E174: 8946269 | F174: 78510 | G174: 708027 | H174: 9732806 | J174: 708027 | K174: 0 | L174: 708027 | N174: 9024779 | P174: 708027 | Q174: 0 | R174: 0 | S174: 0 | T174: 0 | U174: 708027 | W174: 708027 | AA174: 165 | AB174: 596 | AC174: 0.01795665635 | AD174: 0 | AE174: 0 | AF174: 8946269 | AG174: 0 | AH174: 0 | AI174: 8946269 | AJ174: 0 | AK174: 708027 | AL174: 9654296 | AM174: 0 | AN174: 0 | AO174: 0 | AP174: 0 | AQ174: 9654296 | AS174: 165 | AT174: 284 | AU174: 0 | AV174: 0 | AW174: 0 | AX174: 0 | AY174: 0 | BA174: 0 | BB174: 0 | BC174: 0 | BD174: 0 | BE174: 0 | BG174: 9.83 | BH174: 7.612427872 | BI174: 0 | CA174: 165 | CB174: 165 | CC174: MALDEN | CD174: 8946269 | CE174: 9059403 | CF174: 0 | CG174: 0 | CH174: 0 | CI174: 0 | CJ174: 0 | CK174: 0 | DA174: 165 | DB174: MALDEN | DC174: 0 | DD174: 0 | DE174: 0 | DF174: 0 | DG174: 0 | DH174: 0 | DI174: 0 | DJ174: 0 | DK174: 0 | DL174: 0 | DN174: 0 | DP174: 0 | DQ174: 0 | DR174: 0 | DS174: 0 | DT174: 0 | DV174: -0.003645434911 | EC174: 0 | EE174: 165
A175: 166 | B175: 166 | C175: MANCHESTER | D175: 0 | E175: 0 | F175: 0 | G175: 0 | H175: 0 | J175: 0 | K175: 0 | L175: 0 | N175: 0 | P175: 0 | Q175: 0 | R175: 0 | S175: 0 | T175: 0 | U175: 0 | W175: 0 | AA175: 166 | AB175: 0 | AC175: 0 | AD175: 0 | AE175: 0 | AF175: 0 | AG175: 0 | AH175: 0 | AI175: 0 | AJ175: 0 | AK175: 0 | AL175: 0 | AM175: 0 | AN175: 0 | AO175: 0 | AP175: 0 | AQ175: 0 | AS175: 166 | AT175: 0 | AU175: 0 | AV175: 0 | AW175: 0 | AX175: 0 | AY175: 0 | BA175: 0 | BB175: 0 | BC175: 0 | BD175: 0 | BE175: 0 | BG175: 0 | BH175: 0 | BI175: 0 | CA175: 166 | CB175: 166 | CC175: MANCHESTER | CD175: 0 | CE175: 0 | CF175: 0 | CG175: 0 | CH175: 0 | CI175: 0 | CJ175: 0 | CK175: 0 | DA175: 166 | DB175: MANCHESTER | DC175: 0 | DD175: 0 | DE175: 0 | DF175: 0 | DG175: 0 | DH175: 0 | DI175: 0 | DJ175: 0 | DK175: 0 | DL175: 0 | DN175: 0 | DP175: 0 | DQ175: 0 | DR175: 0 | DS175: 0 | DT175: 0 | DV175: 0 | EC175: 0 | EE175: 166
A176: 167 | B176: 167 | C176: MANSFIELD | D176: 44 | E176: 942568 | F176: 0 | G176: 52272 | H176: 994840 | J176: 52272 | K176: 0 | L176: 52272 | N176: 942568 | P176: 52272 | Q176: 0 | R176: 0 | S176: 0 | T176: 0 | U176: 52272 | W176: 52272 | AA176: 167 | AB176: 44 | AC176: 0 | AD176: 0 | AE176: 0 | AF176: 942568 | AG176: 0 | AH176: 0 | AI176: 942568 | AJ176: 0 | AK176: 52272 | AL176: 994840 | AM176: 0 | AN176: 0 | AO176: 0 | AP176: 0 | AQ176: 994840 | AS176: 167 | AT176: 6 | AU176: 0 | AV176: 0 | AW176: 0 | AX176: 0 | AY176: 0 | BA176: 0 | BB176: 0 | BC176: 0 | BD176: 0 | BE176: 0 | BG176: 9 | BH176: 1.373739944 | BI176: 0 | CA176: 167 | CB176: 167 | CC176: MANSFIELD | CD176: 942568 | CE176: 998477 | CF176: 0 | CG176: 0 | CH176: 0 | CI176: 0 | CJ176: 0 | CK176: 0 | DA176: 167 | DB176: MANSFIELD | DC176: 0 | DD176: 0 | DE176: 0 | DF176: 0 | DG176: 0 | DH176: 0 | DI176: 0 | DJ176: 0 | DK176: 0 | DL176: 0 | DN176: 0 | DP176: 0 | DQ176: 0 | DR176: 0 | DS176: 0 | DT176: 0 | DV176: 0 | EC176: 0 | EE176: 167
A177: 168 | B177: 168 | C177: MARBLEHEAD | D177: 63 | E177: 1221933 | F177: 0 | G177: 74781 | H177: 1296714 | J177: 74781 | K177: 226655.6 | L177: 301436.6 | N177: 995277.4 | P177: 74781 | Q177: 0 | R177: 0 | S177: 0 | T177: 226655.6 | U177: 301436.6 | W177: 301436.6 | AA177: 168 | AB177: 63 | AC177: 0.05386996904 | AD177: 0 | AE177: 0 | AF177: 1221933 | AG177: 0 | AH177: 0 | AI177: 1221933 | AJ177: 0 | AK177: 74781 | AL177: 1296714 | AM177: 0 | AN177: 0 | AO177: 0 | AP177: 0 | AQ177: 1296714 | AS177: 168 | AT177: 5 | AU177: 0 | AV177: 0 | AW177: 0 | AX177: 0 | AY177: 0 | BA177: 0 | BB177: 0 | BC177: 0 | BD177: 0 | BE177: 0 | BG177: 9 | BH177: 2.17709577 | BI177: 0 | CA177: 168 | CB177: 168 | CC177: MARBLEHEAD | CD177: 1221933 | CE177: 1767398 | CF177: 0 | CG177: 0 | CH177: 226655.6 | CI177: 0 | CJ177: 226655.6 | CK177: 226655.6 | DA177: 168 | DB177: MARBLEHEAD | DC177: 0 | DD177: 0 | DE177: 0 | DF177: 0 | DG177: 0 | DH177: 0 | DI177: 0 | DJ177: 0 | DK177: 0 | DL177: 0 | DN177: 0 | DP177: 0 | DQ177: 0 | DR177: 0 | DS177: 0 | DT177: 0 | DV177: 0 | EC177: 0 | EE177: 168
A178: 169 | B178: 169 | C178: MARION | D178: 0 | E178: 0 | F178: 0 | G178: 0 | H178: 0 | J178: 0 | K178: 0 | L178: 0 | N178: 0 | P178: 0 | Q178: 0 | R178: 0 | S178: 0 | T178: 0 | U178: 0 | W178: 0 | AA178: 169 | AB178: 0 | AC178: 0 | AD178: 0 | AE178: 0 | AF178: 0 | AG178: 0 | AH178: 0 | AI178: 0 | AJ178: 0 | AK178: 0 | AL178: 0 | AM178: 0 | AN178: 0 | AO178: 0 | AP178: 0 | AQ178: 0 | AS178: 169 | AT178: 0 | AU178: 0 | AV178: 0 | AW178: 0 | AX178: 0 | AY178: 0 | BA178: 0 | BB178: 0 | BC178: 0 | BD178: 0 | BE178: 0 | BG178: 0 | BH178: 0 | BI178: 0 | CA178: 169 | CB178: 169 | CC178: MARION | CD178: 0 | CE178: 0 | CF178: 0 | CG178: 0 | CH178: 0 | CI178: 0 | CJ178: 0 | CK178: 0 | DA178: 169 | DB178: MARION | DC178: 0 | DD178: 0 | DE178: 0 | DF178: 0 | DG178: 0 | DH178: 0 | DI178: 0 | DJ178: 0 | DK178: 0 | DL178: 0 | DN178: 0 | DP178: 0 | DQ178: 0 | DR178: 0 | DS178: 0 | DT178: 0 | DV178: 0 | EC178: 0 | EE178: 169
A179: 170 | B179: 170 | C179: MARLBOROUGH | D179: 536 | E179: 7523255 | F179: 0 | G179: 636762 | H179: 8160017 | J179: 636762 | K179: 504794.8 | L179: 1141556.8 | N179: 7018460.2 | P179: 636762 | Q179: 0 | R179: 0 | S179: 0 | T179: 504794.8 | U179: 1141556.8 | W179: 1141556.8 | AA179: 170 | AB179: 536 | AC179: 0.004895960832 | AD179: 0 | AE179: 0 | AF179: 7523255 | AG179: 0 | AH179: 0 | AI179: 7523255 | AJ179: 0 | AK179: 636762 | AL179: 8160017 | AM179: 0 | AN179: 0 | AO179: 0 | AP179: 0 | AQ179: 8160017 | AS179: 170 | AT179: 202 | AU179: 0 | AV179: 0 | AW179: 0 | AX179: 0 | AY179: 0 | BA179: 0 | BB179: 0 | BC179: 0 | BD179: 0 | BE179: 0 | BG179: 9 | BH179: 8.149840914 | BI179: 0 | CA179: 170 | CB179: 170 | CC179: MARLBOROUGH | CD179: 7523255 | CE179: 7306723 | CF179: 216532 | CG179: 288262.8 | CH179: 0 | CI179: 0 | CJ179: 504794.8 | CK179: 504794.8 | DA179: 170 | DB179: MARLBOROUGH | DC179: 0 | DD179: 0 | DE179: 0 | DF179: 0 | DG179: 0 | DH179: 0 | DI179: 0 | DJ179: 0 | DK179: 0 | DL179: 0 | DN179: 0 | DP179: 216532 | DQ179: 0 | DR179: 216532 | DS179: 0 | DT179: 0 | DV179: 0 | EC179: 0 | EE179: 170
A180: 171 | B180: 171 | C180: MARSHFIELD | D180: 35 | E180: 656649 | F180: 0 | G180: 41463 | H180: 698112 | J180: 41463 | K180: 122836.2 | L180: 164299.2 | N180: 533812.8 | P180: 41463 | Q180: 0 | R180: 0 | S180: 0 | T180: 122836.2 | U180: 164299.2 | W180: 164299.2 | AA180: 171 | AB180: 35 | AC180: 0.09386281588 | AD180: 0 | AE180: 0 | AF180: 656649 | AG180: 0 | AH180: 0 | AI180: 656649 | AJ180: 0 | AK180: 41463 | AL180: 698112 | AM180: 0 | AN180: 0 | AO180: 0 | AP180: 0 | AQ180: 698112 | AS180: 171 | AT180: 3 | AU180: 0 | AV180: 0 | AW180: 0 | AX180: 0 | AY180: 0 | BA180: 0 | BB180: 0 | BC180: 0 | BD180: 0 | BE180: 0 | BG180: 9 | BH180: 1.047956973 | BI180: 0 | CA180: 171 | CB180: 171 | CC180: MARSHFIELD | CD180: 656649 | CE180: 699091 | CF180: 0 | CG180: 101103 | CH180: 21733.2 | CI180: 0 | CJ180: 122836.2 | CK180: 122836.2 | DA180: 171 | DB180: MARSHFIELD | DC180: 0 | DD180: 0 | DE180: 0 | DF180: 0 | DG180: 0 | DH180: 0 | DI180: 0 | DJ180: 0 | DK180: 0 | DL180: 0 | DN180: 0 | DP180: 0 | DQ180: 0 | DR180: 0 | DS180: 0 | DT180: 0 | DV180: 0 | EC180: 0 | EE180: 171
A181: 172 | B181: 172 | C181: MASHPEE | D181: 48 | E181: 1107231 | F181: 0 | G181: 56992 | H181: 1164223 | J181: 56992 | K181: 92810.4 | L181: 149802.4 | N181: 1014420.6 | P181: 56992 | Q181: 0 | R181: 0 | S181: 0 | T181: 92810.4 | U181: 149802.4 | W181: 149802.4 | AA181: 172 | AB181: 48 | AC181: 0.02639262445 | AD181: 0 | AE181: 0 | AF181: 1107231 | AG181: 0 | AH181: 0 | AI181: 1107231 | AJ181: 0 | AK181: 56992 | AL181: 1164223 | AM181: 0 | AN181: 0 | AO181: 0 | AP181: 0 | AQ181: 1164223 | AS181: 172 | AT181: 14 | AU181: 0 | AV181: 0 | AW181: 0 | AX181: 0 | AY181: 0 | BA181: 0 | BB181: 0 | BC181: 0 | BD181: 0 | BE181: 0 | BG181: 9 | BH181: 3.146388062 | BI181: 0 | CA181: 172 | CB181: 172 | CC181: MASHPEE | CD181: 1107231 | CE181: 1071717 | CF181: 35514 | CG181: 0 | CH181: 57296.4 | CI181: 0 | CJ181: 92810.4 | CK181: 92810.4 | DA181: 172 | DB181: MASHPEE | DC181: 0 | DD181: 0 | DE181: 0 | DF181: 0 | DG181: 0 | DH181: 0 | DI181: 0 | DJ181: 0 | DK181: 0 | DL181: 0 | DN181: 0 | DP181: 35514 | DQ181: 0 | DR181: 35514 | DS181: 0 | DT181: 0 | DV181: 0 | EC181: 0 | EE181: 172
A182: 173 | B182: 173 | C182: MATTAPOISETT | D182: 1 | E182: 21944 | F182: 0 | G182: 1188 | H182: 23132 | J182: 1188 | K182: 21944 | L182: 23132 | N182: 0 | P182: 1188 | Q182: 0 | R182: 0 | S182: 0 | T182: 21944 | U182: 23132 | W182: 23132 | AA182: 173 | AB182: 1 | AC182: 0 | AD182: 0 | AE182: 0 | AF182: 21944 | AG182: 0 | AH182: 0 | AI182: 21944 | AJ182: 0 | AK182: 1188 | AL182: 23132 | AM182: 0 | AN182: 0 | AO182: 0 | AP182: 0 | AQ182: 23132 | AS182: 173 | AT182: 0 | AU182: 0 | AV182: 0 | AW182: 0 | AX182: 0 | AY182: 0 | BA182: 0 | BB182: 0 | BC182: 0 | BD182: 0 | BE182: 0 | BG182: 9 | BH182: 0.2387784545 | BI182: 0 | CA182: 173 | CB182: 173 | CC182: MATTAPOISETT | CD182: 21944 | CE182: 0 | CF182: 21944 | CG182: 0 | CH182: 0 | CI182: 0 | CJ182: 21944 | CK182: 21944 | DA182: 173 | DB182: MATTAPOISETT | DC182: 0 | DD182: 0 | DE182: 0 | DF182: 0 | DG182: 0 | DH182: 0 | DI182: 0 | DJ182: 0 | DK182: 0 | DL182: 0 | DN182: 0 | DP182: 21944 | DQ182: 0 | DR182: 21944 | DS182: 0 | DT182: 0 | DV182: 0 | EC182: 0 | EE182: 173
A183: 174 | B183: 174 | C183: MAYNARD | D183: 77 | E183: 1422086 | F183: 0 | G183: 91476 | H183: 1513562 | J183: 91476 | K183: 162990.2 | L183: 254466.2 | N183: 1259095.8 | P183: 91476 | Q183: 0 | R183: 0 | S183: 0 | T183: 162990.2 | U183: 254466.2 | W183: 254466.2 | AA183: 174 | AB183: 77 | AC183: 0 | AD183: 0 | AE183: 0 | AF183: 1422086 | AG183: 0 | AH183: 0 | AI183: 1422086 | AJ183: 0 | AK183: 91476 | AL183: 1513562 | AM183: 0 | AN183: 0 | AO183: 0 | AP183: 0 | AQ183: 1513562 | AS183: 174 | AT183: 23 | AU183: 0 | AV183: 0 | AW183: 0 | AX183: 0 | AY183: 0 | BA183: 0 | BB183: 0 | BC183: 0 | BD183: 0 | BE183: 0 | BG183: 9 | BH183: 4.878348825 | BI183: 0 | CA183: 174 | CB183: 174 | CC183: MAYNARD | CD183: 1422086 | CE183: 1290801 | CF183: 131285 | CG183: 4485.6 | CH183: 27219.6 | CI183: 0 | CJ183: 162990.2 | CK183: 162990.2 | DA183: 174 | DB183: MAYNARD | DC183: 0 | DD183: 0 | DE183: 0 | DF183: 0 | DG183: 0 | DH183: 0 | DI183: 0 | DJ183: 0 | DK183: 0 | DL183: 0 | DN183: 0 | DP183: 131285 | DQ183: 0 | DR183: 131285 | DS183: 0 | DT183: 0 | DV183: 0 | EC183: 0 | EE183: 174
A184: 175 | B184: 175 | C184: MEDFIELD | D184: 0 | E184: 0 | F184: 0 | G184: 0 | H184: 0 | J184: 0 | K184: 26797.2 | L184: 26797.2 | N184: -26797.2 | P184: 0 | Q184: 0 | R184: 0 | S184: 0 | T184: 26797.2 | U184: 26797.2 | W184: 26797.2 | AA184: 175 | AB184: 0 | AC184: 0 | AD184: 0 | AE184: 0 | AF184: 0 | AG184: 0 | AH184: 0 | AI184: 0 | AJ184: 0 | AK184: 0 | AL184: 0 | AM184: 0 | AN184: 0 | AO184: 0 | AP184: 0 | AQ184: 0 | AS184: 175 | AT184: 0 | AU184: 0 | AV184: 0 | AW184: 0 | AX184: 0 | AY184: 0 | BA184: 0 | BB184: 0 | BC184: 0 | BD184: 0 | BE184: 0 | BG184: 0 | BH184: 0 | BI184: 0 | CA184: 175 | CB184: 175 | CC184: MEDFIELD | CD184: 0 | CE184: 36002 | CF184: 0 | CG184: 0 | CH184: 26797.2 | CI184: 0 | CJ184: 26797.2 | CK184: 26797.2 | DA184: 175 | DB184: MEDFIELD | DC184: 0 | DD184: 0 | DE184: 0 | DF184: 0 | DG184: 0 | DH184: 0 | DI184: 0 | DJ184: 0 | DK184: 0 | DL184: 0 | DN184: 0 | DP184: 0 | DQ184: 0 | DR184: 0 | DS184: 0 | DT184: 0 | DV184: 0 | EC184: 0 | EE184: 175
A185: 176 | B185: 176 | C185: MEDFORD | D185: 379 | E185: 6979676 | F185: 0 | G185: 450252 | H185: 7429928 | J185: 450252 | K185: 0 | L185: 450252 | N185: 6979676 | P185: 450252 | Q185: 0 | R185: 0 | S185: 0 | T185: 0 | U185: 450252 | W185: 450252 | AA185: 176 | AB185: 379 | AC185: 0 | AD185: 0 | AE185: 0 | AF185: 6979676 | AG185: 0 | AH185: 0 | AI185: 6979676 | AJ185: 0 | AK185: 450252 | AL185: 7429928 | AM185: 0 | AN185: 0 | AO185: 0 | AP185: 0 | AQ185: 7429928 | AS185: 176 | AT185: 159 | AU185: 0 | AV185: 0 | AW185: 0 | AX185: 0 | AY185: 0 | BA185: 0 | BB185: 0 | BC185: 0 | BD185: 0 | BE185: 0 | BG185: 9 | BH185: 7.648936362 | BI185: 0 | CA185: 176 | CB185: 176 | CC185: MEDFORD | CD185: 6979676 | CE185: 7050067 | CF185: 0 | CG185: 0 | CH185: 0 | CI185: 0 | CJ185: 0 | CK185: 0 | DA185: 176 | DB185: MEDFORD | DC185: 0 | DD185: 0 | DE185: 0 | DF185: 0 | DG185: 0 | DH185: 0 | DI185: 0 | DJ185: 0 | DK185: 0 | DL185: 0 | DN185: 0 | DP185: 0 | DQ185: 0 | DR185: 0 | DS185: 0 | DT185: 0 | DV185: 0 | EC185: 0 | EE185: 176
A186: 177 | B186: 177 | C186: MEDWAY | D186: 22 | E186: 364144 | F186: 0 | G186: 26136 | H186: 390280 | J186: 26136 | K186: 74826 | L186: 100962 | N186: 289318 | P186: 26136 | Q186: 0 | R186: 0 | S186: 0 | T186: 74826 | U186: 100962 | W186: 100962 | AA186: 177 | AB186: 22 | AC186: 0 | AD186: 0 | AE186: 0 | AF186: 364144 | AG186: 0 | AH186: 0 | AI186: 364144 | AJ186: 0 | AK186: 26136 | AL186: 390280 | AM186: 0 | AN186: 0 | AO186: 0 | AP186: 0 | AQ186: 390280 | AS186: 177 | AT186: 1 | AU186: 0 | AV186: 0 | AW186: 0 | AX186: 0 | AY186: 0 | BA186: 0 | BB186: 0 | BC186: 0 | BD186: 0 | BE186: 0 | BG186: 9 | BH186: 0.9684003692 | BI186: 0 | CA186: 177 | CB186: 177 | CC186: MEDWAY | CD186: 364144 | CE186: 289318 | CF186: 74826 | CG186: 0 | CH186: 0 | CI186: 0 | CJ186: 74826 | CK186: 74826 | DA186: 177 | DB186: MEDWAY | DC186: 0 | DD186: 0 | DE186: 0 | DF186: 0 | DG186: 0 | DH186: 0 | DI186: 0 | DJ186: 0 | DK186: 0 | DL186: 0 | DN186: 0 | DP186: 74826 | DQ186: 0 | DR186: 74826 | DS186: 0 | DT186: 0 | DV186: 0 | EC186: 0 | EE186: 177
A187: 178 | B187: 178 | C187: MELROSE | D187: 255 | E187: 3326594 | F187: 0 | G187: 302940 | H187: 3629534 | J187: 302940 | K187: 241351.8 | L187: 544291.8 | N187: 3085242.2 | P187: 302940 | Q187: 0 | R187: 0 | S187: 0 | T187: 241351.8 | U187: 544291.8 | W187: 544291.8 | AA187: 178 | AB187: 255 | AC187: 0 | AD187: 0 | AE187: 0 | AF187: 3326594 | AG187: 0 | AH187: 0 | AI187: 3326594 | AJ187: 0 | AK187: 302940 | AL187: 3629534 | AM187: 0 | AN187: 0 | AO187: 0 | AP187: 0 | AQ187: 3629534 | AS187: 178 | AT187: 96 | AU187: 0 | AV187: 0 | AW187: 0 | AX187: 0 | AY187: 0 | BA187: 0 | BB187: 0 | BC187: 0 | BD187: 0 | BE187: 0 | BG187: 9 | BH187: 5.972707936 | BI187: 0 | CA187: 178 | CB187: 178 | CC187: MELROSE | CD187: 3326594 | CE187: 3103211 | CF187: 223383 | CG187: 0 | CH187: 17968.8 | CI187: 0 | CJ187: 241351.8 | CK187: 241351.8 | DA187: 178 | DB187: MELROSE | DC187: 0 | DD187: 0 | DE187: 0 | DF187: 0 | DG187: 0 | DH187: 0 | DI187: 0 | DJ187: 0 | DK187: 0 | DL187: 0 | DN187: 0 | DP187: 223383 | DQ187: 0 | DR187: 223383 | DS187: 0 | DT187: 0 | DV187: 0 | EC187: 0 | EE187: 178
A188: 179 | B188: 179 | C188: MENDON | D188: 0 | E188: 0 | F188: 0 | G188: 0 | H188: 0 | J188: 0 | K188: 0 | L188: 0 | N188: 0 | P188: 0 | Q188: 0 | R188: 0 | S188: 0 | T188: 0 | U188: 0 | W188: 0 | AA188: 179 | AB188: 0 | AC188: 0 | AD188: 0 | AE188: 0 | AF188: 0 | AG188: 0 | AH188: 0 | AI188: 0 | AJ188: 0 | AK188: 0 | AL188: 0 | AM188: 0 | AN188: 0 | AO188: 0 | AP188: 0 | AQ188: 0 | AS188: 179 | AT188: 0 | AU188: 0 | AV188: 0 | AW188: 0 | AX188: 0 | AY188: 0 | BA188: 0 | BB188: 0 | BC188: 0 | BD188: 0 | BE188: 0 | BG188: 0 | BH188: 0 | BI188: 0 | CA188: 179 | CB188: 179 | CC188: MENDON | CD188: 0 | CE188: 0 | CF188: 0 | CG188: 0 | CH188: 0 | CI188: 0 | CJ188: 0 | CK188: 0 | DA188: 179 | DB188: MENDON | DC188: 0 | DD188: 0 | DE188: 0 | DF188: 0 | DG188: 0 | DH188: 0 | DI188: 0 | DJ188: 0 | DK188: 0 | DL188: 0 | DN188: 0 | DP188: 0 | DQ188: 0 | DR188: 0 | DS188: 0 | DT188: 0 | DV188: 0 | EC188: 0 | EE188: 179
A189: 180 | B189: 180 | C189: MERRIMAC | D189: 0 | E189: 0 | F189: 0 | G189: 0 | H189: 0 | J189: 0 | K189: 0 | L189: 0 | N189: 0 | P189: 0 | Q189: 0 | R189: 0 | S189: 0 | T189: 0 | U189: 0 | W189: 0 | AA189: 180 | AB189: 0 | AC189: 0 | AD189: 0 | AE189: 0 | AF189: 0 | AG189: 0 | AH189: 0 | AI189: 0 | AJ189: 0 | AK189: 0 | AL189: 0 | AM189: 0 | AN189: 0 | AO189: 0 | AP189: 0 | AQ189: 0 | AS189: 180 | AT189: 0 | AU189: 0 | AV189: 0 | AW189: 0 | AX189: 0 | AY189: 0 | BA189: 0 | BB189: 0 | BC189: 0 | BD189: 0 | BE189: 0 | BG189: 0 | BH189: 0 | BI189: 0 | CA189: 180 | CB189: 180 | CC189: MERRIMAC | CD189: 0 | CE189: 0 | CF189: 0 | CG189: 0 | CH189: 0 | CI189: 0 | CJ189: 0 | CK189: 0 | DA189: 180 | DB189: MERRIMAC | DC189: 0 | DD189: 0 | DE189: 0 | DF189: 0 | DG189: 0 | DH189: 0 | DI189: 0 | DJ189: 0 | DK189: 0 | DL189: 0 | DN189: 0 | DP189: 0 | DQ189: 0 | DR189: 0 | DS189: 0 | DT189: 0 | DV189: 0 | EC189: 0 | EE189: 180
A190: 181 | B190: 181 | C190: METHUEN | D190: 149 | E190: 2402063 | F190: 0 | G190: 176956 | H190: 2579019 | J190: 176956 | K190: 573058.4 | L190: 750014.4 | N190: 1829004.6 | P190: 176956 | Q190: 0 | R190: 0 | S190: 0 | T190: 573058.4 | U190: 750014.4 | W190: 750014.4 | AA190: 181 | AB190: 149 | AC190: 0.04744469526 | AD190: 0 | AE190: 0 | AF190: 2402063 | AG190: 0 | AH190: 0 | AI190: 2402063 | AJ190: 0 | AK190: 176956 | AL190: 2579019 | AM190: 0 | AN190: 0 | AO190: 0 | AP190: 0 | AQ190: 2579019 | AS190: 181 | AT190: 20 | AU190: 0 | AV190: 0 | AW190: 0 | AX190: 0 | AY190: 0 | BA190: 0 | BB190: 0 | BC190: 0 | BD190: 0 | BE190: 0 | BG190: 9 | BH190: 2.171667326 | BI190: 0 | CA190: 181 | CB190: 181 | CC190: METHUEN | CD190: 2402063 | CE190: 2818494 | CF190: 0 | CG190: 443649.6 | CH190: 129408.8 | CI190: 0 | CJ190: 573058.4 | CK190: 573058.4 | DA190: 181 | DB190: METHUEN | DC190: 0 | DD190: 0 | DE190: 0 | DF190: 0 | DG190: 0 | DH190: 0 | DI190: 0 | DJ190: 0 | DK190: 0 | DL190: 0 | DN190: 0 | DP190: 0 | DQ190: 0 | DR190: 0 | DS190: 0 | DT190: 0 | DV190: 0 | EC190: 0 | EE190: 181
A191: 182 | B191: 182 | C191: MIDDLEBOROUGH | D191: 42 | E191: 699841 | F191: 0 | G191: 49824 | H191: 749665 | J191: 49824 | K191: 40767.6 | L191: 90591.6 | N191: 659073.4 | P191: 49824 | Q191: 0 | R191: 0 | S191: 0 | T191: 40767.6 | U191: 90591.6 | W191: 90591.6 | AA191: 182 | AB191: 42 | AC191: 0.05776173285 | AD191: 0 | AE191: 0 | AF191: 699841 | AG191: 0 | AH191: 0 | AI191: 699841 | AJ191: 0 | AK191: 49824 | AL191: 749665 | AM191: 0 | AN191: 0 | AO191: 0 | AP191: 0 | AQ191: 749665 | AS191: 182 | AT191: 8 | AU191: 0 | AV191: 0 | AW191: 0 | AX191: 0 | AY191: 0 | BA191: 0 | BB191: 0 | BC191: 0 | BD191: 0 | BE191: 0 | BG191: 9 | BH191: 1.344426542 | BI191: 0 | CA191: 182 | CB191: 182 | CC191: MIDDLEBOROUGH | CD191: 699841 | CE191: 804321 | CF191: 0 | CG191: 40767.6 | CH191: 0 | CI191: 0 | CJ191: 40767.6 | CK191: 40767.6 | DA191: 182 | DB191: MIDDLEBOROUGH | DC191: 0 | DD191: 0 | DE191: 0 | DF191: 0 | DG191: 0 | DH191: 0 | DI191: 0 | DJ191: 0 | DK191: 0 | DL191: 0 | DN191: 0 | DP191: 0 | DQ191: 0 | DR191: 0 | DS191: 0 | DT191: 0 | DV191: 0 | EC191: 0 | EE191: 182
A192: 183 | B192: 183 | C192: MIDDLEFIELD | D192: 0 | E192: 0 | F192: 0 | G192: 0 | H192: 0 | J192: 0 | K192: 0 | L192: 0 | N192: 0 | P192: 0 | Q192: 0 | R192: 0 | S192: 0 | T192: 0 | U192: 0 | W192: 0 | AA192: 183 | AB192: 0 | AC192: 0 | AD192: 0 | AE192: 0 | AF192: 0 | AG192: 0 | AH192: 0 | AI192: 0 | AJ192: 0 | AK192: 0 | AL192: 0 | AM192: 0 | AN192: 0 | AO192: 0 | AP192: 0 | AQ192: 0 | AS192: 183 | AT192: 0 | AU192: 0 | AV192: 0 | AW192: 0 | AX192: 0 | AY192: 0 | BA192: 0 | BB192: 0 | BC192: 0 | BD192: 0 | BE192: 0 | BG192: 0 | BH192: 0 | BI192: 0 | CA192: 183 | CB192: 183 | CC192: MIDDLEFIELD | CD192: 0 | CE192: 0 | CF192: 0 | CG192: 0 | CH192: 0 | CI192: 0 | CJ192: 0 | CK192: 0 | DA192: 183 | DB192: MIDDLEFIELD | DC192: 0 | DD192: 0 | DE192: 0 | DF192: 0 | DG192: 0 | DH192: 0 | DI192: 0 | DJ192: 0 | DK192: 0 | DL192: 0 | DN192: 0 | DP192: 0 | DQ192: 0 | DR192: 0 | DS192: 0 | DT192: 0 | DV192: 0 | EC192: 0 | EE192: 183
A193: 184 | B193: 184 | C193: MIDDLETON | D193: 1 | E193: 19141 | F193: 0 | G193: 1188 | H193: 20329 | J193: 1188 | K193: 832.8 | L193: 2020.8 | N193: 18308.2 | P193: 1188 | Q193: 0 | R193: 0 | S193: 0 | T193: 832.8 | U193: 2020.8 | W193: 2020.8 | AA193: 184 | AB193: 1 | AC193: 0 | AD193: 0 | AE193: 0 | AF193: 19141 | AG193: 0 | AH193: 0 | AI193: 19141 | AJ193: 0 | AK193: 1188 | AL193: 20329 | AM193: 0 | AN193: 0 | AO193: 0 | AP193: 0 | AQ193: 20329 | AS193: 184 | AT193: 1 | AU193: 0 | AV193: 0 | AW193: 0 | AX193: 0 | AY193: 0 | BA193: 0 | BB193: 0 | BC193: 0 | BD193: 0 | BE193: 0 | BG193: 9 | BH193: 0.1268473651 | BI193: 0 | CA193: 184 | CB193: 184 | CC193: MIDDLETON | CD193: 19141 | CE193: 18979 | CF193: 162 | CG193: 670.8 | CH193: 0 | CI193: 0 | CJ193: 832.8 | CK193: 832.8 | DA193: 184 | DB193: MIDDLETON | DC193: 0 | DD193: 0 | DE193: 0 | DF193: 0 | DG193: 0 | DH193: 0 | DI193: 0 | DJ193: 0 | DK193: 0 | DL193: 0 | DN193: 0 | DP193: 162 | DQ193: 0 | DR193: 162 | DS193: 0 | DT193: 0 | DV193: 0 | EC193: 0 | EE193: 184
A194: 185 | B194: 185 | C194: MILFORD | D194: 147 | E194: 2409170 | F194: 0 | G194: 174636 | H194: 2583806 | J194: 174636 | K194: 822870.6 | L194: 997506.6 | N194: 1586299.4 | P194: 174636 | Q194: 0 | R194: 0 | S194: 0 | T194: 822870.6 | U194: 997506.6 | W194: 997506.6 | AA194: 185 | AB194: 147 | AC194: 0 | AD194: 0 | AE194: 0 | AF194: 2409170 | AG194: 0 | AH194: 0 | AI194: 2409170 | AJ194: 0 | AK194: 174636 | AL194: 2583806 | AM194: 0 | AN194: 0 | AO194: 0 | AP194: 0 | AQ194: 2583806 | AS194: 185 | AT194: 43 | AU194: 0 | AV194: 0 | AW194: 0 | AX194: 0 | AY194: 0 | BA194: 0 | BB194: 0 | BC194: 0 | BD194: 0 | BE194: 0 | BG194: 9 | BH194: 2.816426385 | BI194: 0 | CA194: 185 | CB194: 185 | CC194: MILFORD | CD194: 2409170 | CE194: 2022777 | CF194: 386393 | CG194: 266499.6 | CH194: 169978 | CI194: 0 | CJ194: 822870.6 | CK194: 822870.6 | DA194: 185 | DB194: MILFORD | DC194: 0 | DD194: 0 | DE194: 0 | DF194: 0 | DG194: 0 | DH194: 0 | DI194: 0 | DJ194: 0 | DK194: 0 | DL194: 0 | DN194: 0 | DP194: 386393 | DQ194: 0 | DR194: 386393 | DS194: 0 | DT194: 0 | DV194: 0 | EC194: 0 | EE194: 185
A195: 186 | B195: 186 | C195: MILLBURY | D195: 10 | E195: 186779 | F195: 0 | G195: 11880 | H195: 198659 | J195: 11880 | K195: 0 | L195: 11880 | N195: 186779 | P195: 11880 | Q195: 0 | R195: 0 | S195: 0 | T195: 0 | U195: 11880 | W195: 11880 | AA195: 186 | AB195: 10 | AC195: 0 | AD195: 0 | AE195: 0 | AF195: 186779 | AG195: 0 | AH195: 0 | AI195: 186779 | AJ195: 0 | AK195: 11880 | AL195: 198659 | AM195: 0 | AN195: 0 | AO195: 0 | AP195: 0 | AQ195: 198659 | AS195: 186 | AT195: 4 | AU195: 0 | AV195: 0 | AW195: 0 | AX195: 0 | AY195: 0 | BA195: 0 | BB195: 0 | BC195: 0 | BD195: 0 | BE195: 0 | BG195: 9 | BH195: 0.619421512 | BI195: 0 | CA195: 186 | CB195: 186 | CC195: MILLBURY | CD195: 186779 | CE195: 202720 | CF195: 0 | CG195: 0 | CH195: 0 | CI195: 0 | CJ195: 0 | CK195: 0 | DA195: 186 | DB195: MILLBURY | DC195: 0 | DD195: 0 | DE195: 0 | DF195: 0 | DG195: 0 | DH195: 0 | DI195: 0 | DJ195: 0 | DK195: 0 | DL195: 0 | DN195: 0 | DP195: 0 | DQ195: 0 | DR195: 0 | DS195: 0 | DT195: 0 | DV195: 0 | EC195: 0 | EE195: 186
A196: 187 | B196: 187 | C196: MILLIS | D196: 2 | E196: 38550 | F196: 0 | G196: 2376 | H196: 40926 | J196: 2376 | K196: 27717.8 | L196: 30093.8 | N196: 10832.2 | P196: 2376 | Q196: 0 | R196: 0 | S196: 0 | T196: 27717.8 | U196: 30093.8 | W196: 30093.8 | AA196: 187 | AB196: 2 | AC196: 0 | AD196: 0 | AE196: 0 | AF196: 38550 | AG196: 0 | AH196: 0 | AI196: 38550 | AJ196: 0 | AK196: 2376 | AL196: 40926 | AM196: 0 | AN196: 0 | AO196: 0 | AP196: 0 | AQ196: 40926 | AS196: 187 | AT196: 0 | AU196: 0 | AV196: 0 | AW196: 0 | AX196: 0 | AY196: 0 | BA196: 0 | BB196: 0 | BC196: 0 | BD196: 0 | BE196: 0 | BG196: 9 | BH196: 0.1724835104 | BI196: 0 | CA196: 187 | CB196: 187 | CC196: MILLIS | CD196: 38550 | CE196: 145743 | CF196: 0 | CG196: 20662.2 | CH196: 7055.6 | CI196: 0 | CJ196: 27717.8 | CK196: 27717.8 | DA196: 187 | DB196: MILLIS | DC196: 0 | DD196: 0 | DE196: 0 | DF196: 0 | DG196: 0 | DH196: 0 | DI196: 0 | DJ196: 0 | DK196: 0 | DL196: 0 | DN196: 0 | DP196: 0 | DQ196: 0 | DR196: 0 | DS196: 0 | DT196: 0 | DV196: 0 | EC196: 0 | EE196: 187
A197: 188 | B197: 188 | C197: MILLVILLE | D197: 0 | E197: 0 | F197: 0 | G197: 0 | H197: 0 | J197: 0 | K197: 0 | L197: 0 | N197: 0 | P197: 0 | Q197: 0 | R197: 0 | S197: 0 | T197: 0 | U197: 0 | W197: 0 | AA197: 188 | AB197: 0 | AC197: 0 | AD197: 0 | AE197: 0 | AF197: 0 | AG197: 0 | AH197: 0 | AI197: 0 | AJ197: 0 | AK197: 0 | AL197: 0 | AM197: 0 | AN197: 0 | AO197: 0 | AP197: 0 | AQ197: 0 | AS197: 188 | AT197: 0 | AU197: 0 | AV197: 0 | AW197: 0 | AX197: 0 | AY197: 0 | BA197: 0 | BB197: 0 | BC197: 0 | BD197: 0 | BE197: 0 | BG197: 0 | BH197: 0 | BI197: 0 | CA197: 188 | CB197: 188 | CC197: MILLVILLE | CD197: 0 | CE197: 0 | CF197: 0 | CG197: 0 | CH197: 0 | CI197: 0 | CJ197: 0 | CK197: 0 | DA197: 188 | DB197: MILLVILLE | DC197: 0 | DD197: 0 | DE197: 0 | DF197: 0 | DG197: 0 | DH197: 0 | DI197: 0 | DJ197: 0 | DK197: 0 | DL197: 0 | DN197: 0 | DP197: 0 | DQ197: 0 | DR197: 0 | DS197: 0 | DT197: 0 | DV197: 0 | EC197: 0 | EE197: 188
A198: 189 | B198: 189 | C198: MILTON | D198: 18 | E198: 383768 | F198: 0 | G198: 21291 | H198: 405059 | J198: 21291 | K198: 191418.2 | L198: 212709.2 | N198: 192349.8 | P198: 21291 | Q198: 0 | R198: 0 | S198: 0 | T198: 191418.2 | U198: 212709.2 | W198: 212709.2 | AA198: 189 | AB198: 18 | AC198: 0.07731367455 | AD198: 0 | AE198: 0 | AF198: 383768 | AG198: 0 | AH198: 0 | AI198: 383768 | AJ198: 0 | AK198: 21291 | AL198: 405059 | AM198: 0 | AN198: 0 | AO198: 0 | AP198: 0 | AQ198: 405059 | AS198: 189 | AT198: 2 | AU198: 0 | AV198: 0 | AW198: 0 | AX198: 0 | AY198: 0 | BA198: 0 | BB198: 0 | BC198: 0 | BD198: 0 | BE198: 0 | BG198: 9 | BH198: 0.5228859369 | BI198: 0 | CA198: 189 | CB198: 189 | CC198: MILTON | CD198: 383768 | CE198: 287190 | CF198: 96578 | CG198: 72453 | CH198: 22387.2 | CI198: 0 | CJ198: 191418.2 | CK198: 191418.2 | DA198: 189 | DB198: MILTON | DC198: 0 | DD198: 0 | DE198: 0 | DF198: 0 | DG198: 0 | DH198: 0 | DI198: 0 | DJ198: 0 | DK198: 0 | DL198: 0 | DN198: 0 | DP198: 96578 | DQ198: 0 | DR198: 96578 | DS198: 0 | DT198: 0 | DV198: 0 | EC198: 0 | EE198: 189
A199: 190 | B199: 190 | C199: MONROE | D199: 0 | E199: 0 | F199: 0 | G199: 0 | H199: 0 | J199: 0 | K199: 0 | L199: 0 | N199: 0 | P199: 0 | Q199: 0 | R199: 0 | S199: 0 | T199: 0 | U199: 0 | W199: 0 | AA199: 190 | AB199: 0 | AC199: 0 | AD199: 0 | AE199: 0 | AF199: 0 | AG199: 0 | AH199: 0 | AI199: 0 | AJ199: 0 | AK199: 0 | AL199: 0 | AM199: 0 | AN199: 0 | AO199: 0 | AP199: 0 | AQ199: 0 | AS199: 190 | AT199: 0 | AU199: 0 | AV199: 0 | AW199: 0 | AX199: 0 | AY199: 0 | BA199: 0 | BB199: 0 | BC199: 0 | BD199: 0 | BE199: 0 | BG199: 0 | BH199: 0 | BI199: 0 | CA199: 190 | CB199: 190 | CC199: MONROE | CD199: 0 | CE199: 0 | CF199: 0 | CG199: 0 | CH199: 0 | CI199: 0 | CJ199: 0 | CK199: 0 | DA199: 190 | DB199: MONROE | DC199: 0 | DD199: 0 | DE199: 0 | DF199: 0 | DG199: 0 | DH199: 0 | DI199: 0 | DJ199: 0 | DK199: 0 | DL199: 0 | DN199: 0 | DP199: 0 | DQ199: 0 | DR199: 0 | DS199: 0 | DT199: 0 | DV199: 0 | EC199: 0 | EE199: 190
A200: 191 | B200: 191 | C200: MONSON | D200: 40 | E200: 619465 | F200: 0 | G200: 47520 | H200: 666985 | J200: 47520 | K200: 37837.2 | L200: 85357.2 | N200: 581627.8 | P200: 47520 | Q200: 0 | R200: 0 | S200: 0 | T200: 37837.2 | U200: 85357.2 | W200: 85357.2 | AA200: 191 | AB200: 40 | AC200: 0 | AD200: 0 | AE200: 0 | AF200: 619465 | AG200: 0 | AH200: 0 | AI200: 619465 | AJ200: 0 | AK200: 47520 | AL200: 666985 | AM200: 0 | AN200: 0 | AO200: 0 | AP200: 0 | AQ200: 666985 | AS200: 191 | AT200: 17 | AU200: 0 | AV200: 0 | AW200: 0 | AX200: 0 | AY200: 0 | BA200: 0 | BB200: 0 | BC200: 0 | BD200: 0 | BE200: 0 | BG200: 9 | BH200: 4.185865129 | BI200: 0 | CA200: 191 | CB200: 191 | CC200: MONSON | CD200: 619465 | CE200: 600769 | CF200: 18696 | CG200: 19141.2 | CH200: 0 | CI200: 0 | CJ200: 37837.2 | CK200: 37837.2 | DA200: 191 | DB200: MONSON | DC200: 0 | DD200: 0 | DE200: 0 | DF200: 0 | DG200: 0 | DH200: 0 | DI200: 0 | DJ200: 0 | DK200: 0 | DL200: 0 | DN200: 0 | DP200: 18696 | DQ200: 0 | DR200: 18696 | DS200: 0 | DT200: 0 | DV200: 0 | EC200: 0 | EE200: 191
A201: 192 | B201: 192 | C201: MONTAGUE | D201: 0 | E201: 0 | F201: 0 | G201: 0 | H201: 0 | J201: 0 | K201: 0 | L201: 0 | N201: 0 | P201: 0 | Q201: 0 | R201: 0 | S201: 0 | T201: 0 | U201: 0 | W201: 0 | AA201: 192 | AB201: 0 | AC201: 0 | AD201: 0 | AE201: 0 | AF201: 0 | AG201: 0 | AH201: 0 | AI201: 0 | AJ201: 0 | AK201: 0 | AL201: 0 | AM201: 0 | AN201: 0 | AO201: 0 | AP201: 0 | AQ201: 0 | AS201: 192 | AT201: 0 | AU201: 0 | AV201: 0 | AW201: 0 | AX201: 0 | AY201: 0 | BA201: 0 | BB201: 0 | BC201: 0 | BD201: 0 | BE201: 0 | BG201: 0 | BH201: 0 | BI201: 0 | CA201: 192 | CB201: 192 | CC201: MONTAGUE | CD201: 0 | CE201: 0 | CF201: 0 | CG201: 0 | CH201: 0 | CI201: 0 | CJ201: 0 | CK201: 0 | DA201: 192 | DB201: MONTAGUE | DC201: 0 | DD201: 0 | DE201: 0 | DF201: 0 | DG201: 0 | DH201: 0 | DI201: 0 | DJ201: 0 | DK201: 0 | DL201: 0 | DN201: 0 | DP201: 0 | DQ201: 0 | DR201: 0 | DS201: 0 | DT201: 0 | DV201: 0 | EC201: 0 | EE201: 192
A202: 193 | B202: 193 | C202: MONTEREY | D202: 0 | E202: =AI202+DD202 -> 0 | F202: 0 | G202: =AK202+DF202 -> 0 | H202: 0 | J202: 0 | K202: 0 | L202: =SUM(J202:K202) -> 0 | N202: =H202-L202 -> 0 | P202: =AK202+AO202+DF202+DJ202 -> 0 | Q202: 0 | R202: =AP202+DK202 -> 0 | S202: =AO202+DJ202 -> 0 | T202: =K202 -> 0 | U202: 0 | W202: 0 | AA202: 193 | AB202: 0 | AC202: 0 | AD202: 0 | AE202: 0 | AF202: 0 | AG202: 0 | AH202: 0 | AI202: 0 | AJ202: 0 | AK202: 0 | AL202: 0 | AM202: 0 | AN202: 0 | AO202: 0 | AP202: 0 | AQ202: 0 | AS202: 193 | AT202: 0 | AU202: 0 | AV202: 0 | AW202: 0 | AX202: 0 | AY202: 0 | BA202: 0 | BB202: 0 | BC202: 0 | BD202: 0 | BE202: 0 | BG202: 0 | BH202: 0 | BI202: 0 | CA202: 193 | CB202: 193 | CC202: MONTEREY | CD202: =AI202+DD202 -> 0 | CE202: 0 | CF202: 0 | CG202: 0 | CH202: 0 | CI202: 0 | CJ202: 0 | CK202: =(CF202+CI202)*CF$5+CG202*CG$5+CH202*CH$5 -> 0 | DA202: 193 | DB202: MONTEREY | DC202: 0 | DD202: 0 | DE202: 0 | DF202: 0 | DG202: 0 | DH202: 0 | DI202: 0 | DJ202: 0 | DK202: 0 | DL202: =DK202+DG202 -> 0 | DN202: =DJ202+DF202 -> 0 | DP202: 0 | DQ202: =IF(CE202<0,0,IF((AH202-CE202)>0,AH202-CE202,0)) -> 0 | DR202: 0 | DS202: 0 | DT202: 0 | DV202: 0 | EC202: 0 | EE202: 193
A203: 194 | B203: 194 | C203: MONTGOMERY | D203: =AB203 -> 0 | E203: 0 | F203: 0 | G203: 0 | H203: =SUM(E203:G203) -> 0 | J203: =G203 -> 0 | K203: =IF(CK203="",CJ203,CK203) -> 0 | L203: 0 | N203: 0 | P203: 0 | Q203: =AE203 -> 0 | R203: 0 | S203: 0 | T203: 0 | U203: =P203+R203-S203+T203 -> 0 | W203: =AK203+AP203+CJ203+DF203+DK203 -> 0 | AA203: 194 | AB203: 0 | AC203: 0 | AD203: 0 | AE203: 0 | AF203: 0 | AG203: 0 | AH203: 0 | AI203: 0 | AJ203: 0 | AK203: 0 | AL203: 0 | AM203: 0 | AN203: 0 | AO203: 0 | AP203: 0 | AQ203: 0 | AS203: 194 | AT203: 0 | AU203: 0 | AV203: 0 | AW203: 0 | AX203: 0 | AY203: 0 | BA203: 0 | BB203: 0 | BC203: 0 | BD203: 0 | BE203: 0 | BG203: 0 | BH203: 0 | BI203: 0 | CA203: 194 | CB203: 194 | CC203: MONTGOMERY | CD203: 0 | CE203: 0 | CF203: =IF(CE203<0,CD203,IF(CD203-CE203>0,CD203-CE203,0)) -> 0 | CG203: 0 | CH203: 0 | CI203: =DT203 -> 0 | CJ203: =SUM(CF203:CI203) -> 0 | CK203: 0 | DA203: 194 | DB203: MONTGOMERY | DC203: 0 | DD203: 0 | DE203: 0 | DF203: 0 | DG203: =SUM(DD203:DF203) -> 0 | DH203: 0 | DI203: 0 | DJ203: 0 | DK203: =SUM(DH203:DJ203) -> 0 | DL203: 0 | DN203: 0 | DP203: =CF203 -> 0 | DQ203: 0 | DR203: =DP203-DQ203 -> 0 | DS203: 0 | DT203: =IF(AND(DR203<0,DS203<0), IF(DR203<DS203, 0, DS203-DR203), IF(AND(DR203>0,DS203>0), IF(OR(DS203>DR203,DS203=DR203 ), DS203-DR203, 0), DS203)) -> 0 | DV203: 0 | EC203: =DS203-DT203 -> 0 | EE203: 194
A204: 195 | B204: 195 | C204: MOUNT WASHINGTON | D204: 0 | E204: 0 | F204: 0 | G204: 0 | H204: 0 | J204: 0 | K204: 0 | L204: 0 | N204: 0 | P204: 0 | Q204: 0 | R204: 0 | S204: 0 | T204: 0 | U204: 0 | W204: 0 | AA204: 195 | AB204: 0 | AC204: 0 | AD204: 0 | AE204: 0 | AF204: 0 | AG204: 0 | AH204: 0 | AI204: 0 | AJ204: 0 | AK204: 0 | AL204: 0 | AM204: 0 | AN204: 0 | AO204: 0 | AP204: 0 | AQ204: 0 | AS204: 195 | AT204: 0 | AU204: 0 | AV204: 0 | AW204: 0 | AX204: 0 | AY204: 0 | BA204: 0 | BB204: 0 | BC204: 0 | BD204: 0 | BE204: 0 | BG204: 0 | BH204: 0 | BI204: 0 | CA204: 195 | CB204: 195 | CC204: MOUNT WASHINGTON | CD204: 0 | CE204: 0 | CF204: 0 | CG204: 0 | CH204: 0 | CI204: 0 | CJ204: 0 | CK204: 0 | DA204: 195 | DB204: MOUNT WASHINGTON | DC204: 0 | DD204: 0 | DE204: 0 | DF204: 0 | DG204: 0 | DH204: 0 | DI204: 0 | DJ204: 0 | DK204: 0 | DL204: 0 | DN204: 0 | DP204: 0 | DQ204: 0 | DR204: 0 | DS204: 0 | DT204: 0 | DV204: 0 | EC204: 0 | EE204: 195
... 248 more rows
